Workbook

Sheet Main
B10: 2019-03-29
B12: Sheet No. | C12: Template Name | D12: Summary
B13: 1 | C13: Future Intra | D13: For Intraday trading in F&O segment
B14: 2 | C14: Cash Intra | D14: For Intraday trading in cash market segment
B15: 3 | C15: Mid-cap Intra | D15: For Intraday trading in Mid-cap stocks
B16: 4 | C16: Bulk Deals | D16: Reveals Bulk Deals carried on NSE & BSE
B17: 5 | C17: Call Tracker

Sheet Future Intra
M5: Back to Main Page
A6: FOR INTRA DAY TRADING | L6: =Main!B10 -> 2019-03-29
A9: Sr.no | B9: Sector | C9: Scrip | D9: CLOSE RATE | E9: Pivot Point | F9: Supports | I9: Resistances
B10: Sector | D10: Point | E10: Point | F10: S1 | G10: S2 | H10: S3 | I10: R1 | J10: R2 | K10: R3 | L10: HIGH | M10: LOW | N10: OI | O10: % Change in OI
A11: 1 | B11: Index | C11: BANKNIFTY | D11: 30527.35 | E11: 30400.48 | F11: 30232.07 | G11: 29936.78 | H11: 29768.37 | I11: 30695.77 | J11: 30864.18 | K11: 31159.47 | L11: 30568.9 | M11: 30105.2 | N11: 2282800 | O11: -16.30%
A12: 2 | B12: Index | C12: NIFTY | D12: 11663.60 | E12: 11622.62 | F12: 11565.38 | G12: 11467.17 | H12: 11409.93 | I12: 11720.83 | J12: 11778.07 | K12: 11876.28 | L12: 11679.85 | M12: 11524.4 | N12: 18116550 | O12: -29.90%
A13: 3 | B13: Index | C13: NIFTYIT | D13: 15723.00 | E13: 15667.33 | F13: 15574.67 | G13: 15426.33 | H13: 15333.67 | I13: 15815.67 | J13: 15908.33 | K13: 16056.67 | L13: 15760 | M13: 15519 | N13: 13100 | O13: -33.84%
A14: 4 | B14: Cement | C14: ACC | D14: 1626.60 | E14: 1620.88 | F14: 1605.92 | G14: 1585.23 | H14: 1570.27 | I14: 1641.57 | J14: 1656.53 | K14: 1677.22 | L14: 1635.85 | M14: 1600.2 | N14: 2362400 | O14: -7.46%
A15: 5 | B15: Others | C15: ADANIENT | D15: 138.90 | E15: 140.27 | F15: 136.18 | G15: 133.47 | H15: 129.38 | I15: 142.98 | J15: 147.07 | K15: 149.78 | L15: 144.35 | M15: 137.55 | N15: 39524000 | O15: -2.50%
A16: 6 | B16: Others | C16: ADANIPORTS | D16: 383.80 | E16: 379.42 | F16: 374.38 | G16: 364.97 | H16: 359.93 | I16: 388.83 | J16: 393.87 | K16: 403.28 | L16: 384.45 | M16: 370 | N16: 22320000 | O16: -10.55%
A17: 7 | B17: Power | C17: ADANIPOWER | D17: 47.70 | E17: 47.68 | F17: 47.17 | G17: 46.63 | H17: 46.12 | I17: 48.22 | J17: 48.73 | K17: 49.27 | L17: 48.2 | M17: 47.15 | N17: 165380000 | O17: -5.87%
A18: 8 | B18: Pharma | C18: AJANTPHARM | D18: 1023.35 | E18: 1016.40 | F18: 1004.95 | G18: 986.55 | H18: 975.10 | I18: 1034.80 | J18: 1046.25 | K18: 1064.65 | L18: 1027.85 | M18: 998 | N18: 678000 | O18: -23.39%
A19: 9 | B19: Banking | C19: ALBK | D19: 54.35 | E19: 53.88 | F19: 52.52 | G19: 50.68 | H19: 49.32 | I19: 55.72 | J19: 57.08 | K19: 58.92 | L19: 55.25 | M19: 52.05 | N19: 26286000 | O19: 2.85%
A20: 10 | B20: Automobile | C20: AMARAJABAT | D20: 723.55 | E20: 725.67 | F20: 716.98 | G20: 710.42 | H20: 701.73 | I20: 732.23 | J20: 740.92 | K20: 747.48 | L20: 734.35 | M20: 719.1 | N20: 1275400 | O20: -23.41%
A21: 11 | B21: Cement | C21: AMBUJACEM | D21: 234.00 | E21: 233.25 | F21: 230.50 | G21: 227.00 | H21: 224.25 | I21: 236.75 | J21: 239.50 | K21: 243.00 | L21: 236 | M21: 229.75 | N21: 9772500 | O21: -10.57%
A22: 12 | B22: Others | C22: APOLLOHOSP | D22: 1191.55 | E22: 1183.60 | F22: 1171.45 | G22: 1151.35 | H22: 1139.20 | I22: 1203.70 | J22: 1215.85 | K22: 1235.95 | L22: 1195.75 | M22: 1163.5 | N22: 1305500 | O22: -16.53%
A23: 13 | B23: Automobile | C23: APOLLOTYRE | D23: 219.40 | E23: 217.97 | F23: 216.03 | G23: 212.67 | H23: 210.73 | I23: 221.33 | J23: 223.27 | K23: 226.63 | L23: 219.9 | M23: 214.6 | N23: 11133000 | O23: -11.45%
A24: 14 | B24: Textile | C24: ARVIND | D24: 92.75 | E24: 91.22 | F24: 89.23 | G24: 85.72 | H24: 83.73 | I24: 94.73 | J24: 96.72 | K24: 100.23 | L24: 93.2 | M24: 87.7 | N24: 5012000 | O24: -10.98%
A25: 15 | B25: Automobile | C25: ASHOKLEY | D25: 89.35 | E25: 88.38 | F25: 86.87 | G25: 84.38 | H25: 82.87 | I25: 90.87 | J25: 92.38 | K25: 94.87 | L25: 89.9 | M25: 85.9 | N25: 63420000 | O25: -12.64%
A26: 16 | B26: FMCG | C26: ASIANPAINT | D26: 1509.90 | E26: 1504.23 | F26: 1490.02 | G26: 1470.13 | H26: 1455.92 | I26: 1524.12 | J26: 1538.33 | K26: 1558.22 | L26: 1518.45 | M26: 1484.35 | N26: 5318400 | O26: -15.58%
A27: 17 | B27: Pharma | C27: AUROPHARMA | D27: 776.35 | E27: 777.10 | F27: 770.35 | G27: 764.35 | H27: 757.60 | I27: 783.10 | J27: 789.85 | K27: 795.85 | L27: 783.85 | M27: 771.1 | N27: 14787000 | O27: -9.97%
A28: 18 | B28: Banking | C28: AXISBANK | D28: 784.80 | E28: 779.20 | F28: 768.25 | G28: 751.70 | H28: 740.75 | I28: 795.75 | J28: 806.70 | K28: 823.25 | L28: 790.15 | M28: 762.65 | N28: 31498800 | O28: -15.16%
A29: 19 | B29: Automobile | C29: BAJAJ-AUTO | D29: 2896.45 | E29: 2925.83 | F29: 2846.67 | G29: 2796.88 | H29: 2717.72 | I29: 2975.62 | J29: 3054.78 | K29: 3104.57 | L29: 3005 | M29: 2876.05 | N29: 3631750 | O29: -9.46%
A30: 20 | B30: Others | C30: BAJAJFINSV | D30: 7027.20 | E30: 7006.40 | F30: 6947.80 | G30: 6868.40 | H30: 6809.80 | I30: 7085.80 | J30: 7144.40 | K30: 7223.80 | L30: 7065 | M30: 6927 | N30: 575625 | O30: -21.70%
A31: 21 | B31: Finance | C31: BAJFINANCE | D31: 3013.10 | E31: 2997.15 | F31: 2976.30 | G31: 2939.50 | H31: 2918.65 | I31: 3033.95 | J31: 3054.80 | K31: 3091.60 | L31: 3018 | M31: 2960.35 | N31: 5091250 | O31: -12.48%
A32: 22 | B32: Others | C32: BALKRISIND | D32: 978.35 | E32: 972.80 | F32: 961.10 | G32: 943.85 | H32: 932.15 | I32: 990.05 | J32: 1001.75 | K32: 1019.00 | L32: 984.5 | M32: 955.55 | N32: 1529600 | O32: -14.45%
A33: 23 | B33: Banking | C33: BANKBARODA | D33: 130.80 | E33: 128.22 | F33: 124.88 | G33: 118.97 | H33: 115.63 | I33: 134.13 | J33: 137.47 | K33: 143.38 | L33: 131.55 | M33: 122.3 | N33: 57504000 | O33: -9.78%
A34: 24 | B34: Banking | C34: BANKINDIA | D34: 106.50 | E34: 105.78 | F34: 104.17 | G34: 101.83 | H34: 100.22 | I34: 108.12 | J34: 109.73 | K34: 112.07 | L34: 107.4 | M34: 103.45 | N34: 23130000 | O34: -5.93%
A35: 25 | B35: FMCG | C35: BATAINDIA | D35: 1391.65 | E35: 1386.02 | F35: 1372.03 | G35: 1352.42 | H35: 1338.43 | I35: 1405.63 | J35: 1419.62 | K35: 1439.23 | L35: 1400 | M35: 1366.4 | N35: 1981650 | O35: -13.24%
A36: 26 | B36: Capital_Goods | C36: BEL | D36: 93.35 | E36: 93.18 | F36: 92.47 | G36: 91.58 | H36: 90.87 | I36: 94.07 | J36: 94.78 | K36: 95.67 | L36: 93.9 | M36: 92.3 | N36: 32106000 | O36: -12.51%
A37: 27 | B37: Infrastructure | C37: BEML | D37: 1001.70 | E37: 992.57 | F37: 979.33 | G37: 956.97 | H37: 943.73 | I37: 1014.93 | J37: 1028.17 | K37: 1050.53 | L37: 1005.8 | M37: 970.2 | N37: 1654800 | O37: -7.66%
A38: 28 | B38: Others | C38: BERGEPAINT | D38: 327.10 | E38: 326.87 | F38: 323.98 | G38: 320.87 | H38: 317.98 | I38: 329.98 | J38: 332.87 | K38: 335.98 | L38: 329.75 | M38: 323.75 | N38: 3018400 | O38: -8.84%
A39: 29 | B39: Finance | C39: BHARATFIN | D39: 1147.00 | E39: 1140.72 | F39: 1130.98 | G39: 1114.97 | H39: 1105.23 | I39: 1156.73 | J39: 1166.47 | K39: 1182.48 | L39: 1150.45 | M39: 1124.7 | N39: 4305000 | O39: -3.80%
A40: 30 | B40: Automobile | C40: BHARATFORG | D40: 500.10 | E40: 498.35 | F40: 493.70 | G40: 487.30 | H40: 482.65 | I40: 504.75 | J40: 509.40 | K40: 515.80 | L40: 503 | M40: 491.95 | N40: 9877200 | O40: -7.68%
A41: 31 | B41: Telecom | C41: BHARTIARTL | D41: 333.05 | E41: 329.50 | F41: 323.15 | G41: 313.25 | H41: 306.90 | I41: 339.40 | J41: 345.75 | K41: 355.65 | L41: 335.85 | M41: 319.6 | N41: 30423200 | O41: -15.64%
A42: 32 | B42: Capital_Goods | C42: BHEL | D42: 72.30 | E42: 72.27 | F42: 71.53 | G42: 70.77 | H42: 70.03 | I42: 73.03 | J42: 73.77 | K42: 74.53 | L42: 73 | M42: 71.5 | N42: 58185000 | O42: -2.62%
A43: 33 | B43: Pharma | C43: BIOCON | D43: 613.00 | E43: 607.67 | F43: 601.08 | G43: 589.17 | H43: 582.58 | I43: 619.58 | J43: 626.17 | K43: 638.08 | L43: 614.25 | M43: 595.75 | N43: 6179400 | O43: -1.82%
A44: 34 | B44: Automobile | C44: BOSCHLTD | D44: 18053.75 | E44: 18087.30 | F44: 17964.45 | G44: 17875.15 | H44: 17752.30 | I44: 18176.60 | J44: 18299.45 | K44: 18388.75 | L44: 18210.15 | M44: 17998 | N44: 152070 | O44: -4.25%
A45: 35 | B45: Oil_Gas | C45: BPCL | D45: 389.80 | E45: 387.68 | F45: 382.97 | G45: 376.13 | H45: 371.42 | I45: 394.52 | J45: 399.23 | K45: 406.07 | L45: 392.4 | M45: 380.85 | N45: 7597800 | O45: -18.69%
A46: 36 | B46: FMCG | C46: BRITANNIA | D46: 3100.45 | E46: 3085.90 | F46: 3040.60 | G46: 2980.75 | H46: 2935.45 | I46: 3145.75 | J46: 3191.05 | K46: 3250.90 | L46: 3131.2 | M46: 3026.05 | N46: 1957000 | O46: -39.53%
A47: 37 | B47: Pharma | C47: CADILAHC | D47: 339.55 | E47: 337.87 | F47: 334.73 | G47: 329.92 | H47: 326.78 | I47: 342.68 | J47: 345.82 | K47: 350.63 | L47: 341 | M47: 333.05 | N47: 11702400 | O47: -3.18%
A48: 38 | B48: Banking | C48: CANBK | D48: 297.00 | E48: 294.92 | F48: 288.53 | G48: 280.07 | H48: 273.68 | I48: 303.38 | J48: 309.77 | K48: 318.23 | L48: 301.3 | M48: 286.45 | N48: 10986000 | O48: -20.61%
A49: 39 | B49: Others | C49: CANFINHOME | D49: 349.35 | E49: 346.60 | F49: 342.20 | G49: 335.05 | H49: 330.65 | I49: 353.75 | J49: 358.15 | K49: 365.30 | L49: 351 | M49: 339.45 | N49: 4500000 | O49: -3.62%
A50: 40 | B50: Oil_Gas | C50: CASTROLIND | D50: 166.00 | E50: 165.35 | F50: 163.75 | G50: 161.50 | H50: 159.90 | I50: 167.60 | J50: 169.20 | K50: 171.45 | L50: 166.95 | M50: 163.1 | N50: 6582400 | O50: -4.44%
A51: 41 | B51: Automobile | C51: CEATLTD | D51: 1084.20 | E51: 1076.50 | F51: 1064.50 | G51: 1044.80 | H51: 1032.80 | I51: 1096.20 | J51: 1108.20 | K51: 1127.90 | L51: 1088.5 | M51: 1056.8 | N51: 996800 | O51: -16.43%
A52: 42 | B52: Textile | C52: CENTURYTEX | D52: 914.25 | E52: 912.88 | F52: 905.27 | G52: 896.28 | H52: 888.67 | I52: 921.87 | J52: 929.48 | K52: 938.47 | L52: 920.5 | M52: 903.9 | N52: 4048200 | O52: -5.72%
A53: 43 | B53: Power | C53: CESC | D53: 726.95 | E53: 726.55 | F53: 721.40 | G53: 715.85 | H53: 710.70 | I53: 732.10 | J53: 737.25 | K53: 742.80 | L53: 731.7 | M53: 721 | N53: 1401400 | O53: -10.57%
A54: 44 | B54: Power | C54: CGPOWER | D54: 43.90 | E54: 43.70 | F54: 42.90 | G54: 41.90 | H54: 41.10 | I54: 44.70 | J54: 45.50 | K54: 46.50 | L54: 44.5 | M54: 42.7 | N54: 36432000 | O54: -4.02%
A55: 45 | B55: Others | C55: CHENNPETRO | D55: 267.40 | E55: 266.48 | F55: 263.07 | G55: 258.73 | H55: 255.32 | I55: 270.82 | J55: 274.23 | K55: 278.57 | L55: 269.9 | M55: 262.15 | N55: 1294200 | O55: -17.26%
A56: 46 | B56: Others | C56: CHOLAFIN | D56: 1463.15 | E56: 1452.22 | F56: 1437.08 | G56: 1411.02 | H56: 1395.88 | I56: 1478.28 | J56: 1493.42 | K56: 1519.48 | L56: 1467.35 | M56: 1426.15 | N56: 840000 | O56: -5.51%
A57: 47 | B57: Pharma | C57: CIPLA | D57: 529.50 | E57: 529.05 | F57: 527.05 | G57: 524.60 | H57: 522.60 | I57: 531.50 | J57: 533.50 | K57: 535.95 | L57: 531.05 | M57: 526.6 | N57: 6714000 | O57: -29.32%
A58: 48 | B58: Others | C58: COALINDIA | D58: 234.80 | E58: 234.67 | F58: 232.73 | G58: 230.67 | H58: 228.73 | I58: 236.73 | J58: 238.67 | K58: 240.73 | L58: 236.6 | M58: 232.6 | N58: 36801600 | O58: -22.90%
A59: 49 | B59: FMCG | C59: COLPAL | D59: 1258.10 | E59: 1263.42 | F59: 1248.88 | G59: 1239.67 | H59: 1225.13 | I59: 1272.63 | J59: 1287.17 | K59: 1296.38 | L59: 1277.95 | M59: 1254.2 | N59: 1626800 | O59: -9.75%
A60: 50 | B60: Others | C60: CONCOR | D60: 516.70 | E60: 515.12 | F60: 511.13 | G60: 505.57 | H60: 501.58 | I60: 520.68 | J60: 524.67 | K60: 530.23 | L60: 519.1 | M60: 509.55 | N60: 1259778 | O60: -21.14%
A61: 51 | B61: Capital_Goods | C61: CUMMINSIND | D61: 746.90 | E61: 748.03 | F61: 742.12 | G61: 737.33 | H61: 731.42 | I61: 752.82 | J61: 758.73 | K61: 763.52 | L61: 753.95 | M61: 743.25 | N61: 1337700 | O61: -11.32%
A62: 52 | B62: FMCG | C62: DABUR | D62: 415.45 | E62: 415.75 | F62: 410.90 | G62: 406.35 | H62: 401.50 | I62: 420.30 | J62: 425.15 | K62: 429.70 | L62: 420.6 | M62: 411.2 | N62: 11441250 | O62: -2.15%
A63: 53 | B63: Banking | C63: DCBBANK | D63: 206.95 | E63: 205.95 | F63: 204.25 | G63: 201.55 | H63: 199.85 | I63: 208.65 | J63: 210.35 | K63: 213.05 | L63: 207.65 | M63: 203.25 | N63: 6075000 | O63: -1.82%
A64: 54 | B64: Finance | C64: DHFL | D64: 150.50 | E64: 148.28 | F64: 140.47 | G64: 130.43 | H64: 122.62 | I64: 158.32 | J64: 166.13 | K64: 176.17 | L64: 156.1 | M64: 138.25 | N64: 19816500 | O64: -5.40%
A65: 55 | B65: Media | C65: DISHTV | D65: 39.35 | E65: 38.65 | F65: 37.15 | G65: 34.95 | H65: 33.45 | I65: 40.85 | J65: 42.35 | K65: 44.55 | L65: 40.15 | M65: 36.45 | N65: 62872000 | O65: -2.75%
A66: 56 | B66: Pharma | C66: DIVISLAB | D66: 1669.75 | E66: 1671.83 | F66: 1652.32 | G66: 1634.88 | H66: 1615.37 | I66: 1689.27 | J66: 1708.78 | K66: 1726.22 | L66: 1691.35 | M66: 1654.4 | N66: 2585600 | O66: -9.25%
A67: 57 | B67: Realty | C67: DLF | D67: 195.85 | E67: 195.95 | F67: 192.95 | G67: 190.05 | H67: 187.05 | I67: 198.85 | J67: 201.85 | K67: 204.75 | L67: 198.95 | M67: 193.05 | N67: 33020000 | O67: 0.06%
A68: 58 | B68: Pharma | C68: DRREDDY | D68: 2744.15 | E68: 2751.70 | F68: 2724.90 | G68: 2705.65 | H68: 2678.85 | I68: 2770.95 | J68: 2797.75 | K68: 2817.00 | L68: 2778.5 | M68: 2732.45 | N68: 3319750 | O68: -7.41%
A69: 59 | B69: Automobile | C69: EICHERMOT | D69: 21023.40 | E69: 21110.97 | F69: 20762.53 | G69: 20501.67 | H69: 20153.23 | I69: 21371.83 | J69: 21720.27 | K69: 21981.13 | L69: 21459.4 | M69: 20850.1 | N69: 376800 | O69: -10.84%
A70: 60 | B70: Infrastructure | C70: ENGINERSIN | D70: 116.80 | E70: 117.02 | F70: 115.83 | G70: 114.87 | H70: 113.68 | I70: 117.98 | J70: 119.17 | K70: 120.13 | L70: 118.2 | M70: 116.05 | N70: 9868700 | O70: 1.91%
A71: 61 | B71: Finance | C71: EQUITAS | D71: 136.75 | E71: 136.47 | F71: 135.43 | G71: 134.12 | H71: 133.08 | I71: 137.78 | J71: 138.82 | K71: 140.13 | L71: 137.5 | M71: 135.15 | N71: 12572000 | O71: -5.36%
A72: 62 | B72: Automobile | C72: ESCORTS | D72: 800.30 | E72: 806.03 | F72: 790.02 | G72: 779.73 | H72: 763.72 | I72: 816.32 | J72: 832.33 | K72: 842.62 | L72: 822.05 | M72: 795.75 | N72: 2373800 | O72: -8.52%
A73: 63 | B73: Automobile | C73: EXIDEIND | D73: 223.25 | E73: 225.22 | F73: 220.38 | G73: 217.52 | H73: 212.68 | I73: 228.08 | J73: 232.92 | K73: 235.78 | L73: 230.05 | M73: 222.35 | N73: 6412000 | O73: -2.91%
A74: 64 | B74: Banking | C74: FEDERALBNK | D74: 94.55 | E74: 93.82 | F74: 92.73 | G74: 90.92 | H74: 89.83 | I74: 95.63 | J74: 96.72 | K74: 98.53 | L74: 94.9 | M74: 92 | N74: 54453000 | O74: -0.14%
A75: 65 | B75: Oil_Gas | C75: GAIL | D75: 360.70 | E75: 360.07 | F75: 355.63 | G75: 350.57 | H75: 346.13 | I75: 365.13 | J75: 369.57 | K75: 374.63 | L75: 364.5 | M75: 355 | N75: 8467725 | O75: -26.84%
A76: 66 | B76: Pharma | C76: GLENMARK | D76: 656.80 | E76: 652.28 | F76: 646.57 | G76: 636.33 | H76: 630.62 | I76: 662.52 | J76: 668.23 | K76: 678.47 | L76: 658 | M76: 642.05 | N76: 3848000 | O76: -7.10%
A77: 67 | B77: Infrastructure | C77: GMRINFRA | D77: 20.20 | E77: 20.12 | F77: 19.63 | G77: 19.07 | H77: 18.58 | I77: 20.68 | J77: 21.17 | K77: 21.73 | L77: 20.6 | M77: 19.55 | N77: 166950000 | O77: -15.66%
A78: 68 | B78: Others | C78: GODFRYPHLP | D78: 1150.35 | E78: 1144.22 | F78: 1134.18 | G78: 1118.02 | H78: 1107.98 | I78: 1160.38 | J78: 1170.42 | K78: 1186.58 | L78: 1154.25 | M78: 1128.05 | N78: 444500 | O78: -5.37%
A79: 69 | B79: FMCG | C79: GODREJCP | D79: 699.40 | E79: 699.07 | F79: 695.38 | G79: 691.37 | H79: 687.68 | I79: 703.08 | J79: 706.77 | K79: 710.78 | L79: 702.75 | M79: 695.05 | N79: 5035800 | O79: -8.09%
A80: 70 | B80: FMCG | C80: GODREJIND | D80: 541.50 | E80: 542.78 | F80: 536.22 | G80: 530.93 | H80: 524.37 | I80: 548.07 | J80: 554.63 | K80: 559.92 | L80: 549.35 | M80: 537.5 | N80: 1137000 | O80: 0.53%
A81: 71 | B81: Cement | C81: GRASIM | D81: 837.65 | E81: 838.48 | F81: 829.22 | G81: 820.78 | H81: 811.52 | I81: 846.92 | J81: 856.18 | K81: 864.62 | L81: 847.75 | M81: 830.05 | N81: 11060250 | O81: -10.43%
A82: 72 | B82: Others | C82: GSFC | D82: 103.20 | E82: 102.98 | F82: 101.47 | G82: 99.73 | H82: 98.22 | I82: 104.72 | J82: 106.23 | K82: 107.97 | L82: 104.5 | M82: 101.25 | N82: 10640800 | O82: -3.58%
A83: 73 | B83: Others | C83: HAVELLS | D83: 765.95 | E83: 762.88 | F83: 756.07 | G83: 746.18 | H83: 739.37 | I83: 772.77 | J83: 779.58 | K83: 789.47 | L83: 769.7 | M83: 753 | N83: 4072000 | O83: -12.35%
A84: 74 | B84: Technology | C84: HCLTECH | D84: 1093.75 | E84: 1083.63 | F84: 1069.32 | G84: 1044.88 | H84: 1030.57 | I84: 1108.07 | J84: 1122.38 | K84: 1146.82 | L84: 1097.95 | M84: 1059.2 | N84: 8136800 | O84: -14.97%
A85: 75 | B85: Finance | C85: HDFC | D85: 1964.20 | E85: 1952.38 | F85: 1937.77 | G85: 1911.33 | H85: 1896.72 | I85: 1978.82 | J85: 1993.43 | K85: 2019.87 | L85: 1967 | M85: 1925.95 | N85: 28419500 | O85: -13.71%
A86: 76 | B86: Banking | C86: HDFCBANK | D86: 2320.10 | E86: 2319.80 | F86: 2304.25 | G86: 2288.40 | H86: 2272.85 | I86: 2335.65 | J86: 2351.20 | K86: 2367.05 | L86: 2335.35 | M86: 2303.95 | N86: 9757000 | O86: -34.92%
A87: 77 | B87: Automobile | C87: HEROMOTOCO | D87: 2552.50 | E87: 2554.50 | F87: 2535.00 | G87: 2517.50 | H87: 2498.00 | I87: 2572.00 | J87: 2591.50 | K87: 2609.00 | L87: 2574 | M87: 2537 | N87: 2697600 | O87: -8.09%
A88: 78 | B88: Technology | C88: HEXAWARE | D88: 340.50 | E88: 340.02 | F88: 338.03 | G88: 335.57 | H88: 333.58 | I88: 342.48 | J88: 344.47 | K88: 346.93 | L88: 342 | M88: 337.55 | N88: 2569500 | O88: -4.36%
A89: 79 | B89: Metals | C89: HINDALCO | D89: 204.45 | E89: 205.77 | F89: 202.33 | G89: 200.22 | H89: 196.78 | I89: 207.88 | J89: 211.32 | K89: 213.43 | L89: 209.2 | M89: 203.65 | N89: 32805500 | O89: -5.86%
A90: 80 | B90: Oil_Gas | C90: HINDPETRO | D90: 275.30 | E90: 276.30 | F90: 270.80 | G90: 266.30 | H90: 260.80 | I90: 280.80 | J90: 286.30 | K90: 290.80 | L90: 281.8 | M90: 271.8 | N90: 14431200 | O90: 4.77%
A91: 81 | B91: FMCG | C91: HINDUNILVR | D91: 1700.75 | E91: 1698.12 | F91: 1688.73 | G91: 1676.72 | H91: 1667.33 | I91: 1710.13 | J91: 1719.52 | K91: 1731.53 | L91: 1707.5 | M91: 1686.1 | N91: 12702600 | O91: -12.58%
A92: 82 | B92: Metals | C92: HINDZINC | D92: 278.10 | E92: 276.08 | F92: 272.67 | G92: 267.23 | H92: 263.82 | I92: 281.52 | J92: 284.93 | K92: 290.37 | L92: 279.5 | M92: 270.65 | N92: 3894400 | O92: -15.72%
A93: 83 | B93: Finance | C93: IBULHSGFIN | D93: 817.85 | E93: 801.57 | F93: 775.53 | G93: 733.22 | H93: 707.18 | I93: 843.88 | J93: 869.92 | K93: 912.23 | L93: 827.6 | M93: 759.25 | N93: 17079500 | O93: -3.92%
A94: 84 | B94: Banking | C94: ICICIBANK | D94: 402.40 | E94: 400.55 | F94: 397.45 | G94: 392.50 | H94: 389.40 | I94: 405.50 | J94: 408.60 | K94: 413.55 | L94: 403.65 | M94: 395.6 | N94: 86339000 | O94: -19.81%
A95: 85 | B95: Others | C95: ICICIPRULI | D95: 355.35 | E95: 350.40 | F95: 343.10 | G95: 330.85 | H95: 323.55 | I95: 362.65 | J95: 369.95 | K95: 382.20 | L95: 357.7 | M95: 338.15 | N95: 9316500 | O95: -15.77%
A96: 86 | B96: Banking | C96: IDBI | D96: 45.20 | E96: 44.45 | F96: 43.40 | G96: 41.60 | H96: 40.55 | I96: 46.25 | J96: 47.30 | K96: 49.10 | L96: 45.5 | M96: 42.65 | N96: 25970000 | O96: 3.22%
A97: 87 | B97: Telecom | C97: IDEA | D97: 27.40 | E97: 27.28 | F97: 26.67 | G97: 25.93 | H97: 25.32 | I97: 28.02 | J97: 28.63 | K97: 29.37 | L97: 27.9 | M97: 26.55 | N97: 196392000 | O97: -10.47%
A98: 88 | B98: Finance | C98: IDFC | D98: 47.15 | E98: 47.00 | F98: 46.25 | G98: 45.35 | H98: 44.60 | I98: 47.90 | J98: 48.65 | K98: 49.55 | L98: 47.75 | M98: 46.1 | N98: 92848800 | O98: -21.08%
A99: 89 | B99: Banking | C99: IDFCFIRSTB | D99: 54.60 | E99: 54.17 | F99: 53.43 | G99: 52.27 | H99: 51.53 | I99: 55.33 | J99: 56.07 | K99: 57.23 | L99: 54.9 | M99: 53 | N99: 123288000 | O99: -14.69%
A100: 90 | B100: Finance | C100: IFCI | D100: 13.85 | E100: 13.68 | F100: 13.42 | G100: 12.98 | H100: 12.72 | I100: 14.12 | J100: 14.38 | K100: 14.82 | L100: 13.95 | M100: 13.25 | N100: 53165000 | O100: -2.38%
A101: 91 | B101: Oil_Gas | C101: IGL | D101: 310.75 | E101: 310.03 | F101: 307.52 | G101: 304.28 | H101: 301.77 | I101: 313.27 | J101: 315.78 | K101: 319.02 | L101: 312.55 | M101: 306.8 | N101: 3451250 | O101: -21.07%
A102: 92 | B102: Cement | C102: INDIACEM | D102: 103.40 | E102: 103.12 | F102: 102.28 | G102: 101.17 | H102: 100.33 | I102: 104.23 | J102: 105.07 | K102: 106.18 | L102: 103.95 | M102: 102 | N102: 22851000 | O102: -2.01%
A103: 93 | B103: Banking | C103: INDIANB | D103: 274.60 | E103: 269.48 | F103: 262.97 | G103: 251.33 | H103: 244.82 | I103: 281.12 | J103: 287.63 | K103: 299.27 | L103: 276 | M103: 257.85 | N103: 3744000 | O103: -20.10%
A104: 94 | B104: Others | C104: INDIGO | D104: 1450.25 | E104: 1435.38 | F104: 1415.87 | G104: 1381.48 | H104: 1361.97 | I104: 1469.77 | J104: 1489.28 | K104: 1523.67 | L104: 1454.9 | M104: 1401 | N104: 2194800 | O104: -16.98%
A105: 95 | B105: Banking | C105: INDUSINDBK | D105: 1819.20 | E105: 1809.75 | F105: 1792.50 | G105: 1765.80 | H105: 1748.55 | I105: 1836.45 | J105: 1853.70 | K105: 1880.40 | L105: 1827 | M105: 1783.05 | N105: 6508200 | O105: -23.06%
A106: 96 | B106: Technology | C106: INFIBEAM | D106: 42.60 | E106: 42.53 | F106: 42.07 | G106: 41.53 | H106: 41.07 | I106: 43.07 | J106: 43.53 | K106: 44.07 | L106: 43 | M106: 42 | N106: 13576000 | O106: -13.04%
A107: 97 | B107: Telecom | C107: INFRATEL | D107: 319.35 | E107: 318.52 | F107: 316.18 | G107: 313.02 | H107: 310.68 | I107: 321.68 | J107: 324.02 | K107: 327.18 | L107: 320.85 | M107: 315.35 | N107: 5902000 | O107: -22.87%
A108: 98 | B108: Technology | C108: INFY | D108: 745.10 | E108: 743.35 | F108: 736.65 | G108: 728.20 | H108: 721.50 | I108: 751.80 | J108: 758.50 | K108: 766.95 | L108: 750.05 | M108: 734.9 | N108: 47994000 | O108: -14.16%
A109: 99 | B109: Oil_Gas | C109: IOC | D109: 159.90 | E109: 160.38 | F109: 158.27 | G109: 156.63 | H109: 154.52 | I109: 162.02 | J109: 164.13 | K109: 165.77 | L109: 162.5 | M109: 158.75 | N109: 66664500 | O109: -23.79%
A110: 100 | B110: Infrastructure | C110: IRB | D110: 145.60 | E110: 144.68 | F110: 142.62 | G110: 139.63 | H110: 137.57 | I110: 147.67 | J110: 149.73 | K110: 152.72 | L110: 146.75 | M110: 141.7 | N110: 7760000 | O110: 9.09%
A111: 101 | B111: FMCG | C111: ITC | D111: 301.85 | E111: 300.25 | F111: 296.85 | G111: 291.85 | H111: 288.45 | I111: 305.25 | J111: 308.65 | K111: 313.65 | L111: 303.65 | M111: 295.25 | N111: 57974400 | O111: -25.41%
A112: 102 | B112: Others | C112: JETAIRWAYS | D112: 255.95 | E112: 254.27 | F112: 248.68 | G112: 241.42 | H112: 235.83 | I112: 261.53 | J112: 267.12 | K112: 274.38 | L112: 259.85 | M112: 247 | N112: 5088600 | O112: -19.41%
A113: 103 | B113: Metals | C113: JINDALSTEL | D113: 166.20 | E113: 167.07 | F113: 164.23 | G113: 162.27 | H113: 159.43 | I113: 169.03 | J113: 171.87 | K113: 173.83 | L113: 169.9 | M113: 165.1 | N113: 21890250 | O113: -5.63%
A114: 104 | B114: Others | C114: JISLJALEQS | D114: 59.20 | E114: 58.55 | F114: 57.60 | G114: 56.00 | H114: 55.05 | I114: 60.15 | J114: 61.10 | K114: 62.70 | L114: 59.5 | M114: 56.95 | N114: 40014000 | O114: -6.32%
A115: 105 | B115: Metals | C115: JSWSTEEL | D115: 290.00 | E115: 289.20 | F115: 286.55 | G115: 283.10 | H115: 280.45 | I115: 292.65 | J115: 295.30 | K115: 298.75 | L115: 291.85 | M115: 285.75 | N115: 40218000 | O115: -26.68%
A116: 106 | B116: Others | C116: JUBLFOOD | D116: 1470.95 | E116: 1465.47 | F116: 1454.48 | G116: 1438.02 | H116: 1427.03 | I116: 1481.93 | J116: 1492.92 | K116: 1509.38 | L116: 1476.45 | M116: 1449 | N116: 3123000 | O116: -15.12%
A117: 107 | B117: Others | C117: JUSTDIAL | D117: 612.95 | E117: 612.47 | F117: 601.18 | G117: 589.42 | H117: 578.13 | I117: 624.23 | J117: 635.52 | K117: 647.28 | L117: 623.75 | M117: 600.7 | N117: 2808400 | O117: -21.02%
A118: 108 | B118: Others | C118: KAJARIACER | D118: 581.05 | E118: 578.12 | F118: 572.88 | G118: 564.72 | H118: 559.48 | I118: 586.28 | J118: 591.52 | K118: 599.68 | L118: 583.35 | M118: 569.95 | N118: 2078700 | O118: -11.80%
A119: 109 | B119: Banking | C119: KOTAKBANK | D119: 1350.70 | E119: 1350.13 | F119: 1339.77 | G119: 1328.83 | H119: 1318.47 | I119: 1361.07 | J119: 1371.43 | K119: 1382.37 | L119: 1360.5 | M119: 1339.2 | N119: 10699200 | O119: -29.07%
A120: 110 | B120: Technology | C120: BSOFT | D120: 99.45 | E120: 99.27 | F120: 97.78 | G120: 96.12 | H120: 94.63 | I120: 100.93 | J120: 102.42 | K120: 104.08 | L120: 100.75 | M120: 97.6 | N120: 4797000 | O120: -6.00%
A121: 111 | B121: Others | C121: KSCL | D121: 461.85 | E121: 460.48 | F121: 455.37 | G121: 448.88 | H121: 443.77 | I121: 466.97 | J121: 472.08 | K121: 478.57 | L121: 465.6 | M121: 454 | N121: 1197000 | O121: -17.99%
A122: 112 | B122: Banking | C122: KTKBANK | D122: 134.90 | E122: 134.37 | F122: 132.78 | G122: 130.67 | H122: 129.08 | I122: 136.48 | J122: 138.07 | K122: 140.18 | L122: 135.95 | M122: 132.25 | N122: 16920000 | O122: -1.77%
A123: 113 | B123: Finance | C123: L&TFH | D123: 154.65 | E123: 154.18 | F123: 152.57 | G123: 150.48 | H123: 148.87 | I123: 156.27 | J123: 157.88 | K123: 159.97 | L123: 155.8 | M123: 152.1 | N123: 17712000 | O123: -11.09%
A124: 114 | B124: Finance | C124: LICHSGFIN | D124: 539.55 | E124: 537.28 | F124: 533.57 | G124: 527.58 | H124: 523.87 | I124: 543.27 | J124: 546.98 | K124: 552.97 | L124: 541 | M124: 531.3 | N124: 7616400 | O124: -5.77%
A125: 115 | B125: Capital_Goods | C125: LT | D125: 1395.90 | E125: 1390.30 | F125: 1379.60 | G125: 1363.30 | H125: 1352.60 | I125: 1406.60 | J125: 1417.30 | K125: 1433.60 | L125: 1401 | M125: 1374 | N125: 6278625 | O125: -35.55%
A126: 116 | B126: Pharma | C126: LUPIN | D126: 732.65 | E126: 731.15 | F126: 727.30 | G126: 721.95 | H126: 718.10 | I126: 736.50 | J126: 740.35 | K126: 745.70 | L126: 735 | M126: 725.8 | N126: 10836700 | O126: -8.18%
A127: 117 | B127: Automobile | C127: M&M | D127: 662.75 | E127: 662.98 | F127: 658.57 | G127: 654.38 | H127: 649.97 | I127: 667.17 | J127: 671.58 | K127: 675.77 | L127: 667.4 | M127: 658.8 | N127: 18806000 | O127: -9.36%
A128: 118 | B128: Finance | C128: M&MFIN | D128: 433.75 | E128: 433.77 | F128: 428.33 | G128: 422.92 | H128: 417.48 | I128: 439.18 | J128: 444.62 | K128: 450.03 | L128: 439.2 | M128: 428.35 | N128: 11391250 | O128: -7.23%
A129: 119 | B129: Others | C129: MANAPPURAM | D129: 127.25 | E129: 125.98 | F129: 124.17 | G129: 121.08 | H129: 119.27 | I129: 129.07 | J129: 130.88 | K129: 133.97 | L129: 127.8 | M129: 122.9 | N129: 9714000 | O129: -4.26%
A130: 120 | B130: FMCG | C130: MARICO | D130: 341.05 | E130: 340.65 | F130: 337.45 | G130: 333.85 | H130: 330.65 | I130: 344.25 | J130: 347.45 | K130: 351.05 | L130: 343.85 | M130: 337.05 | N130: 5389800 | O130: -22.85%
A131: 121 | B131: Automobile | C131: MARUTI | D131: 6655.25 | E131: 6628.00 | F131: 6577.25 | G131: 6499.25 | H131: 6448.50 | I131: 6706.00 | J131: 6756.75 | K131: 6834.75 | L131: 6678.75 | M131: 6550 | N131: 3002550 | O131: -13.37%
A132: 122 | B132: FMCG | C132: MCDOWELL-N | D132: 538.00 | E132: 540.70 | F132: 533.40 | G132: 528.80 | H132: 521.50 | I132: 545.30 | J132: 552.60 | K132: 557.20 | L132: 548 | M132: 536.1 | N132: 11490000 | O132: -8.18%
A133: 123 | B133: Others | C133: MCX | D133: 816.10 | E133: 809.72 | F133: 797.43 | G133: 778.77 | H133: 766.48 | I133: 828.38 | J133: 840.67 | K133: 859.33 | L133: 822 | M133: 791.05 | N133: 2054500 | O133: -10.79%
A134: 124 | B134: Finance | C134: MFSL | D134: 442.85 | E134: 444.18 | F134: 436.67 | G134: 430.48 | H134: 422.97 | I134: 450.37 | J134: 457.88 | K134: 464.07 | L134: 451.7 | M134: 438 | N134: 1545600 | O134: -1.23%
A135: 125 | B135: Others | C135: MGL | D135: 1038.40 | E135: 1028.20 | F135: 1011.10 | G135: 983.80 | H135: 966.70 | I135: 1055.50 | J135: 1072.60 | K135: 1099.90 | L135: 1045.3 | M135: 1000.9 | N135: 474000 | O135: -27.05%
A136: 126 | B136: Technology | C136: MINDTREE | D136: 949.10 | E136: 950.37 | F136: 943.73 | G136: 938.37 | H136: 931.73 | I136: 955.73 | J136: 962.37 | K136: 967.73 | L136: 957 | M136: 945 | N136: 4114200 | O136: -11.99%
A137: 127 | B137: Automobile | C137: MOTHERSUMI | D137: 146.60 | E137: 145.73 | F137: 144.17 | G137: 141.73 | H137: 140.17 | I137: 148.17 | J137: 149.73 | K137: 152.17 | L137: 147.3 | M137: 143.3 | N137: 34140150 | O137: -7.34%
A138: 128 | B138: Automobile | C138: MRF | D138: 56743.25 | E138: 56856.33 | F138: 56486.92 | G138: 56230.58 | H138: 55861.17 | I138: 57112.67 | J138: 57482.08 | K138: 57738.42 | L138: 57225.75 | M138: 56600 | N138: 33460 | O138: -9.57%
A139: 129 | B139: Others | C139: MRPL | D139: 75.05 | E139: 75.12 | F139: 74.63 | G139: 74.22 | H139: 73.73 | I139: 75.53 | J139: 76.02 | K139: 76.43 | L139: 75.6 | M139: 74.7 | N139: 3619000 | O139: -3.72%
A140: 130 | B140: Finance | C140: MUTHOOTFIN | D140: 616.05 | E140: 611.17 | F140: 604.88 | G140: 593.72 | H140: 587.43 | I140: 622.33 | J140: 628.62 | K140: 639.78 | L140: 617.45 | M140: 600 | N140: 2715000 | O140: 4.02%
A141: 131 | B141: Others | C141: NATIONALUM | D141: 53.60 | E141: 53.63 | F141: 53.17 | G141: 52.73 | H141: 52.27 | I141: 54.07 | J141: 54.53 | K141: 54.97 | L141: 54.1 | M141: 53.2 | N141: 29984000 | O141: -1.63%
A142: 132 | B142: Others | C142: NBCC | D142: 65.60 | E142: 65.40 | F142: 64.80 | G142: 64.00 | H142: 63.40 | I142: 66.20 | J142: 66.80 | K142: 67.60 | L142: 66 | M142: 64.6 | N142: 33536000 | O142: -13.25%
A143: 133 | B143: Infrastructure | C143: NCC | D143: 112.40 | E143: 112.80 | F143: 111.10 | G143: 109.80 | H143: 108.10 | I143: 114.10 | J143: 115.80 | K143: 117.10 | L143: 114.5 | M143: 111.5 | N143: 35048000 | O143: -11.39%
A144: 134 | B144: Others | C144: NESTLEIND | D144: 11121.25 | E144: 11037.98 | F144: 10912.82 | G144: 10704.38 | H144: 10579.22 | I144: 11246.42 | J144: 11371.58 | K144: 11580.02 | L144: 11163.15 | M144: 10829.55 | N144: 330300 | O144: -7.98%
A145: 135 | B145: Power | C145: NHPC | D145: 24.90 | E145: 24.90 | F145: 24.80 | G145: 24.70 | H145: 24.60 | I145: 25.00 | J145: 25.10 | K145: 25.20 | L145: 25 | M145: 24.8 | N145: 24516000 | O145: -11.84%
A146: 136 | B146: Technology | C146: NIITTECH | D146: 1336.75 | E146: 1335.18 | F146: 1326.87 | G146: 1316.98 | H146: 1308.67 | I146: 1345.07 | J146: 1353.38 | K146: 1363.27 | L146: 1343.5 | M146: 1325.3 | N146: 1223250 | O146: -15.36%
A147: 137 | B147: Metals | C147: NMDC | D147: 102.20 | E147: 102.90 | F147: 100.90 | G147: 99.60 | H147: 97.60 | I147: 104.20 | J147: 106.20 | K147: 107.50 | L147: 104.9 | M147: 101.6 | N147: 15216000 | O147: -0.08%
A148: 138 | B148: Power | C148: NTPC | D148: 136.80 | E148: 137.10 | F148: 135.95 | G148: 135.10 | H148: 133.95 | I148: 137.95 | J148: 139.10 | K148: 139.95 | L148: 138.25 | M148: 136.25 | N148: 76848000 | O148: -26.78%
A149: 139 | B149: Technology | C149: OFSS | D149: 3397.95 | E149: 3396.42 | F149: 3366.53 | G149: 3335.12 | H149: 3305.23 | I149: 3427.83 | J149: 3457.72 | K149: 3489.13 | L149: 3426.3 | M149: 3365 | N149: 202650 | O149: -0.52%
A150: 140 | B150: Oil_Gas | C150: OIL | D150: 183.30 | E150: 183.57 | F150: 180.38 | G150: 177.47 | H150: 174.28 | I150: 186.48 | J150: 189.67 | K150: 192.58 | L150: 186.75 | M150: 180.65 | N150: 8779617 | O150: -21.51%
A151: 141 | B151: Oil_Gas | C151: ONGC | D151: 157.20 | E151: 157.78 | F151: 156.07 | G151: 154.93 | H151: 153.22 | I151: 158.92 | J151: 160.63 | K151: 161.77 | L151: 159.5 | M151: 156.65 | N151: 52492500 | O151: -22.69%
A152: 142 | B152: Banking | C152: ORIENTBANK | D152: 112.40 | E152: 112.80 | F152: 111.20 | G152: 110.00 | H152: 108.40 | I152: 114.00 | J152: 115.60 | K152: 116.80 | L152: 114.4 | M152: 111.6 | N152: 14259000 | O152: -15.27%
A153: 143 | B153: Textile | C153: PAGEIND | D153: 24445.05 | E153: 24443.95 | F153: 23939.00 | G153: 23432.95 | H153: 22928.00 | I153: 24950.00 | J153: 25454.95 | K153: 25961.00 | L153: 24948.9 | M153: 23937.9 | N153: 88450 | O153: -12.60%
A154: 144 | B154: Others | C154: PCJEWELLER | D154: 83.30 | E154: 82.67 | F154: 81.63 | G154: 79.97 | H154: 78.93 | I154: 84.33 | J154: 85.37 | K154: 87.03 | L154: 83.7 | M154: 81 | N154: 10991500 | O154: -6.11%
A155: 145 | B155: Pharma | C155: PEL | D155: 2687.10 | E155: 2666.15 | F155: 2634.30 | G155: 2581.50 | H155: 2549.65 | I155: 2718.95 | J155: 2750.80 | K155: 2803.60 | L155: 2698 | M155: 2613.35 | N155: 2989196 | O155: -13.88%
A156: 146 | B156: Oil_Gas | C156: PETRONET | D156: 246.55 | E156: 243.98 | F156: 240.22 | G156: 233.88 | H156: 230.12 | I156: 250.32 | J156: 254.08 | K156: 260.42 | L156: 247.75 | M156: 237.65 | N156: 8721000 | O156: -19.81%
A157: 147 | B157: Finance | C157: PFC | D157: 118.50 | E157: 118.63 | F157: 117.27 | G157: 116.03 | H157: 114.67 | I157: 119.87 | J157: 121.23 | K157: 122.47 | L157: 120 | M157: 117.4 | N157: 29530600 | O157: -20.72%
A158: 148 | B158: FMCG | C158: PIDILITIND | D158: 1234.60 | E158: 1235.63 | F158: 1220.27 | G158: 1205.93 | H158: 1190.57 | I158: 1249.97 | J158: 1265.33 | K158: 1279.67 | L158: 1251 | M158: 1221.3 | N158: 2459500 | O158: -4.89%
A159: 149 | B159: Banking | C159: PNB | D159: 96.35 | E159: 95.70 | F159: 94.70 | G159: 93.05 | H159: 92.05 | I159: 97.35 | J159: 98.35 | K159: 100.00 | L159: 96.7 | M159: 94.05 | N159: 101395000 | O159: -6.94%
A160: 150 | B160: Power | C160: POWERGRID | D160: 199.75 | E160: 199.70 | F160: 198.35 | G160: 196.95 | H160: 195.60 | I160: 201.10 | J160: 202.45 | K160: 203.85 | L160: 201.05 | M160: 198.3 | N160: 15344000 | O160: -26.40%
A161: 151 | B161: Others | C161: PVR | D161: 1648.95 | E161: 1638.82 | F161: 1617.63 | G161: 1586.32 | H161: 1565.13 | I161: 1670.13 | J161: 1691.32 | K161: 1722.63 | L161: 1660 | M161: 1607.5 | N161: 546800 | O161: -21.66%
A162: 152 | B162: Cement | C162: RAMCOCEM | D162: 716.10 | E162: 715.75 | F162: 709.50 | G162: 702.90 | H162: 696.65 | I162: 722.35 | J162: 728.60 | K162: 735.20 | L162: 722 | M162: 709.15 | N162: 1568800 | O162: 4.42%
A163: 153 | B163: Others | C163: RAYMOND | D163: 801.80 | E163: 803.70 | F163: 796.15 | G163: 790.50 | H163: 782.95 | I163: 809.35 | J163: 816.90 | K163: 822.55 | L163: 811.25 | M163: 798.05 | N163: 3187200 | O163: -9.04%
A164: 154 | B164: Banking | C164: RBLBANK | D164: 677.35 | E164: 675.77 | F164: 671.13 | G164: 664.92 | H164: 660.28 | I164: 681.98 | J164: 686.62 | K164: 692.83 | L164: 680.4 | M164: 669.55 | N164: 6391200 | O164: -27.39%
A165: 155 | B165: Power | C165: RECLTD | D165: 149.85 | E165: 149.55 | F165: 148.00 | G165: 146.15 | H165: 144.60 | I165: 151.40 | J165: 152.95 | K165: 154.80 | L165: 151.1 | M165: 147.7 | N165: 36000000 | O165: -20.83%
A166: 156 | B166: Finance | C166: RELCAPITAL | D166: 202.60 | E166: 203.23 | F166: 199.02 | G166: 195.43 | H166: 191.22 | I166: 206.82 | J166: 211.03 | K166: 214.62 | L166: 207.45 | M166: 199.65 | N166: 8454000 | O166: -17.02%
A167: 157 | B167: Oil_Gas | C167: RELIANCE | D167: 1372.35 | E167: 1368.75 | F167: 1357.70 | G167: 1343.05 | H167: 1332.00 | I167: 1383.40 | J167: 1394.45 | K167: 1409.10 | L167: 1379.8 | M167: 1354.1 | N167: 44068000 | O167: -18.68%
A168: 158 | B168: Power | C168: RELINFRA | D168: 136.60 | E168: 135.27 | F168: 133.13 | G168: 129.67 | H168: 127.53 | I168: 138.73 | J168: 140.87 | K168: 144.33 | L168: 137.4 | M168: 131.8 | N168: 10501400 | O168: -3.87%
A169: 159 | B169: Others | C169: REPCOHOME | D169: 476.05 | E169: 477.07 | F169: 470.18 | G169: 464.32 | H169: 457.43 | I169: 482.93 | J169: 489.82 | K169: 495.68 | L169: 483.95 | M169: 471.2 | N169: 1072500 | O169: -22.50%
A170: 160 | B170: Power | C170: RPOWER | D170: 10.80 | E170: 10.75 | F170: 10.60 | G170: 10.40 | H170: 10.25 | I170: 10.95 | J170: 11.10 | K170: 11.30 | L170: 10.9 | M170: 10.55 | N170: 100736000 | O170: 17.33%
A171: 161 | B171: Metals | C171: SAIL | D171: 51.10 | E171: 51.02 | F171: 50.58 | G171: 50.07 | H171: 49.63 | I171: 51.53 | J171: 51.97 | K171: 52.48 | L171: 51.45 | M171: 50.5 | N171: 96600000 | O171: -14.95%
A172: 162 | B172: Banking | C172: SBIN | D172: 320.50 | E172: 317.80 | F172: 313.90 | G172: 307.30 | H172: 303.40 | I172: 324.40 | J172: 328.30 | K172: 334.90 | L172: 321.7 | M172: 311.2 | N172: 67905000 | O172: -17.22%
A173: 163 | B173: Cement | C173: SHREECEM | D173: 18409.85 | E173: 18265.88 | F173: 17994.97 | G173: 17580.08 | H173: 17309.17 | I173: 18680.77 | J173: 18951.68 | K173: 19366.57 | L173: 18536.8 | M173: 17851 | N173: 79000 | O173: -4.30%
A174: 164 | B174: Capital_Goods | C174: SIEMENS | D174: 1097.30 | E174: 1090.05 | F174: 1079.25 | G174: 1061.20 | H174: 1050.40 | I174: 1108.10 | J174: 1118.90 | K174: 1136.95 | L174: 1100.85 | M174: 1072 | N174: 1925000 | O174: -4.61%
A175: 165 | B175: Banking | C175: SOUTHBANK | D175: 16.70 | E175: 16.52 | F175: 16.18 | G175: 15.67 | H175: 15.33 | I175: 17.03 | J175: 17.37 | K175: 17.88 | L175: 16.85 | M175: 16 | N175: 135248421 | O175: -18.62%
A176: 166 | B176: Textile | C176: SRF | D176: 2476.50 | E176: 2460.50 | F176: 2437.00 | G176: 2397.50 | H176: 2374.00 | I176: 2500.00 | J176: 2523.50 | K176: 2563.00 | L176: 2484 | M176: 2421 | N176: 739500 | O176: -22.52%
A177: 167 | B177: Finance | C177: SRTRANSFIN | D177: 1289.20 | E177: 1285.28 | F177: 1271.57 | G177: 1253.93 | H177: 1240.22 | I177: 1302.92 | J177: 1316.63 | K177: 1334.27 | L177: 1299 | M177: 1267.65 | N177: 3362400 | O177: -12.03%
A178: 168 | B178: Pharma | C178: STAR | D178: 469.80 | E178: 467.55 | F178: 462.30 | G178: 454.80 | H178: 449.55 | I178: 475.05 | J178: 480.30 | K178: 487.80 | L178: 472.8 | M178: 460.05 | N178: 3897300 | O178: 1.64%
A179: 169 | B179: Pharma | C179: SUNPHARMA | D179: 480.55 | E179: 477.82 | F179: 471.38 | G179: 462.22 | H179: 455.78 | I179: 486.98 | J179: 493.42 | K179: 502.58 | L179: 484.25 | M179: 468.65 | N179: 50719900 | O179: -3.63%
A180: 170 | B180: Media | C180: SUNTV | D180: 611.55 | E180: 606.38 | F180: 597.77 | G180: 583.98 | H180: 575.37 | I180: 620.17 | J180: 628.78 | K180: 642.57 | L180: 615 | M180: 592.6 | N180: 6252000 | O180: -3.76%
A181: 171 | B181: Power | C181: SUZLON | D181: 6.60 | E181: 6.65 | F181: 6.45 | G181: 6.30 | H181: 6.10 | I181: 6.80 | J181: 7.00 | K181: 7.15 | L181: 6.85 | M181: 6.5 | N181: 262884000 | O181: -5.67%
A182: 172 | B182: Banking | C182: SYNDIBANK | D182: 43.20 | E182: 42.47 | F182: 41.13 | G182: 39.07 | H182: 37.73 | I182: 44.53 | J182: 45.87 | K182: 47.93 | L182: 43.8 | M182: 40.4 | N182: 28170000 | O182: -1.52%
A183: 173 | B183: Fertilisers | C183: TATACHEM | D183: 593.15 | E183: 590.42 | F183: 585.83 | G183: 578.52 | H183: 573.93 | I183: 597.73 | J183: 602.32 | K183: 609.63 | L183: 595 | M183: 583.1 | N183: 3743250 | O183: -8.87%
A184: 174 | B184: Telecom | C184: TATACOMM | D184: 613.75 | E184: 610.75 | F184: 604.55 | G184: 595.35 | H184: 589.15 | I184: 619.95 | J184: 626.15 | K184: 635.35 | L184: 616.95 | M184: 601.55 | N184: 2898000 | O184: -4.04%
A185: 175 | B185: Technology | C185: TATAELXSI | D185: 968.55 | E185: 964.50 | F185: 957.05 | G185: 945.55 | H185: 938.10 | I185: 976.00 | J185: 983.45 | K185: 994.95 | L185: 971.95 | M185: 953 | N185: 1359600 | O185: -17.96%
A186: 176 | B186: FMCG | C186: TATAGLOBAL | D186: 201.05 | E186: 200.40 | F186: 198.55 | G186: 196.05 | H186: 194.20 | I186: 202.90 | J186: 204.75 | K186: 207.25 | L186: 202.25 | M186: 197.9 | N186: 13425750 | O186: -3.43%
A187: 177 | B187: Automobile | C187: TATAMOTORS | D187: 172.15 | E187: 171.20 | F187: 169.70 | G187: 167.25 | H187: 165.75 | I187: 173.65 | J187: 175.15 | K187: 177.60 | L187: 172.7 | M187: 168.75 | N187: 54476000 | O187: -10.38%
A188: 178 | B188: Automobile | C188: TATAMTRDVR | D188: 85.50 | E188: 85.42 | F188: 84.68 | G188: 83.87 | H188: 83.13 | I188: 86.23 | J188: 86.97 | K188: 87.78 | L188: 86.15 | M188: 84.6 | N188: 30092200 | O188: -3.81%
A189: 179 | B189: Power | C189: TATAPOWER | D189: 72.10 | E189: 72.33 | F189: 71.52 | G189: 70.93 | H189: 70.12 | I189: 72.92 | J189: 73.73 | K189: 74.32 | L189: 73.15 | M189: 71.75 | N189: 47655000 | O189: -9.69%
A190: 180 | B190: Metals | C190: TATASTEEL | D190: 511.50 | E190: 513.75 | F190: 507.75 | G190: 504.00 | H190: 498.00 | I190: 517.50 | J190: 523.50 | K190: 527.25 | L190: 519.75 | M190: 510 | N190: 27915971 | O190: -3.62%
A191: 181 | B191: Technology | C191: TCS | D191: 2017.00 | E191: 2011.38 | F191: 1992.77 | G191: 1968.53 | H191: 1949.92 | I191: 2035.62 | J191: 2054.23 | K191: 2078.47 | L191: 2030 | M191: 1987.15 | N191: 14122000 | O191: -15.48%
A192: 182 | B192: Technology | C192: TECHM | D192: 779.60 | E192: 779.90 | F192: 772.95 | G192: 766.30 | H192: 759.35 | I192: 786.55 | J192: 793.50 | K192: 800.15 | L192: 786.85 | M192: 773.25 | N192: 12314400 | O192: -19.09%
A193: 183 | B193: FMCG | C193: TITAN | D193: 1139.20 | E193: 1134.07 | F193: 1124.38 | G193: 1109.57 | H193: 1099.88 | I193: 1148.88 | J193: 1158.57 | K193: 1173.38 | L193: 1143.75 | M193: 1119.25 | N193: 9167250 | O193: -10.22%
A194: 184 | B194: Pharma | C194: TORNTPHARM | D194: 1947.65 | E194: 1933.15 | F194: 1915.00 | G194: 1882.35 | H194: 1864.20 | I194: 1965.80 | J194: 1983.95 | K194: 2016.60 | L194: 1951.3 | M194: 1900.5 | N194: 618500 | O194: 0.16%
A195: 185 | B195: Power | C195: TORNTPOWER | D195: 252.50 | E195: 253.40 | F195: 250.15 | G195: 247.80 | H195: 244.55 | I195: 255.75 | J195: 259.00 | K195: 261.35 | L195: 256.65 | M195: 251.05 | N195: 2796000 | O195: -0.11%
A196: 186 | B196: Media | C196: TV18BRDCST | D196: 35.20 | E196: 35.17 | F196: 34.83 | G196: 34.47 | H196: 34.13 | I196: 35.53 | J196: 35.87 | K196: 36.23 | L196: 35.5 | M196: 34.8 | N196: 62322000 | O196: -0.85%
A197: 187 | B197: Automobile | C197: TVSMOTOR | D197: 465.95 | E197: 463.53 | F197: 459.42 | G197: 452.88 | H197: 448.77 | I197: 470.07 | J197: 474.18 | K197: 480.72 | L197: 467.65 | M197: 457 | N197: 4990000 | O197: -21.48%
A198: 188 | B198: FMCG | C198: UBL | D198: 1378.40 | E198: 1370.03 | F198: 1354.67 | G198: 1330.93 | H198: 1315.57 | I198: 1393.77 | J198: 1409.13 | K198: 1432.87 | L198: 1385.4 | M198: 1346.3 | N198: 2367400 | O198: -8.00%
A199: 189 | B199: Finance | C199: UJJIVAN | D199: 336.55 | E199: 336.48 | F199: 334.32 | G199: 332.08 | H199: 329.92 | I199: 338.72 | J199: 340.88 | K199: 343.12 | L199: 338.65 | M199: 334.25 | N199: 3171200 | O199: -22.00%
A200: 190 | B200: Cement | C200: ULTRACEMCO | D200: 3944.25 | E200: 3956.58 | F200: 3919.17 | G200: 3894.08 | H200: 3856.67 | I200: 3981.67 | J200: 4019.08 | K200: 4044.17 | L200: 3994 | M200: 3931.5 | N200: 1805400 | O200: -11.44%
A201: 191 | B201: Banking | C201: UNIONBANK | D201: 97.55 | E201: 96.48 | F201: 94.87 | G201: 92.18 | H201: 90.57 | I201: 99.17 | J201: 100.78 | K201: 103.47 | L201: 98.1 | M201: 93.8 | N201: 32067000 | O201: -4.24%
A202: 192 | B202: Fertilisers | C202: UPL | D202: 935.00 | E202: 925.83 | F202: 912.77 | G202: 890.53 | H202: 877.47 | I202: 948.07 | J202: 961.13 | K202: 983.37 | L202: 938.9 | M202: 903.6 | N202: 13086000 | O202: -8.38%
A203: 193 | B203: Metals | C203: VEDL | D203: 179.50 | E203: 178.87 | F203: 177.33 | G203: 175.17 | H203: 173.63 | I203: 181.03 | J203: 182.57 | K203: 184.73 | L203: 180.4 | M203: 176.7 | N203: 30624500 | O203: -15.85%
A204: 194 | B204: Others | C204: VGUARD | D204: 218.95 | E204: 218.35 | F204: 215.70 | G204: 212.45 | H204: 209.80 | I204: 221.60 | J204: 224.25 | K204: 227.50 | L204: 221 | M204: 215.1 | N204: 3267000 | O204: -12.39%
A205: 195 | B205: Capital_Goods | C205: VOLTAS | D205: 620.05 | E205: 623.60 | F205: 613.20 | G205: 606.35 | H205: 595.95 | I205: 630.45 | J205: 640.85 | K205: 647.70 | L205: 634 | M205: 616.75 | N205: 4702000 | O205: -18.00%
A206: 196 | B206: Technology | C206: WIPRO | D206: 257.20 | E206: 257.63 | F206: 255.62 | G206: 254.03 | H206: 252.02 | I206: 259.22 | J206: 261.23 | K206: 262.82 | L206: 259.65 | M206: 256.05 | N206: 31318400 | O206: -15.86%
... 18 more rows

Sheet Cash Intra
M5: Back to Main Page
A6: FOR INTRA DAY TRADING | K6: =Main!B10 -> 2019-03-29
A8: Sr.no | B8: Scrip | C8: CLOSE RATE | D8: Pivot Point | E8: Supports | H8: Resistances
C9: Point | E9: S1 | F9: S2 | G9: S3 | H9: R1 | I9: R2 | J9: R3 | K9: HIGH | L9: LOW | M9: Total Trade Quanity in Lakhs
A10: 1 | B10: Nifty 50 | C10: 11570 | D10: 11536.98 | E10: 11485.47 | F10: 11400.93 | G10: 11349.42 | H10: 11621.52 | I10: 11673.03 | J10: 11757.57 | K10: 11588.5 | L10: 11452.45
A11: 2 | B11: Nifty Bank | C11: 30420.55 | D11: 30295.23 | E11: 30094.42 | F11: 29768.28 | G11: 29567.47 | H11: 30621.37 | I11: 30822.18 | J11: 31148.32 | K11: 30496.05 | L11: 29969.1
A12: 3 | B12: Nifty CPSE | C12: 2244.2 | D12: 2250.00 | E12: 2231.35 | F12: 2218.50 | G12: 2199.85 | H12: 2262.85 | I12: 2281.50 | J12: 2294.35 | K12: 2268.65 | L12: 2237.15
A13: 4 | B13: Nifty Infra | C13: 3197.6 | D13: 3188.52 | E13: 3172.03 | F13: 3146.47 | G13: 3129.98 | H13: 3214.08 | I13: 3230.57 | J13: 3256.13 | K13: 3205 | L13: 3162.95
A14: 5 | B14: Nifty IT | C14: 15566.75 | D14: 15534.23 | E14: 15431.97 | F14: 15297.18 | G14: 15194.92 | H14: 15669.02 | I14: 15771.28 | J14: 15906.07 | K14: 15636.5 | L14: 15399.45
A15: 6 | B15: Nifty PSE | C15: 3543.7 | D15: 3547.78 | E15: 3532.62 | F15: 3521.53 | G15: 3506.37 | H15: 3558.87 | I15: 3574.03 | J15: 3585.12 | K15: 3562.95 | L15: 3536.7
A16: 7 | B16: Nifty Midcap 50 | C16: 5024.85 | D16: 5017.52 | E16: 4990.63 | F16: 4956.42 | G16: 4929.53 | H16: 5051.73 | I16: 5078.62 | J16: 5112.83 | K16: 5044.4 | L16: 4983.3
A17: 8 | B17: ABB | C17: 1314.9 | D17: 1318.35 | E17: 1305.00 | F17: 1295.10 | G17: 1281.75 | H17: 1328.25 | I17: 1341.60 | J17: 1351.50 | K17: 1331.7 | L17: 1308.45 | M17: 1.54138
A18: 9 | B18: ACC | C18: 1617.8 | D18: 1611.40 | E18: 1593.40 | F18: 1569.00 | G18: 1551.00 | H18: 1635.80 | I18: 1653.80 | J18: 1678.20 | K18: 1629.4 | L18: 1587 | M18: 9.42173
A19: 10 | B19: AIAENG | C19: 1837.15 | D19: 1821.72 | E19: 1778.43 | F19: 1719.72 | G19: 1676.43 | H19: 1880.43 | I19: 1923.72 | J19: 1982.43 | K19: 1865 | L19: 1763 | M19: 0.56612
A20: 11 | B20: AUBANK | C20: 588.35 | D20: 582.45 | E20: 574.90 | F20: 561.45 | G20: 553.90 | H20: 595.90 | I20: 603.45 | J20: 616.90 | K20: 590 | L20: 569 | M20: 3.07345
A21: 12 | B21: ADANIENT | C21: 137.8 | D21: 139.08 | E21: 135.02 | F21: 132.23 | G21: 128.17 | H21: 141.87 | I21: 145.93 | J21: 148.72 | K21: 143.15 | L21: 136.3 | M21: 39.66292
A22: 13 | B22: ADANIPORTS | C22: 381.3 | D22: 376.75 | E22: 370.85 | F22: 360.40 | G22: 354.50 | H22: 387.20 | I22: 393.10 | J22: 403.55 | K22: 382.65 | L22: 366.3 | M22: 59.09606
A23: 14 | B23: ADANIPOWER | C23: 46.9 | D23: 47.03 | E23: 46.47 | F23: 46.03 | G23: 45.47 | H23: 47.47 | I23: 48.03 | J23: 48.47 | K23: 47.6 | L23: 46.6 | M23: 85.21212
A24: 15 | B24: ABFRL | C24: 221.65 | D24: 222.55 | E24: 219.40 | F24: 217.15 | G24: 214.00 | H24: 224.80 | I24: 227.95 | J24: 230.20 | K24: 225.7 | L24: 220.3 | M24: 11.25372
A25: 16 | B25: AJANTPHARM | C25: 1025.4 | D25: 1020.50 | E25: 1010.20 | F25: 995.00 | G25: 984.70 | H25: 1035.70 | I25: 1046.00 | J25: 1061.20 | K25: 1030.8 | L25: 1005.3 | M25: 3.08064
A26: 17 | B26: ALKEM | C26: 1741.7 | D26: 1748.63 | E26: 1728.47 | F26: 1715.23 | G26: 1695.07 | H26: 1761.87 | I26: 1782.03 | J26: 1795.27 | K26: 1768.8 | L26: 1735.4 | M26: 0.65921
A27: 18 | B27: AMARAJABAT | C27: 717.45 | D27: 720.40 | E27: 709.55 | F27: 701.65 | G27: 690.80 | H27: 728.30 | I27: 739.15 | J27: 747.05 | K27: 731.25 | L27: 712.5 | M27: 18.64739
A28: 19 | B28: AMBUJACEM | C28: 231.85 | D28: 231.42 | E28: 227.93 | F28: 224.02 | G28: 220.53 | H28: 235.33 | I28: 238.82 | J28: 242.73 | K28: 234.9 | L28: 227.5 | M28: 51.96003
A29: 20 | B29: APOLLOHOSP | C29: 1182.95 | D29: 1174.98 | E29: 1161.97 | F29: 1140.98 | G29: 1127.97 | H29: 1195.97 | I29: 1208.98 | J29: 1229.97 | K29: 1188 | L29: 1154 | M29: 6.93131
A30: 21 | B30: APOLLOTYRE | C30: 217.45 | D30: 216.70 | E30: 213.50 | F30: 209.55 | G30: 206.35 | H30: 220.65 | I30: 223.85 | J30: 227.80 | K30: 219.9 | L30: 212.75 | M30: 18.65135
A31: 22 | B31: ARVIND | C31: 91.85 | D31: 90.90 | E31: 89.30 | F31: 86.75 | G31: 85.15 | H31: 93.45 | I31: 95.05 | J31: 97.60 | K31: 92.5 | L31: 88.35 | M31: 42.15414
A32: 23 | B32: ASHOKLEY | C32: 88.6 | D32: 87.87 | E32: 86.03 | F32: 83.47 | G32: 81.63 | H32: 90.43 | I32: 92.27 | J32: 94.83 | K32: 89.7 | L32: 85.3 | M32: 266.77216
A33: 24 | B33: ASIANPAINT | C33: 1497 | D33: 1493.15 | E33: 1477.35 | F33: 1457.70 | G33: 1441.90 | H33: 1512.80 | I33: 1528.60 | J33: 1548.25 | K33: 1508.95 | L33: 1473.5 | M33: 13.53947
A34: 25 | B34: AUROPHARMA | C34: 769.25 | D34: 771.63 | E34: 763.37 | F34: 757.48 | G34: 749.22 | H34: 777.52 | I34: 785.78 | J34: 791.67 | K34: 779.9 | L34: 765.75 | M34: 24.28881
A35: 26 | B35: DMART | C35: 1472.5 | D35: 1475.17 | E35: 1465.33 | F35: 1458.17 | G35: 1448.33 | H35: 1482.33 | I35: 1492.17 | J35: 1499.33 | K35: 1485 | L35: 1468 | M35: 2.07862
A36: 27 | B36: AXISBANK | C36: 780.7 | D36: 775.17 | E36: 762.68 | F36: 744.67 | G36: 732.18 | H36: 793.18 | I36: 805.67 | J36: 823.68 | K36: 787.65 | L36: 757.15 | M36: 166.43818
A37: 28 | B37: BAJAJ-AUTO | C37: 2948.8 | D37: 2961.42 | E37: 2902.38 | F37: 2855.97 | G37: 2796.93 | H37: 3007.83 | I37: 3066.87 | J37: 3113.28 | K37: 3020.45 | L37: 2915 | M37: 18.0055
A38: 29 | B38: BAJFINANCE | C38: 2995.85 | D38: 2978.63 | E38: 2957.27 | F38: 2918.68 | G38: 2897.32 | H38: 3017.22 | I38: 3038.58 | J38: 3077.17 | K38: 3000 | L38: 2940.05 | M38: 13.66945
A39: 30 | B39: BAJAJFINSV | C39: 6952.55 | D39: 6944.25 | E39: 6865.80 | F39: 6779.05 | G39: 6700.60 | H39: 7031.00 | I39: 7109.45 | J39: 7196.20 | K39: 7022.7 | L39: 6857.5 | M39: 3.2824
A40: 31 | B40: BALKRISIND | C40: 990.75 | D40: 983.60 | E40: 968.20 | F40: 945.65 | G40: 930.25 | H40: 1006.15 | I40: 1021.55 | J40: 1044.10 | K40: 999 | L40: 961.05 | M40: 12.436
A41: 32 | B41: BANKBARODA | C41: 130.1 | D41: 127.68 | E41: 123.97 | F41: 117.83 | G41: 114.12 | H41: 133.82 | I41: 137.53 | J41: 143.67 | K41: 131.4 | L41: 121.55 | M41: 441.99513
A42: 33 | B42: BANKINDIA | C42: 105.85 | D42: 105.05 | E42: 103.60 | F42: 101.35 | G42: 99.90 | H42: 107.30 | I42: 108.75 | J42: 111.00 | K42: 106.5 | L42: 102.8 | M42: 124.05815
A43: 34 | B43: BATAINDIA | C43: 1413.4 | D43: 1402.75 | E43: 1378.35 | F43: 1343.30 | G43: 1318.90 | H43: 1437.80 | I43: 1462.20 | J43: 1497.25 | K43: 1427.15 | L43: 1367.7 | M43: 15.13755
A44: 35 | B44: BERGEPAINT | C44: 324.35 | D44: 324.38 | E44: 320.97 | F44: 317.58 | G44: 314.17 | H44: 327.77 | I44: 331.18 | J44: 334.57 | K44: 327.8 | L44: 321 | M44: 5.69292
A45: 36 | B45: BEL | C45: 92.45 | D45: 92.43 | E45: 91.67 | F45: 90.88 | G45: 90.12 | H45: 93.22 | I45: 93.98 | J45: 94.77 | K45: 93.2 | L45: 91.65 | M45: 166.39126
A46: 37 | B46: BHARATFIN | C46: 1137.35 | D46: 1131.42 | E46: 1120.98 | F46: 1104.62 | G46: 1094.18 | H46: 1147.78 | I46: 1158.22 | J46: 1174.58 | K46: 1141.85 | L46: 1115.05 | M46: 14.9916
A47: 38 | B47: BHARATFORG | C47: 494.65 | D47: 493.67 | E47: 488.98 | F47: 483.32 | G47: 478.63 | H47: 499.33 | I47: 504.02 | J47: 509.68 | K47: 498.35 | L47: 488 | M47: 15.97993
A48: 39 | B48: BHEL | C48: 71.55 | D48: 71.60 | E48: 70.80 | F48: 70.05 | G48: 69.25 | H48: 72.35 | I48: 73.15 | J48: 73.90 | K48: 72.4 | L48: 70.85 | M48: 453.26931
A49: 40 | B49: BPCL | C49: 385.85 | D49: 384.42 | E49: 379.78 | F49: 373.72 | G49: 369.08 | H49: 390.48 | I49: 395.12 | J49: 401.18 | K49: 389.05 | L49: 378.35 | M49: 55.84974
A50: 41 | B50: BHARTIARTL | C50: 329.95 | D50: 326.90 | E50: 320.80 | F50: 311.65 | G50: 305.55 | H50: 336.05 | I50: 342.15 | J50: 351.30 | K50: 333 | L50: 317.75 | M50: 122.72355
A51: 42 | B51: INFRATEL | C51: 317.1 | D51: 316.73 | E51: 313.82 | F51: 310.53 | G51: 307.62 | H51: 320.02 | I51: 322.93 | J51: 326.22 | K51: 319.65 | L51: 313.45 | M51: 17.52675
A52: 43 | B52: BIOCON | C52: 606.95 | D52: 602.60 | E52: 596.45 | F52: 585.95 | G52: 579.80 | H52: 613.10 | I52: 619.25 | J52: 629.75 | K52: 608.75 | L52: 592.1 | M52: 23.12733
A53: 44 | B53: BOSCHLTD | C53: 17886.15 | D53: 17901.25 | E53: 17802.50 | F53: 17718.85 | G53: 17620.10 | H53: 17984.90 | I53: 18083.65 | J53: 18167.30 | K53: 18000 | L53: 17817.6 | M53: 0.25602
A54: 45 | B54: BRITANNIA | C54: 3096.55 | D54: 3081.02 | E54: 3043.53 | F54: 2990.52 | G54: 2953.03 | H54: 3134.03 | I54: 3171.52 | J54: 3224.53 | K54: 3118.5 | L54: 3028 | M54: 34.70524
A55: 46 | B55: CRISIL | C55: 1447.8 | D55: 1455.75 | E55: 1432.55 | F55: 1417.30 | G55: 1394.10 | H55: 1471.00 | I55: 1494.20 | J55: 1509.45 | K55: 1478.95 | L55: 1440.5 | M55: 0.41181
A56: 47 | B56: CADILAHC | C56: 335.95 | D56: 334.75 | E56: 331.70 | F56: 327.45 | G56: 324.40 | H56: 339.00 | I56: 342.05 | J56: 346.30 | K56: 337.8 | L56: 330.5 | M56: 7.70606
A57: 48 | B57: CANBK | C57: 296.45 | D57: 293.48 | E57: 286.97 | F57: 277.48 | G57: 270.97 | H57: 302.97 | I57: 309.48 | J57: 318.97 | K57: 300 | L57: 284 | M57: 103.7023
A58: 49 | B58: CASTROLIND | C58: 164.75 | D58: 164.18 | E58: 162.67 | F58: 160.58 | G58: 159.07 | H58: 166.27 | I58: 167.78 | J58: 169.87 | K58: 165.7 | L58: 162.1 | M58: 13.40702
A59: 50 | B59: CENTRALBK | C59: 34.95 | D59: 34.53 | E59: 32.92 | F59: 30.88 | G59: 29.27 | H59: 36.57 | I59: 38.18 | J59: 40.22 | K59: 36.15 | L59: 32.5 | M59: 30.06015
A60: 51 | B60: CENTURYTEX | C60: 905.2 | D60: 905.50 | E60: 897.00 | F60: 888.80 | G60: 880.30 | H60: 913.70 | I60: 922.20 | J60: 930.40 | K60: 914 | L60: 897.3 | M60: 3.97369
A61: 52 | B61: CHOLAFIN | C61: 1450.15 | D61: 1440.98 | E61: 1427.17 | F61: 1404.18 | G61: 1390.37 | H61: 1463.97 | I61: 1477.78 | J61: 1500.77 | K61: 1454.8 | L61: 1418 | M61: 4.53337
A62: 53 | B62: CIPLA | C62: 525.6 | D62: 525.08 | E62: 522.82 | F62: 520.03 | G62: 517.77 | H62: 527.87 | I62: 530.13 | J62: 532.92 | K62: 527.35 | L62: 522.3 | M62: 41.33379
A63: 54 | B63: COALINDIA | C63: 236.1 | D63: 235.50 | E63: 233.35 | F63: 230.60 | G63: 228.45 | H63: 238.25 | I63: 240.40 | J63: 243.15 | K63: 237.65 | L63: 232.75 | M63: 205.84925
A64: 55 | B64: COLPAL | C64: 1251.9 | D64: 1257.90 | E64: 1244.00 | F64: 1236.10 | G64: 1222.20 | H64: 1265.80 | I64: 1279.70 | J64: 1287.60 | K64: 1271.8 | L64: 1250 | M64: 3.53385
A65: 56 | B65: CONCOR | C65: 511.2 | D65: 509.45 | E65: 504.70 | F65: 498.20 | G65: 493.45 | H65: 515.95 | I65: 520.70 | J65: 527.20 | K65: 514.2 | L65: 502.95 | M65: 7.1874
A66: 57 | B66: COROMANDEL | C66: 495.8 | D66: 494.45 | E66: 486.90 | F66: 478.00 | G66: 470.45 | H66: 503.35 | I66: 510.90 | J66: 519.80 | K66: 502 | L66: 485.55 | M66: 2.21015
A67: 58 | B67: CROMPTON | C67: 220.55 | D67: 218.78 | E67: 215.57 | F67: 210.58 | G67: 207.37 | H67: 223.77 | I67: 226.98 | J67: 231.97 | K67: 222 | L67: 213.8 | M67: 8.64639
A68: 59 | B68: CUMMINSIND | C68: 740.3 | D68: 742.12 | E68: 734.28 | F68: 728.27 | G68: 720.43 | H68: 748.13 | I68: 755.97 | J68: 761.98 | K68: 749.95 | L68: 736.1 | M68: 5.85224
A69: 60 | B69: DLF | C69: 194.05 | D69: 194.48 | E69: 191.17 | F69: 188.28 | G69: 184.97 | H69: 197.37 | I69: 200.68 | J69: 203.57 | K69: 197.8 | L69: 191.6 | M69: 100.10007
A70: 61 | B70: DABUR | C70: 410.95 | D70: 411.90 | E70: 406.50 | F70: 402.05 | G70: 396.65 | H70: 416.35 | I70: 421.75 | J70: 426.20 | K70: 417.3 | L70: 407.45 | M70: 62.47333
A71: 62 | B71: DHFL | C71: 149.5 | D71: 147.27 | E71: 139.73 | F71: 129.97 | G71: 122.43 | H71: 157.03 | I71: 164.57 | J71: 174.33 | K71: 154.8 | L71: 137.5 | M71: 641.67497
A72: 63 | B72: DISHTV | C72: 39 | D72: 38.35 | E72: 36.95 | F72: 34.90 | G72: 33.50 | H72: 40.40 | I72: 41.80 | J72: 43.85 | K72: 39.75 | L72: 36.3 | M72: 225.70883
A73: 64 | B73: DIVISLAB | C73: 1654.55 | D73: 1665.02 | E73: 1631.03 | F73: 1607.52 | G73: 1573.53 | H73: 1688.53 | I73: 1722.52 | J73: 1746.03 | K73: 1699 | L73: 1641.5 | M73: 16.81103
A74: 65 | B74: LALPATHLAB | C74: 1074.1 | D74: 1075.87 | E74: 1063.88 | F74: 1053.67 | G74: 1041.68 | H74: 1086.08 | I74: 1098.07 | J74: 1108.28 | K74: 1087.85 | L74: 1065.65 | M74: 0.19305
A75: 66 | B75: DRREDDY | C75: 2717.2 | D75: 2733.30 | E75: 2691.90 | F75: 2666.60 | G75: 2625.20 | H75: 2758.60 | I75: 2800.00 | J75: 2825.30 | K75: 2774.7 | L75: 2708 | M75: 6.63559
A76: 67 | B76: EDELWEISS | C76: 194.2 | D76: 193.38 | E76: 189.87 | F76: 185.53 | G76: 182.02 | H76: 197.72 | I76: 201.23 | J76: 205.57 | K76: 196.9 | L76: 189.05 | M76: 33.58162
A77: 68 | B77: EICHERMOT | C77: 20899 | D77: 20993.35 | E77: 20686.70 | F77: 20474.40 | G77: 20167.75 | H77: 21205.65 | I77: 21512.30 | J77: 21724.60 | K77: 21300 | L77: 20781.05 | M77: 1.25561
A78: 69 | B78: EMAMILTD | C78: 397.75 | D78: 399.58 | E78: 394.17 | F78: 390.58 | G78: 385.17 | H78: 403.17 | I78: 408.58 | J78: 412.17 | K78: 405 | L78: 396 | M78: 1.67935
A79: 70 | B79: ENDURANCE | C79: 1148.45 | D79: 1150.92 | E79: 1143.83 | F79: 1139.22 | G79: 1132.13 | H79: 1155.53 | I79: 1162.62 | J79: 1167.23 | K79: 1158 | L79: 1146.3 | M79: 0.89097
A80: 71 | B80: ENGINERSIN | C80: 115.6 | D80: 115.93 | E80: 114.72 | F80: 113.83 | G80: 112.62 | H80: 116.82 | I80: 118.03 | J80: 118.92 | K80: 117.15 | L80: 115.05 | M80: 18.77028
A81: 72 | B81: EXIDEIND | C81: 220.9 | D81: 223.17 | E81: 217.73 | F81: 214.57 | G81: 209.13 | H81: 226.33 | I81: 231.77 | J81: 234.93 | K81: 228.6 | L81: 220 | M81: 38.97132
A82: 73 | B82: FEDERALBNK | C82: 93.65 | D82: 93.08 | E82: 91.87 | F82: 90.08 | G82: 88.87 | H82: 94.87 | I82: 96.08 | J82: 97.87 | K82: 94.3 | L82: 91.3 | M82: 144.08292
A83: 74 | B83: GAIL | C83: 358.3 | D83: 358.53 | E83: 354.07 | F83: 349.83 | G83: 345.37 | H83: 362.77 | I83: 367.23 | J83: 371.47 | K83: 363 | L83: 354.3 | M83: 46.61285
A84: 75 | B84: GMRINFRA | C84: 20 | D84: 19.95 | E84: 19.45 | F84: 18.90 | G84: 18.40 | H84: 20.50 | I84: 21.00 | J84: 21.55 | K84: 20.45 | L84: 19.4 | M84: 534.79398
A85: 76 | B85: GSKCONS | C85: 7224.85 | D85: 7145.55 | E85: 6973.30 | F85: 6721.75 | G85: 6549.50 | H85: 7397.10 | I85: 7569.35 | J85: 7820.90 | K85: 7317.8 | L85: 6894 | M85: 0.90382
A86: 77 | B86: GLAXO | C86: 1296.55 | D86: 1295.78 | E86: 1291.57 | F86: 1286.58 | G86: 1282.37 | H86: 1300.77 | I86: 1304.98 | J86: 1309.97 | K86: 1300 | L86: 1290.8 | M86: 0.13448
A87: 78 | B87: GLENMARK | C87: 650.3 | D87: 646.28 | E87: 641.57 | F87: 632.83 | G87: 628.12 | H87: 655.02 | I87: 659.73 | J87: 668.47 | K87: 651 | L87: 637.55 | M87: 4.71259
A88: 79 | B88: GODREJCP | C88: 693.5 | D88: 693.75 | E88: 689.75 | F88: 686.00 | G88: 682.00 | H88: 697.50 | I88: 701.50 | J88: 705.25 | K88: 697.75 | L88: 690 | M88: 10.03439
A89: 80 | B89: GODREJIND | C89: 536.5 | D89: 538.58 | E89: 531.27 | F89: 526.03 | G89: 518.72 | H89: 543.82 | I89: 551.13 | J89: 556.37 | K89: 545.9 | L89: 533.35 | M89: 2.85059
A90: 81 | B90: GRUH | C90: 273 | D90: 269.37 | E90: 263.23 | F90: 253.47 | G90: 247.33 | H90: 279.13 | I90: 285.27 | J90: 295.03 | K90: 275.5 | L90: 259.6 | M90: 104.72682
A91: 82 | B91: GPPL | C91: 100.3 | D91: 100.77 | E91: 99.53 | F91: 98.77 | G91: 97.53 | H91: 101.53 | I91: 102.77 | J91: 103.53 | K91: 102 | L91: 100 | M91: 11.29761
A92: 83 | B92: GSPL | C92: 185.15 | D92: 182.70 | E92: 178.45 | F92: 171.75 | G92: 167.50 | H92: 189.40 | I92: 193.65 | J92: 200.35 | K92: 186.95 | L92: 176 | M92: 18.22559
A93: 84 | B93: HCLTECH | C93: 1082.9 | D93: 1073.75 | E93: 1059.15 | F93: 1035.40 | G93: 1020.80 | H93: 1097.50 | I93: 1112.10 | J93: 1135.85 | K93: 1088.35 | L93: 1050 | M93: 43.13807
A94: 85 | B94: HDFCBANK | C94: 2302.8 | D94: 2305.22 | E94: 2285.43 | F94: 2268.07 | G94: 2248.28 | H94: 2322.58 | I94: 2342.37 | J94: 2359.73 | K94: 2325 | L94: 2287.85 | M94: 48.88582
A95: 86 | B95: HAVELLS | C95: 760.55 | D95: 757.72 | E95: 750.43 | F95: 740.32 | G95: 733.03 | H95: 767.83 | I95: 775.12 | J95: 785.23 | K95: 765 | L95: 747.6 | M95: 11.80707
A96: 87 | B96: HEROMOTOCO | C96: 2525.75 | D96: 2532.92 | E96: 2507.83 | F96: 2489.92 | G96: 2464.83 | H96: 2550.83 | I96: 2575.92 | J96: 2593.83 | K96: 2558 | L96: 2515 | M96: 11.47361
A97: 88 | B97: HEXAWARE | C97: 338.55 | D97: 338.10 | E97: 336.20 | F97: 333.85 | G97: 331.95 | H97: 340.45 | I97: 342.35 | J97: 344.70 | K97: 340 | L97: 335.75 | M97: 5.67073
A98: 89 | B98: HINDALCO | C98: 202.35 | D98: 204.07 | E98: 199.83 | F98: 197.32 | G98: 193.08 | H98: 206.58 | I98: 210.82 | J98: 213.33 | K98: 208.3 | L98: 201.55 | M98: 89.24025
A99: 90 | B99: HINDPETRO | C99: 272.45 | D99: 273.68 | E99: 267.92 | F99: 263.38 | G99: 257.62 | H99: 278.22 | I99: 283.98 | J99: 288.52 | K99: 279.45 | L99: 269.15 | M99: 217.43341
A100: 91 | B100: HINDUNILVR | C100: 1683.9 | D100: 1683.10 | E100: 1674.20 | F100: 1664.50 | G100: 1655.60 | H100: 1692.80 | I100: 1701.70 | J100: 1711.40 | K100: 1692 | L100: 1673.4 | M100: 18.52958
A101: 92 | B101: HINDZINC | C101: 275.8 | D101: 273.88 | E101: 270.02 | F101: 264.23 | G101: 260.37 | H101: 279.67 | I101: 283.53 | J101: 289.32 | K101: 277.75 | L101: 268.1 | M101: 12.31637
A102: 93 | B102: HUDCO | C102: 44.3 | D102: 44.13 | E102: 43.82 | F102: 43.33 | G102: 43.02 | H102: 44.62 | I102: 44.93 | J102: 45.42 | K102: 44.45 | L102: 43.65 | M102: 7.02456
A103: 94 | B103: HDFC | C103: 1944.45 | D103: 1935.50 | E103: 1921.00 | F103: 1897.55 | G103: 1883.05 | H103: 1958.95 | I103: 1973.45 | J103: 1996.90 | K103: 1950 | L103: 1912.05 | M103: 63.70987
A104: 95 | B104: ITC | C104: 300 | D104: 298.33 | E104: 294.67 | F104: 289.33 | G104: 285.67 | H104: 303.67 | I104: 307.33 | J104: 312.67 | K104: 302 | L104: 293 | M104: 177.5238
A105: 96 | B105: ICICIBANK | C105: 400.55 | D105: 398.40 | E105: 394.90 | F105: 389.25 | G105: 385.75 | H105: 404.05 | I105: 407.55 | J105: 413.20 | K105: 401.9 | L105: 392.75 | M105: 231.17485
A106: 97 | B106: ICICIPRULI | C106: 352.4 | D106: 347.98 | E106: 340.97 | F106: 329.53 | G106: 322.52 | H106: 359.42 | I106: 366.43 | J106: 377.87 | K106: 355 | L106: 336.55 | M106: 145.94547
A107: 98 | B107: IDBI | C107: 44.6 | D107: 43.97 | E107: 42.93 | F107: 41.27 | G107: 40.23 | H107: 45.63 | I107: 46.67 | J107: 48.33 | K107: 45 | L107: 42.3 | M107: 161.63754
A108: 99 | B108: IDFCFIRSTB | C108: 54.65 | D108: 54.22 | E108: 53.43 | F108: 52.22 | G108: 51.43 | H108: 55.43 | I108: 56.22 | J108: 57.43 | K108: 55 | L108: 53 | M108: 210.08501
A109: 100 | B109: IDFC | C109: 46.9 | D109: 46.73 | E109: 46.02 | F109: 45.13 | G109: 44.42 | H109: 47.62 | I109: 48.33 | J109: 49.22 | K109: 47.45 | L109: 45.85 | M109: 122.06959
A110: 101 | B110: IRB | C110: 144 | D110: 143.45 | E110: 141.55 | F110: 139.10 | G110: 137.20 | H110: 145.90 | I110: 147.80 | J110: 150.25 | K110: 145.35 | L110: 141 | M110: 28.53185
A111: 102 | B111: IDEA | C111: 29 | D111: 29.08 | E111: 28.17 | F111: 27.33 | G111: 26.42 | H111: 29.92 | I111: 30.83 | J111: 31.67 | K111: 30 | L111: 28.25 | M111: 1253.66309
A112: 103 | B112: IBULHSGFIN | C112: 811.15 | D112: 795.83 | E112: 768.32 | F112: 725.48 | G112: 697.97 | H112: 838.67 | I112: 866.18 | J112: 909.02 | K112: 823.35 | L112: 753 | M112: 140.78068
A113: 104 | B113: INDIANB | C113: 277.35 | D113: 274.48 | E113: 264.27 | F113: 251.18 | G113: 240.97 | H113: 287.57 | I113: 297.78 | J113: 310.87 | K113: 284.7 | L113: 261.4 | M113: 28.64042
A114: 105 | B114: INDHOTEL | C114: 151.95 | D114: 151.32 | E114: 150.13 | F114: 148.32 | G114: 147.13 | H114: 153.13 | I114: 154.32 | J114: 156.13 | K114: 152.5 | L114: 149.5 | M114: 40.98905
A115: 106 | B115: IOC | C115: 161.3 | D115: 161.92 | E115: 159.73 | F115: 158.17 | G115: 155.98 | H115: 163.48 | I115: 165.67 | J115: 167.23 | K115: 164.1 | L115: 160.35 | M115: 294.32533
A116: 107 | B116: IGL | C116: 308.35 | D116: 308.18 | E116: 305.37 | F116: 302.38 | G116: 299.57 | H116: 311.17 | I116: 313.98 | J116: 316.97 | K116: 311 | L116: 305.2 | M116: 12.93818
A117: 108 | B117: INDUSINDBK | C117: 1821.1 | D117: 1810.88 | E117: 1787.37 | F117: 1753.63 | G117: 1730.12 | H117: 1844.62 | I117: 1868.13 | J117: 1901.87 | K117: 1834.4 | L117: 1777.15 | M117: 40.70284
A118: 109 | B118: NAUKRI | C118: 1870.15 | D118: 1878.13 | E118: 1856.27 | F118: 1842.38 | G118: 1820.52 | H118: 1892.02 | I118: 1913.88 | J118: 1927.77 | K118: 1900 | L118: 1864.25 | M118: 1.44626
A119: 110 | B119: INFY | C119: 737.8 | D119: 737.60 | E119: 730.20 | F119: 722.60 | G119: 715.20 | H119: 745.20 | I119: 752.60 | J119: 760.20 | K119: 745 | L119: 730 | M119: 92.77241
A120: 111 | B120: INDIGO | C120: 1438.5 | D120: 1424.83 | E120: 1401.77 | F120: 1365.03 | G120: 1341.97 | H120: 1461.57 | I120: 1484.63 | J120: 1521.37 | K120: 1447.9 | L120: 1388.1 | M120: 17.284
A121: 112 | B121: IPCALAB | C121: 959.55 | D121: 946.75 | E121: 926.00 | F121: 892.45 | G121: 871.70 | H121: 980.30 | I121: 1001.05 | J121: 1034.60 | K121: 967.5 | L121: 913.2 | M121: 1.07479
A122: 113 | B122: JSWENERGY | C122: 68.95 | D122: 68.95 | E122: 68.05 | F122: 67.15 | G122: 66.25 | H122: 69.85 | I122: 70.75 | J122: 71.65 | K122: 69.85 | L122: 68.05 | M122: 17.06076
A123: 114 | B123: JSWSTEEL | C123: 288.25 | D123: 287.42 | E123: 284.83 | F123: 281.42 | G123: 278.83 | H123: 290.83 | I123: 293.42 | J123: 296.83 | K123: 290 | L123: 284 | M123: 217.45652
A124: 115 | B124: JINDALSTEL | C124: 164.95 | D124: 165.83 | E124: 163.07 | F124: 161.18 | G124: 158.42 | H124: 167.72 | I124: 170.48 | J124: 172.37 | K124: 168.6 | L124: 163.95 | M124: 57.66403
A125: 116 | B125: JUBLFOOD | C125: 1459.4 | D125: 1454.52 | E125: 1442.38 | F125: 1425.37 | G125: 1413.23 | H125: 1471.53 | I125: 1483.67 | J125: 1500.68 | K125: 1466.65 | L125: 1437.5 | M125: 14.49362
A126: 117 | B126: JUBILANT | C126: 654.2 | D126: 660.40 | E126: 644.80 | F126: 635.40 | G126: 619.80 | H126: 669.80 | I126: 685.40 | J126: 694.80 | K126: 676 | L126: 651 | M126: 14.04866
A127: 118 | B127: KARURVYSYA | C127: 70.95 | D127: 71.07 | E127: 70.53 | F127: 70.12 | G127: 69.58 | H127: 71.48 | I127: 72.02 | J127: 72.43 | K127: 71.6 | L127: 70.65 | M127: 10.68311
A128: 119 | B128: KOTAKBANK | C128: 1340.75 | D128: 1340.55 | E128: 1329.10 | F128: 1317.45 | G128: 1306.00 | H128: 1352.20 | I128: 1363.65 | J128: 1375.30 | K128: 1352 | L128: 1328.9 | M128: 46.16695
A129: 120 | B129: L&TFH | C129: 153.6 | D129: 153.47 | E129: 151.78 | F129: 149.97 | G129: 148.28 | H129: 155.28 | I129: 156.97 | J129: 158.78 | K129: 155.15 | L129: 151.65 | M129: 157.56788
A130: 121 | B130: LICHSGFIN | C130: 534.05 | D130: 532.97 | E130: 528.23 | F130: 522.42 | G130: 517.68 | H130: 538.78 | I130: 543.52 | J130: 549.33 | K130: 537.7 | L130: 527.15 | M130: 35.49497
A131: 122 | B131: LT | C131: 1386.7 | D131: 1381.07 | E131: 1369.63 | F131: 1352.57 | G131: 1341.13 | H131: 1398.13 | I131: 1409.57 | J131: 1426.63 | K131: 1392.5 | L131: 1364 | M131: 31.84285
A132: 123 | B132: LUPIN | C132: 724.85 | D132: 725.88 | E132: 718.77 | F132: 712.68 | G132: 705.57 | H132: 731.97 | I132: 739.08 | J132: 745.17 | K132: 733 | L132: 719.8 | M132: 29.16948
A133: 124 | B133: MRF | C133: 56296.95 | D133: 56415.63 | E133: 55981.37 | F133: 55665.78 | G133: 55231.52 | H133: 56731.22 | I133: 57165.48 | J133: 57481.07 | K133: 56849.9 | L133: 56100.05 | M133: 0.05142
A134: 125 | B134: MGL | C134: 1039.8 | D134: 1034.18 | E134: 1020.62 | F134: 1001.43 | G134: 987.87 | H134: 1053.37 | I134: 1066.93 | J134: 1086.12 | K134: 1047.75 | L134: 1015 | M134: 5.68402
A135: 126 | B135: M&MFIN | C135: 429.3 | D135: 430.03 | E135: 424.27 | F135: 419.23 | G135: 413.47 | H135: 435.07 | I135: 440.83 | J135: 445.87 | K135: 435.8 | L135: 425 | M135: 23.6237
A136: 127 | B136: M&M | C136: 655.95 | D136: 657.43 | E136: 652.12 | F136: 648.28 | G136: 642.97 | H136: 661.27 | I136: 666.58 | J136: 670.42 | K136: 662.75 | L136: 653.6 | M136: 39.10004
A137: 128 | B137: MANAPPURAM | C137: 126.2 | D137: 125.07 | E137: 123.13 | F137: 120.07 | G137: 118.13 | H137: 128.13 | I137: 130.07 | J137: 133.13 | K137: 127 | L137: 122 | M137: 42.42894
A138: 129 | B138: MRPL | C138: 74.3 | D138: 74.40 | E138: 73.90 | F138: 73.50 | G138: 73.00 | H138: 74.80 | I138: 75.30 | J138: 75.70 | K138: 74.9 | L138: 74 | M138: 8.62385
A139: 130 | B139: MARICO | C139: 337.6 | D139: 337.55 | E139: 334.10 | F139: 330.60 | G139: 327.15 | H139: 341.05 | I139: 344.50 | J139: 348.00 | K139: 341 | L139: 334.05 | M139: 26.80016
A140: 131 | B140: MARUTI | C140: 6596.25 | D140: 6574.15 | E140: 6523.30 | F140: 6450.35 | G140: 6399.50 | H140: 6647.10 | I140: 6697.95 | J140: 6770.90 | K140: 6625 | L140: 6501.2 | M140: 9.49713
A141: 132 | B141: MFSL | C141: 438.15 | D141: 442.20 | E141: 430.00 | F141: 421.85 | G141: 409.65 | H141: 450.35 | I141: 462.55 | J141: 470.70 | K141: 454.4 | L141: 434.05 | M141: 6.86819
A142: 133 | B142: MINDTREE | C142: 941.25 | D142: 942.98 | E142: 935.37 | F142: 929.48 | G142: 921.87 | H142: 948.87 | I142: 956.48 | J142: 962.37 | K142: 950.6 | L142: 937.1 | M142: 7.72947
A143: 134 | B143: MOTHERSUMI | C143: 145.75 | D143: 144.85 | E143: 143.40 | F143: 141.05 | G143: 139.60 | H143: 147.20 | I143: 148.65 | J143: 151.00 | K143: 146.3 | L143: 142.5 | M143: 51.30986
A144: 135 | B144: MPHASIS | C144: 965.3 | D144: 960.98 | E144: 944.82 | F144: 924.33 | G144: 908.17 | H144: 981.47 | I144: 997.63 | J144: 1018.12 | K144: 977.15 | L144: 940.5 | M144: 3.73114
A145: 136 | B145: MUTHOOTFIN | C145: 609.95 | D145: 606.57 | E145: 599.43 | F145: 588.92 | G145: 581.78 | H145: 617.08 | I145: 624.22 | J145: 634.73 | K145: 613.7 | L145: 596.05 | M145: 24.19862
A146: 137 | B146: NATCOPHARM | C146: 566 | D146: 565.02 | E146: 560.03 | F146: 554.07 | G146: 549.08 | H146: 570.98 | I146: 575.97 | J146: 581.93 | K146: 570 | L146: 559.05 | M146: 1.87959
A147: 138 | B147: NBCC | C147: 64.95 | D147: 64.83 | E147: 64.22 | F147: 63.48 | G147: 62.87 | H147: 65.57 | I147: 66.18 | J147: 66.92 | K147: 65.45 | L147: 64.1 | M147: 169.15341
A148: 139 | B148: NHPC | C148: 24.6 | D148: 24.67 | E148: 24.48 | F148: 24.37 | G148: 24.18 | H148: 24.78 | I148: 24.97 | J148: 25.08 | K148: 24.85 | L148: 24.55 | M148: 48.53031
A149: 140 | B149: NMDC | C149: 101.15 | D149: 101.92 | E149: 99.83 | F149: 98.52 | G149: 96.43 | H149: 103.23 | I149: 105.32 | J149: 106.63 | K149: 104 | L149: 100.6 | M149: 73.90535
A150: 141 | B150: NTPC | C150: 135.75 | D150: 136.73 | E150: 134.12 | F150: 132.48 | G150: 129.87 | H150: 138.37 | I150: 140.98 | J150: 142.62 | K150: 139.35 | L150: 135.1 | M150: 412.32946
A151: 142 | B151: NATIONALUM | C151: 53.05 | D151: 53.22 | E151: 52.73 | F151: 52.42 | G151: 51.93 | H151: 53.53 | I151: 54.02 | J151: 54.33 | K151: 53.7 | L151: 52.9 | M151: 149.04362
A152: 143 | B152: OBEROIRLTY | C152: 532 | D152: 531.85 | E152: 521.75 | F152: 511.50 | G152: 501.40 | H152: 542.10 | I152: 552.20 | J152: 562.45 | K152: 541.95 | L152: 521.6 | M152: 5.12934
A153: 144 | B153: ONGC | C153: 155.9 | D153: 157.12 | E153: 153.98 | F153: 152.07 | G153: 148.93 | H153: 159.03 | I153: 162.17 | J153: 164.08 | K153: 160.25 | L153: 155.2 | M153: 254.92224
A154: 145 | B154: OIL | C154: 184.75 | D154: 183.97 | E154: 181.43 | F154: 178.12 | G154: 175.58 | H154: 187.28 | I154: 189.82 | J154: 193.13 | K154: 186.5 | L154: 180.65 | M154: 57.04956
A155: 146 | B155: OFSS | C155: 3362.9 | D155: 3373.95 | E155: 3338.95 | F155: 3315.00 | G155: 3280.00 | H155: 3397.90 | I155: 3432.90 | J155: 3456.85 | K155: 3408.95 | L155: 3350 | M155: 0.45024
A156: 147 | B156: PCJEWELLER | C156: 82.5 | D156: 81.93 | E156: 80.62 | F156: 78.73 | G156: 77.42 | H156: 83.82 | I156: 85.13 | J156: 87.02 | K156: 83.25 | L156: 80.05 | M156: 72.64795
A157: 148 | B157: PIIND | C157: 1025.55 | D157: 1025.85 | E157: 1017.70 | F157: 1009.85 | G157: 1001.70 | H157: 1033.70 | I157: 1041.85 | J157: 1049.70 | K157: 1034 | L157: 1018 | M157: 0.27764
A158: 149 | B158: PNBHOUSING | C158: 828.5 | D158: 829.18 | E158: 823.37 | F158: 818.23 | G158: 812.42 | H158: 834.32 | I158: 840.13 | J158: 845.27 | K158: 835 | L158: 824.05 | M158: 4.60851
A159: 150 | B159: PAGEIND | C159: 24247.95 | D159: 24332.57 | E159: 23573.08 | F159: 22898.22 | G159: 22138.73 | H159: 25007.43 | I159: 25766.92 | J159: 26441.78 | K159: 25092.05 | L159: 23657.7 | M159: 0.76447
A160: 151 | B160: PETRONET | C160: 244.45 | D160: 241.60 | E160: 237.20 | F160: 229.95 | G160: 225.55 | H160: 248.85 | I160: 253.25 | J160: 260.50 | K160: 246 | L160: 234.35 | M160: 65.19917
A161: 152 | B161: PIDILITIND | C161: 1225.95 | D161: 1228.82 | E161: 1214.13 | F161: 1202.32 | G161: 1187.63 | H161: 1240.63 | I161: 1255.32 | J161: 1267.13 | K161: 1243.5 | L161: 1217 | M161: 7.39727
A162: 153 | B162: PEL | C162: 2693.65 | D162: 2673.88 | E162: 2639.77 | F162: 2585.88 | G162: 2551.77 | H162: 2727.77 | I162: 2761.88 | J162: 2815.77 | K162: 2708 | L162: 2620 | M162: 7.91109
A163: 154 | B163: PFC | C163: 117.5 | D163: 117.85 | E163: 116.00 | F163: 114.50 | G163: 112.65 | H163: 119.35 | I163: 121.20 | J163: 122.70 | K163: 119.7 | L163: 116.35 | M163: 103.70591
A164: 155 | B164: POWERGRID | C164: 198.25 | D164: 198.23 | E164: 196.47 | F164: 194.68 | G164: 192.92 | H164: 200.02 | I164: 201.78 | J164: 203.57 | K164: 200 | L164: 196.45 | M164: 95.82112
A165: 156 | B165: PRESTIGE | C165: 250.7 | D165: 252.10 | E165: 247.10 | F165: 243.50 | G165: 238.50 | H165: 255.70 | I165: 260.70 | J165: 264.30 | K165: 257.1 | L165: 248.5 | M165: 1.91905
A166: 157 | B166: PGHH | C166: 10843.95 | D166: 10801.63 | E166: 10629.27 | F166: 10414.58 | G166: 10242.22 | H166: 11016.32 | I166: 11188.68 | J166: 11403.37 | K166: 10974 | L166: 10586.95 | M166: 0.03577
A167: 158 | B167: PNB | C167: 95.35 | D167: 94.83 | E167: 93.87 | F167: 92.38 | G167: 91.42 | H167: 96.32 | I167: 97.28 | J167: 98.77 | K167: 95.8 | L167: 93.35 | M167: 434.61013
A168: 159 | B168: RBLBANK | C168: 684.3 | D168: 680.67 | E168: 673.98 | F168: 663.67 | G168: 656.98 | H168: 690.98 | I168: 697.67 | J168: 707.98 | K168: 687.35 | L168: 670.35 | M168: 43.7371
A169: 160 | B169: RAJESHEXPO | C169: 671.25 | D169: 670.75 | E169: 665.50 | F169: 659.75 | G169: 654.50 | H169: 676.50 | I169: 681.75 | J169: 687.50 | K169: 676 | L169: 665 | M169: 4.09107
A170: 161 | B170: RELCAPITAL | C170: 201.95 | D170: 203.40 | E170: 199.10 | F170: 196.25 | G170: 191.95 | H170: 206.25 | I170: 210.55 | J170: 213.40 | K170: 207.7 | L170: 200.55 | M170: 121.57931
A171: 162 | B171: RCOM | C171: 4.35 | D171: 4.35 | E171: 4.35 | F171: 4.35 | G171: 4.35 | H171: 4.35 | I171: 4.35 | J171: 4.35 | K171: 4.35 | L171: 4.35 | M171: 63.36135
A172: 163 | B172: RELIANCE | C172: 1360 | D172: 1357.53 | E172: 1345.27 | F172: 1330.53 | G172: 1318.27 | H172: 1372.27 | I172: 1384.53 | J172: 1399.27 | K172: 1369.8 | L172: 1342.8 | M172: 104.82938
A173: 164 | B173: RELINFRA | C173: 135.2 | D173: 134.12 | E173: 132.28 | F173: 129.37 | G173: 127.53 | H173: 137.03 | I173: 138.87 | J173: 141.78 | K173: 135.95 | L173: 131.2 | M173: 75.84343
A174: 165 | B174: RPOWER | C174: 10.65 | D174: 10.60 | E174: 10.45 | F174: 10.25 | G174: 10.10 | H174: 10.80 | I174: 10.95 | J174: 11.15 | K174: 10.75 | L174: 10.4 | M174: 746.49229
A175: 166 | B175: RECLTD | C175: 149.25 | D175: 149.12 | E175: 146.98 | F175: 144.72 | G175: 142.58 | H175: 151.38 | I175: 153.52 | J175: 155.78 | K175: 151.25 | L175: 146.85 | M175: 166.00302
A176: 167 | B176: SRF | C176: 2451.1 | D176: 2433.07 | E176: 2402.43 | F176: 2353.77 | G176: 2323.13 | H176: 2481.73 | I176: 2512.37 | J176: 2561.03 | K176: 2463.7 | L176: 2384.4 | M176: 1.51065
A177: 168 | B177: SHREECEM | C177: 18268.85 | D177: 18125.10 | E177: 17801.20 | F177: 17333.55 | G177: 17009.65 | H177: 18592.75 | I177: 18916.65 | J177: 19384.30 | K177: 18449 | L177: 17657.45 | M177: 0.46017
A178: 169 | B178: SRTRANSFIN | C178: 1278.25 | D178: 1275.42 | E178: 1256.83 | F178: 1235.42 | G178: 1216.83 | H178: 1296.83 | I178: 1315.42 | J178: 1336.83 | K178: 1294 | L178: 1254 | M178: 20.36322
A179: 170 | B179: SIEMENS | C179: 1088.05 | D179: 1082.40 | E179: 1070.40 | F179: 1052.75 | G179: 1040.75 | H179: 1100.05 | I179: 1112.05 | J179: 1129.70 | K179: 1094.4 | L179: 1064.75 | M179: 9.42506
A180: 171 | B180: SBIN | C180: 319 | D180: 322.57 | E180: 305.48 | F180: 291.97 | G180: 274.88 | H180: 336.08 | I180: 353.17 | J180: 366.68 | K180: 339.65 | L180: 309.05 | M180: 632.44736
A181: 172 | B181: SAIL | C181: 50.7 | D181: 50.63 | E181: 50.17 | F181: 49.63 | G181: 49.17 | H181: 51.17 | I181: 51.63 | J181: 52.17 | K181: 51.1 | L181: 50.1 | M181: 228.8035
A182: 173 | B182: SPARC | C182: 194.65 | D182: 195.37 | E182: 192.23 | F182: 189.82 | G182: 186.68 | H182: 197.78 | I182: 200.92 | J182: 203.33 | K182: 198.5 | L182: 192.95 | M182: 6.4726
A183: 174 | B183: SUNPHARMA | C183: 475.45 | D183: 473.42 | E183: 467.03 | F183: 458.62 | G183: 452.23 | H183: 481.83 | I183: 488.22 | J183: 496.63 | K183: 479.8 | L183: 465 | M183: 105.90187
A184: 175 | B184: SUNTV | C184: 606.05 | D184: 601.15 | E184: 592.30 | F184: 578.55 | G184: 569.70 | H184: 614.90 | I184: 623.75 | J184: 637.50 | K184: 610 | L184: 587.4 | M184: 28.30495
A185: 176 | B185: SUZLON | C185: 6.5 | D185: 6.55 | E185: 6.35 | F185: 6.20 | G185: 6.00 | H185: 6.70 | I185: 6.90 | J185: 7.05 | K185: 6.75 | L185: 6.4 | M185: 637.57781
A186: 177 | B186: SYNDIBANK | C186: 42.9 | D186: 42.17 | E186: 40.93 | F186: 38.97 | G186: 37.73 | H186: 44.13 | I186: 45.37 | J186: 47.33 | K186: 43.4 | L186: 40.2 | M186: 128.5441
A187: 178 | B187: SYNGENE | C187: 599.15 | D187: 590.05 | E187: 578.10 | F187: 557.05 | G187: 545.10 | H187: 611.10 | I187: 623.05 | J187: 644.10 | K187: 602 | L187: 569 | M187: 1.9293
A188: 179 | B188: TV18BRDCST | C188: 34.85 | D188: 34.83 | E188: 34.47 | F188: 34.08 | G188: 33.72 | H188: 35.22 | I188: 35.58 | J188: 35.97 | K188: 35.2 | L188: 34.45 | M188: 37.78864
A189: 180 | B189: TVSMOTOR | C189: 471.5 | D189: 469.13 | E189: 461.87 | F189: 452.23 | G189: 444.97 | H189: 478.77 | I189: 486.03 | J189: 495.67 | K189: 476.4 | L189: 459.5 | M189: 13.07109
A190: 181 | B190: TATACHEM | C190: 587.25 | D190: 584.95 | E190: 580.50 | F190: 573.75 | G190: 569.30 | H190: 591.70 | I190: 596.15 | J190: 602.90 | K190: 589.4 | L190: 578.2 | M190: 6.01657
A191: 182 | B191: TATACOMM | C191: 607.7 | D191: 605.03 | E191: 599.52 | F191: 591.33 | G191: 585.82 | H191: 613.22 | I191: 618.73 | J191: 626.92 | K191: 610.55 | L191: 596.85 | M191: 2.56324
A192: 183 | B192: TCS | C192: 2000.3 | D192: 1995.90 | E192: 1977.20 | F192: 1954.10 | G192: 1935.40 | H192: 2019.00 | I192: 2037.70 | J192: 2060.80 | K192: 2014.6 | L192: 1972.8 | M192: 40.54489
A193: 184 | B193: TATAGLOBAL | C193: 198.95 | D193: 198.75 | E193: 196.95 | F193: 194.95 | G193: 193.15 | H193: 200.75 | I193: 202.55 | J193: 204.55 | K193: 200.55 | L193: 196.75 | M193: 15.86111
A194: 185 | B194: TATAMTRDVR | C194: 84.5 | D194: 84.65 | E194: 83.80 | F194: 83.10 | G194: 82.25 | H194: 85.35 | I194: 86.20 | J194: 86.90 | K194: 85.5 | L194: 83.95 | M194: 39.74385
A195: 186 | B195: TATAMOTORS | C195: 170.55 | D195: 169.83 | E195: 168.27 | F195: 165.98 | G195: 164.42 | H195: 172.12 | I195: 173.68 | J195: 175.97 | K195: 171.4 | L195: 167.55 | M195: 132.03927
A196: 187 | B196: TATAPOWER | C196: 71.55 | D196: 71.77 | E196: 70.88 | F196: 70.22 | G196: 69.33 | H196: 72.43 | I196: 73.32 | J196: 73.98 | K196: 72.65 | L196: 71.1 | M196: 92.65724
A197: 188 | B197: TATASTEEL | C197: 506.3 | D197: 509.18 | E197: 501.92 | F197: 497.53 | G197: 490.27 | H197: 513.57 | I197: 520.83 | J197: 525.22 | K197: 516.45 | L197: 504.8 | M197: 89.65093
A198: 189 | B198: TECHM | C198: 771.7 | D198: 773.92 | E198: 765.83 | F198: 759.97 | G198: 751.88 | H198: 779.78 | I198: 787.87 | J198: 793.73 | K198: 782 | L198: 768.05 | M198: 39.08706
A199: 190 | B199: RAMCOCEM | C199: 708.45 | D199: 709.02 | E199: 703.03 | F199: 697.62 | G199: 691.63 | H199: 714.43 | I199: 720.42 | J199: 725.83 | K199: 715 | L199: 703.6 | M199: 4.39716
A200: 191 | B200: TITAN | C200: 1134.25 | D200: 1128.42 | E200: 1117.28 | F200: 1100.32 | G200: 1089.18 | H200: 1145.38 | I200: 1156.52 | J200: 1173.48 | K200: 1139.55 | L200: 1111.45 | M200: 22.92966
A201: 192 | B201: TORNTPHARM | C201: 1933.45 | D201: 1919.40 | E201: 1899.05 | F201: 1864.65 | G201: 1844.30 | H201: 1953.80 | I201: 1974.15 | J201: 2008.55 | K201: 1939.75 | L201: 1885 | M201: 2.00397
A202: 193 | B202: TORNTPOWER | C202: 250 | D202: 250.82 | E202: 247.38 | F202: 244.77 | G202: 241.33 | H202: 253.43 | I202: 256.87 | J202: 259.48 | K202: 254.25 | L202: 248.2 | M202: 7.20088
A203: 194 | B203: UPL | C203: 929.05 | D203: 920.47 | E203: 904.98 | F203: 880.92 | G203: 865.43 | H203: 944.53 | I203: 960.02 | J203: 984.08 | K203: 935.95 | L203: 896.4 | M203: 24.52629
A204: 195 | B204: ULTRACEMCO | C204: 3908.95 | D204: 3923.80 | E204: 3879.60 | F204: 3850.25 | G204: 3806.05 | H204: 3953.15 | I204: 3997.35 | J204: 4026.70 | K204: 3968 | L204: 3894.45 | M204: 5.44435
A205: 196 | B205: UNIONBANK | C205: 96.95 | D205: 95.95 | E205: 94.10 | F205: 91.25 | G205: 89.40 | H205: 98.80 | I205: 100.65 | J205: 103.50 | K205: 97.8 | L205: 93.1 | M205: 150.11461
... 29 more rows

Sheet MidCap Intra
L5: Back To Main Page
A6: FOR INTRA DAY TRADING | K6: =Main!B10 -> 2019-03-29
A9: Sr.no | B9: Scrip | C9: CLOSE RATE | D9: Pivot Point | E9: Supports | H9: Resistances
C10: Point | E10: S1 | F10: S2 | G10: S3 | H10: R1 | I10: R2 | J10: R3 | K10: HIGH | L10: LOW | M10: Total Trade Quanity in Lakhs
A11: 1 | B11: 3MINDIA | C11: 24035.65 | D11: 23949.22 | E11: 23748.43 | F11: 23461.22 | G11: 23260.43 | H11: 24236.43 | I11: 24437.22 | J11: 24724.43 | K11: 24150 | L11: 23662 | M11: 0.00579
A12: 2 | B12: 8KMILES | C12: 93.85 | D12: 92.40 | E12: 90.95 | F12: 88.05 | G12: 86.60 | H12: 95.30 | I12: 96.75 | J12: 99.65 | K12: 93.85 | L12: 89.5 | M12: 1.83722
A13: 3 | B13: AARTIIND | C13: 1555.25 | D13: 1559.30 | E13: 1533.50 | F13: 1511.75 | G13: 1485.95 | H13: 1581.05 | I13: 1606.85 | J13: 1628.60 | K13: 1585.1 | L13: 1537.55 | M13: 1.18734
A14: 4 | B14: ABAN | C14: 58 | D14: 58.23 | E14: 57.02 | F14: 56.03 | G14: 54.82 | H14: 59.22 | I14: 60.43 | J14: 61.42 | K14: 59.45 | L14: 57.25 | M14: 0.71729
A15: 5 | B15: ABB | C15: 1314.9 | D15: 1318.35 | E15: 1305.00 | F15: 1295.10 | G15: 1281.75 | H15: 1328.25 | I15: 1341.60 | J15: 1351.50 | K15: 1331.7 | L15: 1308.45 | M15: 1.54138
A16: 6 | B16: ABCAPITAL | C16: 98.55 | D16: 99.32 | E16: 96.83 | F16: 95.12 | G16: 92.63 | H16: 101.03 | I16: 103.52 | J16: 105.23 | K16: 101.8 | L16: 97.6 | M16: 51.54877
A17: 7 | B17: ABFRL | C17: 221.65 | D17: 222.55 | E17: 219.40 | F17: 217.15 | G17: 214.00 | H17: 224.80 | I17: 227.95 | J17: 230.20 | K17: 225.7 | L17: 220.3 | M17: 11.25372
A18: 8 | B18: ACC | C18: 1617.8 | D18: 1611.40 | E18: 1593.40 | F18: 1569.00 | G18: 1551.00 | H18: 1635.80 | I18: 1653.80 | J18: 1678.20 | K18: 1629.4 | L18: 1587 | M18: 9.42173
A19: 9 | B19: ADANIPORTS | C19: 381.3 | D19: 376.75 | E19: 370.85 | F19: 360.40 | G19: 354.50 | H19: 387.20 | I19: 393.10 | J19: 403.55 | K19: 382.65 | L19: 366.3 | M19: 59.09606
A20: 10 | B20: ADANIPOWER | C20: 46.9 | D20: 47.03 | E20: 46.47 | F20: 46.03 | G20: 45.47 | H20: 47.47 | I20: 48.03 | J20: 48.47 | K20: 47.6 | L20: 46.6 | M20: 85.21212
A21: 11 | B21: ADANITRANS | C21: 217.75 | D21: 214.98 | E21: 211.07 | F21: 204.38 | G21: 200.47 | H21: 221.67 | I21: 225.58 | J21: 232.27 | K21: 218.9 | L21: 208.3 | M21: 1.57719
A22: 12 | B22: ADVENZYMES | C22: 169.5 | D22: 170.32 | E22: 168.18 | F22: 166.87 | G22: 164.73 | H22: 171.63 | I22: 173.77 | J22: 175.08 | K22: 172.45 | L22: 169 | M22: 0.94901
A23: 13 | B23: AEGISCHEM | C23: 200.7 | D23: 201.67 | E23: 198.78 | F23: 196.87 | G23: 193.98 | H23: 203.58 | I23: 206.47 | J23: 208.38 | K23: 204.55 | L23: 199.75 | M23: 1.75564
A24: 14 | B24: AIAENG | C24: 1837.15 | D24: 1821.72 | E24: 1778.43 | F24: 1719.72 | G24: 1676.43 | H24: 1880.43 | I24: 1923.72 | J24: 1982.43 | K24: 1865 | L24: 1763 | M24: 0.56612
A25: 15 | B25: AJANTPHARM | C25: 1025.4 | D25: 1020.50 | E25: 1010.20 | F25: 995.00 | G25: 984.70 | H25: 1035.70 | I25: 1046.00 | J25: 1061.20 | K25: 1030.8 | L25: 1005.3 | M25: 3.08064
A26: 16 | B26: AKZOINDIA | C26: 1786.65 | D26: 1776.38 | E26: 1760.77 | F26: 1734.88 | G26: 1719.27 | H26: 1802.27 | I26: 1817.88 | J26: 1843.77 | K26: 1792 | L26: 1750.5 | M26: 0.05968
A27: 17 | B27: ALBK | C27: 54.9 | D27: 54.22 | E27: 53.03 | F27: 51.17 | G27: 49.98 | H27: 56.08 | I27: 57.27 | J27: 59.13 | K27: 55.4 | L27: 52.35 | M27: 140.55512
A28: 18 | B28: ALKEM | C28: 1741.7 | D28: 1748.63 | E28: 1728.47 | F28: 1715.23 | G28: 1695.07 | H28: 1761.87 | I28: 1782.03 | J28: 1795.27 | K28: 1768.8 | L28: 1735.4 | M28: 0.65921
A29: 19 | B29: ALLCARGO | C29: 116.25 | D29: 116.22 | E29: 113.68 | F29: 111.12 | G29: 108.58 | H29: 118.78 | I29: 121.32 | J29: 123.88 | K29: 118.75 | L29: 113.65 | M29: 2.51729
A30: 20 | B30: AMARAJABAT | C30: 717.45 | D30: 720.40 | E30: 709.55 | F30: 701.65 | G30: 690.80 | H30: 728.30 | I30: 739.15 | J30: 747.05 | K30: 731.25 | L30: 712.5 | M30: 18.64739
A31: 21 | B31: AMBUJACEM | C31: 231.85 | D31: 231.42 | E31: 227.93 | F31: 224.02 | G31: 220.53 | H31: 235.33 | I31: 238.82 | J31: 242.73 | K31: 234.9 | L31: 227.5 | M31: 51.96003
A32: 22 | B32: ANDHRABANK | C32: 27.95 | D32: 27.82 | E32: 27.43 | F32: 26.92 | G32: 26.53 | H32: 28.33 | I32: 28.72 | J32: 29.23 | K32: 28.2 | L32: 27.3 | M32: 62.90363
A33: 23 | B33: APLAPOLLO | C33: 1448.65 | D33: 1449.35 | E33: 1428.70 | F33: 1408.75 | G33: 1388.10 | H33: 1469.30 | I33: 1489.95 | J33: 1509.90 | K33: 1470 | L33: 1429.4 | M33: 0.21649
A34: 24 | B34: APLLTD | C34: 520.9 | D34: 525.20 | E34: 515.65 | F34: 510.40 | G34: 500.85 | H34: 530.45 | I34: 540.00 | J34: 545.25 | K34: 534.75 | L34: 519.95 | M34: 0.22016
A35: 25 | B35: APOLLOHOSP | C35: 1182.95 | D35: 1174.98 | E35: 1161.97 | F35: 1140.98 | G35: 1127.97 | H35: 1195.97 | I35: 1208.98 | J35: 1229.97 | K35: 1188 | L35: 1154 | M35: 6.93131
A36: 26 | B36: APOLLOTYRE | C36: 217.45 | D36: 216.70 | E36: 213.50 | F36: 209.55 | G36: 206.35 | H36: 220.65 | I36: 223.85 | J36: 227.80 | K36: 219.9 | L36: 212.75 | M36: 18.65135
A37: 27 | B37: ARVIND | C37: 91.85 | D37: 90.90 | E37: 89.30 | F37: 86.75 | G37: 85.15 | H37: 93.45 | I37: 95.05 | J37: 97.60 | K37: 92.5 | L37: 88.35 | M37: 42.15414
A38: 28 | B38: ASAHIINDIA | C38: 260.35 | D38: 259.47 | E38: 256.93 | F38: 253.52 | G38: 250.98 | H38: 262.88 | I38: 265.42 | J38: 268.83 | K38: 262 | L38: 256.05 | M38: 0.04049
A39: 29 | B39: ASHOKA | C39: 129.8 | D39: 130.42 | E39: 127.93 | F39: 126.07 | G39: 123.58 | H39: 132.28 | I39: 134.77 | J39: 136.63 | K39: 132.9 | L39: 128.55 | M39: 2.68966
A40: 30 | B40: ASHOKLEY | C40: 88.6 | D40: 87.87 | E40: 86.03 | F40: 83.47 | G40: 81.63 | H40: 90.43 | I40: 92.27 | J40: 94.83 | K40: 89.7 | L40: 85.3 | M40: 266.77216
A41: 31 | B41: ASIANPAINT | C41: 1497 | D41: 1493.15 | E41: 1477.35 | F41: 1457.70 | G41: 1441.90 | H41: 1512.80 | I41: 1528.60 | J41: 1548.25 | K41: 1508.95 | L41: 1473.5 | M41: 13.53947
A42: 32 | B42: ASTRAL | C42: 1147.8 | D42: 1150.97 | E42: 1136.93 | F42: 1126.07 | G42: 1112.03 | H42: 1161.83 | I42: 1175.87 | J42: 1186.73 | K42: 1165 | L42: 1140.1 | M42: 0.35278
A43: 33 | B43: ATUL | C43: 3533.2 | D43: 3524.50 | E43: 3483.70 | F43: 3434.20 | G43: 3393.40 | H43: 3574.00 | I43: 3614.80 | J43: 3664.30 | K43: 3565.3 | L43: 3475 | M43: 0.11078
A44: 34 | B44: AUBANK | C44: 588.35 | D44: 582.45 | E44: 574.90 | F44: 561.45 | G44: 553.90 | H44: 595.90 | I44: 603.45 | J44: 616.90 | K44: 590 | L44: 569 | M44: 3.07345
A45: 35 | B45: AUROPHARMA | C45: 769.25 | D45: 771.63 | E45: 763.37 | F45: 757.48 | G45: 749.22 | H45: 777.52 | I45: 785.78 | J45: 791.67 | K45: 779.9 | L45: 765.75 | M45: 24.28881
A46: 36 | B46: AVANTIFEED | C46: 419.45 | D46: 422.90 | E46: 407.80 | F46: 396.15 | G46: 381.05 | H46: 434.55 | I46: 449.65 | J46: 461.30 | K46: 438 | L46: 411.25 | M46: 13.40278
A47: 37 | B47: AXISBANK | C47: 780.7 | D47: 775.17 | E47: 762.68 | F47: 744.67 | G47: 732.18 | H47: 793.18 | I47: 805.67 | J47: 823.68 | K47: 787.65 | L47: 757.15 | M47: 166.43818
A48: 38 | B48: BAJAJ-AUTO | C48: 2948.8 | D48: 2961.42 | E48: 2902.38 | F48: 2855.97 | G48: 2796.93 | H48: 3007.83 | I48: 3066.87 | J48: 3113.28 | K48: 3020.45 | L48: 2915 | M48: 18.0055
A49: 39 | B49: BAJAJCON | C49: 312.8 | D49: 314.43 | E49: 310.37 | F49: 307.93 | G49: 303.87 | H49: 316.87 | I49: 320.93 | J49: 323.37 | K49: 318.5 | L49: 312 | M49: 1.79564
A50: 40 | B50: BAJAJELEC | C50: 566.55 | D50: 566.62 | E50: 561.43 | F50: 556.32 | G50: 551.13 | H50: 571.73 | I50: 576.92 | J50: 582.03 | K50: 571.8 | L50: 561.5 | M50: 3.25935
A51: 41 | B51: BAJAJFINSV | C51: 6952.55 | D51: 6944.25 | E51: 6865.80 | F51: 6779.05 | G51: 6700.60 | H51: 7031.00 | I51: 7109.45 | J51: 7196.20 | K51: 7022.7 | L51: 6857.5 | M51: 3.2824
A52: 42 | B52: BAJAJHIND | C52: 8 | D52: 8.05 | E52: 7.90 | F52: 7.80 | G52: 7.65 | H52: 8.15 | I52: 8.30 | J52: 8.40 | K52: 8.2 | L52: 7.95 | M52: 17.19938
A53: 43 | B53: BAJAJHLDNG | C53: 3593.65 | D53: 3543.55 | E53: 3287.10 | F53: 2980.55 | G53: 2724.10 | H53: 3850.10 | I53: 4106.55 | J53: 4413.10 | K53: 3800 | L53: 3237 | M53: 2.40494
A54: 44 | B54: BAJFINANCE | C54: 2995.85 | D54: 2978.63 | E54: 2957.27 | F54: 2918.68 | G54: 2897.32 | H54: 3017.22 | I54: 3038.58 | J54: 3077.17 | K54: 3000 | L54: 2940.05 | M54: 13.66945
A55: 45 | B55: BALKRISIND | C55: 990.75 | D55: 983.60 | E55: 968.20 | F55: 945.65 | G55: 930.25 | H55: 1006.15 | I55: 1021.55 | J55: 1044.10 | K55: 999 | L55: 961.05 | M55: 12.436
A56: 46 | B56: BALLARPUR | C56: 2.95 | D56: 2.95 | E56: 2.90 | F56: 2.85 | G56: 2.80 | H56: 3.00 | I56: 3.05 | J56: 3.10 | K56: 3 | L56: 2.9 | M56: 29.21772
A57: 47 | B57: BALMLAWRIE | C57: 186.15 | D57: 186.20 | E57: 184.40 | F57: 182.65 | G57: 180.85 | H57: 187.95 | I57: 189.75 | J57: 191.50 | K57: 188 | L57: 184.45 | M57: 0.26426
A58: 48 | B58: BALRAMCHIN | C58: 135.2 | D58: 135.53 | E58: 133.67 | F58: 132.13 | G58: 130.27 | H58: 137.07 | I58: 138.93 | J58: 140.47 | K58: 137.4 | L58: 134 | M58: 11.32576
A59: 49 | B59: BANKBARODA | C59: 130.1 | D59: 127.68 | E59: 123.97 | F59: 117.83 | G59: 114.12 | H59: 133.82 | I59: 137.53 | J59: 143.67 | K59: 131.4 | L59: 121.55 | M59: 441.99513
A60: 50 | B60: BANKINDIA | C60: 105.85 | D60: 105.05 | E60: 103.60 | F60: 101.35 | G60: 99.90 | H60: 107.30 | I60: 108.75 | J60: 111.00 | K60: 106.5 | L60: 102.8 | M60: 124.05815
A61: 51 | B61: BASF | C61: 1481.75 | D61: 1467.02 | E61: 1435.03 | F61: 1388.32 | G61: 1356.33 | H61: 1513.73 | I61: 1545.72 | J61: 1592.43 | K61: 1499 | L61: 1420.3 | M61: 0.12331
A62: 52 | B62: BATAINDIA | C62: 1413.4 | D62: 1402.75 | E62: 1378.35 | F62: 1343.30 | G62: 1318.90 | H62: 1437.80 | I62: 1462.20 | J62: 1497.25 | K62: 1427.15 | L62: 1367.7 | M62: 15.13755
A63: 53 | B63: BBTC | C63: 1283.55 | D63: 1287.48 | E63: 1261.07 | F63: 1238.58 | G63: 1212.17 | H63: 1309.97 | I63: 1336.38 | J63: 1358.87 | K63: 1313.9 | L63: 1265 | M63: 1.14341
A64: 54 | B64: BEL | C64: 92.45 | D64: 92.43 | E64: 91.67 | F64: 90.88 | G64: 90.12 | H64: 93.22 | I64: 93.98 | J64: 94.77 | K64: 93.2 | L64: 91.65 | M64: 166.39126
A65: 55 | B65: BEML | C65: 991.7 | D65: 984.32 | E65: 973.13 | F65: 954.57 | G65: 943.38 | H65: 1002.88 | I65: 1014.07 | J65: 1032.63 | K65: 995.5 | L65: 965.75 | M65: 13.57842
A66: 56 | B66: BERGEPAINT | C66: 324.35 | D66: 324.38 | E66: 320.97 | F66: 317.58 | G66: 314.17 | H66: 327.77 | I66: 331.18 | J66: 334.57 | K66: 327.8 | L66: 321 | M66: 5.69292
A67: 57 | B67: BFUTILITIE | C67: 194.55 | D67: 195.32 | E67: 192.58 | F67: 190.62 | G67: 187.88 | H67: 197.28 | I67: 200.02 | J67: 201.98 | K67: 198.05 | L67: 193.35 | M67: 2.33619
A68: 58 | B68: BGRENERGY | C68: 63.4 | D68: 62.83 | E68: 61.92 | F68: 60.43 | G68: 59.52 | H68: 64.32 | I68: 65.23 | J68: 66.72 | K68: 63.75 | L68: 61.35 | M68: 1.03202
A69: 59 | B69: BHARATFIN | C69: 1137.35 | D69: 1131.42 | E69: 1120.98 | F69: 1104.62 | G69: 1094.18 | H69: 1147.78 | I69: 1158.22 | J69: 1174.58 | K69: 1141.85 | L69: 1115.05 | M69: 14.9916
A70: 60 | B70: BHARATFORG | C70: 494.65 | D70: 493.67 | E70: 488.98 | F70: 483.32 | G70: 478.63 | H70: 499.33 | I70: 504.02 | J70: 509.68 | K70: 498.35 | L70: 488 | M70: 15.97993
A71: 61 | B71: BHARTIARTL | C71: 329.95 | D71: 326.90 | E71: 320.80 | F71: 311.65 | G71: 305.55 | H71: 336.05 | I71: 342.15 | J71: 351.30 | K71: 333 | L71: 317.75 | M71: 122.72355
A72: 62 | B72: BHEL | C72: 71.55 | D72: 71.60 | E72: 70.80 | F72: 70.05 | G72: 69.25 | H72: 72.35 | I72: 73.15 | J72: 73.90 | K72: 72.4 | L72: 70.85 | M72: 453.26931
A73: 63 | B73: BIOCON | C73: 606.95 | D73: 602.60 | E73: 596.45 | F73: 585.95 | G73: 579.80 | H73: 613.10 | I73: 619.25 | J73: 629.75 | K73: 608.75 | L73: 592.1 | M73: 23.12733
A74: 64 | B74: BIRLACORPN | C74: 524.5 | D74: 521.17 | E74: 517.33 | F74: 510.17 | G74: 506.33 | H74: 528.33 | I74: 532.17 | J74: 539.33 | K74: 525 | L74: 514 | M74: 0.66743
A75: 65 | B75: BLISSGVS | C75: 177.45 | D75: 174.82 | E75: 168.63 | F75: 159.82 | G75: 153.63 | H75: 183.63 | I75: 189.82 | J75: 198.63 | K75: 181 | L75: 166 | M75: 18.42267
A76: 66 | B76: BLUEDART | C76: 3593.65 | D76: 3570.70 | E76: 3441.40 | F76: 3289.15 | G76: 3159.85 | H76: 3722.95 | I76: 3852.25 | J76: 4004.50 | K76: 3700 | L76: 3418.45 | M76: 0.0628
A77: 67 | B77: BLUESTARCO | C77: 668.65 | D77: 667.75 | E77: 663.90 | F77: 659.15 | G77: 655.30 | H77: 672.50 | I77: 676.35 | J77: 681.10 | K77: 671.6 | L77: 663 | M77: 0.14603
A78: 68 | B78: BOMDYEING | C78: 138.2 | D78: 138.80 | E78: 135.90 | F78: 133.60 | G78: 130.70 | H78: 141.10 | I78: 144.00 | J78: 146.30 | K78: 141.7 | L78: 136.5 | M78: 19.89665
A79: 69 | B79: BOSCHLTD | C79: 17886.15 | D79: 17901.25 | E79: 17802.50 | F79: 17718.85 | G79: 17620.10 | H79: 17984.90 | I79: 18083.65 | J79: 18167.30 | K79: 18000 | L79: 17817.6 | M79: 0.25602
A80: 70 | B80: BPCL | C80: 385.85 | D80: 384.42 | E80: 379.78 | F80: 373.72 | G80: 369.08 | H80: 390.48 | I80: 395.12 | J80: 401.18 | K80: 389.05 | L80: 378.35 | M80: 55.84974
A81: 71 | B81: BRFL | C81: 8.95 | D81: 8.93 | E81: 8.62 | F81: 8.28 | G81: 7.97 | H81: 9.27 | I81: 9.58 | J81: 9.92 | K81: 9.25 | L81: 8.6 | M81: 1.64281
A82: 72 | B82: BRIGADE | C82: 242.75 | D82: 244.65 | E82: 239.15 | F82: 235.55 | G82: 230.05 | H82: 248.25 | I82: 253.75 | J82: 257.35 | K82: 250.15 | L82: 241.05 | M82: 0.55359
A83: 73 | B83: BRITANNIA | C83: 3096.55 | D83: 3081.02 | E83: 3043.53 | F83: 2990.52 | G83: 2953.03 | H83: 3134.03 | I83: 3171.52 | J83: 3224.53 | K83: 3118.5 | L83: 3028 | M83: 34.70524
A84: 74 | B84: BSE | C84: 610.6 | D84: 612.48 | E84: 605.12 | F84: 599.63 | G84: 592.27 | H84: 617.97 | I84: 625.33 | J84: 630.82 | K84: 619.85 | L84: 607 | M84: 1.59371
A85: 75 | B85: BSOFT | C85: 98.35 | D85: 98.30 | E85: 96.70 | F85: 95.05 | G85: 93.45 | H85: 99.95 | I85: 101.55 | J85: 103.20 | K85: 99.9 | L85: 96.65 | M85: 10.78195
A86: 77 | B86: CADILAHC | C86: 335.95 | D86: 334.75 | E86: 331.70 | F86: 327.45 | G86: 324.40 | H86: 339.00 | I86: 342.05 | J86: 346.30 | K86: 337.8 | L86: 330.5 | M86: 7.70606
A87: 78 | B87: CANBK | C87: 296.45 | D87: 293.48 | E87: 286.97 | F87: 277.48 | G87: 270.97 | H87: 302.97 | I87: 309.48 | J87: 318.97 | K87: 300 | L87: 284 | M87: 103.7023
A88: 79 | B88: CANFINHOME | C88: 345.9 | D88: 343.47 | E88: 339.43 | F88: 332.97 | G88: 328.93 | H88: 349.93 | I88: 353.97 | J88: 360.43 | K88: 347.5 | L88: 337 | M88: 15.66025
A89: 80 | B89: CAPLIPOINT | C89: 400.75 | D89: 404.52 | E89: 395.33 | F89: 389.92 | G89: 380.73 | H89: 409.93 | I89: 419.12 | J89: 424.53 | K89: 413.7 | L89: 399.1 | M89: 0.3418
A90: 81 | B90: CARBORUNIV | C90: 388.45 | D90: 387.03 | E90: 382.17 | F90: 375.88 | G90: 371.02 | H90: 393.32 | I90: 398.18 | J90: 404.47 | K90: 391.9 | L90: 380.75 | M90: 0.84327
A91: 82 | B91: CARERATING | C91: 992.9 | D91: 993.67 | E91: 987.33 | F91: 981.77 | G91: 975.43 | H91: 999.23 | I91: 1005.57 | J91: 1011.13 | K91: 1000 | L91: 988.1 | M91: 0.3131
A92: 83 | B92: CASTROLIND | C92: 164.75 | D92: 164.18 | E92: 162.67 | F92: 160.58 | G92: 159.07 | H92: 166.27 | I92: 167.78 | J92: 169.87 | K92: 165.7 | L92: 162.1 | M92: 13.40702
A93: 84 | B93: CCL | C93: 288 | D93: 288.63 | E93: 284.57 | F93: 281.13 | G93: 277.07 | H93: 292.07 | I93: 296.13 | J93: 299.57 | K93: 292.7 | L93: 285.2 | M93: 0.25432
A94: 85 | B94: CDSL | C94: 241.95 | D94: 239.60 | E94: 236.45 | F94: 230.95 | G94: 227.80 | H94: 245.10 | I94: 248.25 | J94: 253.75 | K94: 242.75 | L94: 234.1 | M94: 2.64941
A95: 86 | B95: CEATLTD | C95: 1090.3 | D95: 1086.78 | E95: 1073.57 | F95: 1056.83 | G95: 1043.62 | H95: 1103.52 | I95: 1116.73 | J95: 1133.47 | K95: 1100 | L95: 1070.05 | M95: 4.32436
A96: 87 | B96: CENTRALBK | C96: 34.95 | D96: 34.53 | E96: 32.92 | F96: 30.88 | G96: 29.27 | H96: 36.57 | I96: 38.18 | J96: 40.22 | K96: 36.15 | L96: 32.5 | M96: 30.06015
A97: 88 | B97: CENTURYPLY | C97: 201.55 | D97: 201.20 | E97: 198.70 | F97: 195.85 | G97: 193.35 | H97: 204.05 | I97: 206.55 | J97: 209.40 | K97: 203.7 | L97: 198.35 | M97: 1.38967
A98: 89 | B98: CENTURYTEX | C98: 905.2 | D98: 905.50 | E98: 897.00 | F98: 888.80 | G98: 880.30 | H98: 913.70 | I98: 922.20 | J98: 930.40 | K98: 914 | L98: 897.3 | M98: 3.97369
A99: 90 | B99: CERA | C99: 2754.5 | D99: 2727.07 | E99: 2679.43 | F99: 2604.37 | G99: 2556.73 | H99: 2802.13 | I99: 2849.77 | J99: 2924.83 | K99: 2774.7 | L99: 2652 | M99: 0.10209
A100: 91 | B100: CGPOWER | C100: 43.4 | D100: 43.28 | E100: 42.47 | F100: 41.53 | G100: 40.72 | H100: 44.22 | I100: 45.03 | J100: 45.97 | K100: 44.1 | L100: 42.35 | M100: 78.17114
A101: 92 | B101: CHAMBLFERT | C101: 169.3 | D101: 170.52 | E101: 167.03 | F101: 164.77 | G101: 161.28 | H101: 172.78 | I101: 176.27 | J101: 178.53 | K101: 174 | L101: 168.25 | M101: 1.94691
A102: 93 | B102: CHENNPETRO | C102: 264.75 | D102: 263.42 | E102: 258.83 | F102: 252.92 | G102: 248.33 | H102: 269.33 | I102: 273.92 | J102: 279.83 | K102: 268 | L102: 257.5 | M102: 2.45723
A103: 94 | B103: CHOLAFIN | C103: 1450.15 | D103: 1440.98 | E103: 1427.17 | F103: 1404.18 | G103: 1390.37 | H103: 1463.97 | I103: 1477.78 | J103: 1500.77 | K103: 1454.8 | L103: 1418 | M103: 4.53337
A104: 95 | B104: CIPLA | C104: 525.6 | D104: 525.08 | E104: 522.82 | F104: 520.03 | G104: 517.77 | H104: 527.87 | I104: 530.13 | J104: 532.92 | K104: 527.35 | L104: 522.3 | M104: 41.33379
A105: 96 | B105: COALINDIA | C105: 236.1 | D105: 235.50 | E105: 233.35 | F105: 230.60 | G105: 228.45 | H105: 238.25 | I105: 240.40 | J105: 243.15 | K105: 237.65 | L105: 232.75 | M105: 205.84925
A106: 97 | B106: COCHINSHIP | C106: 397.25 | D106: 396.42 | E106: 393.83 | F106: 390.42 | G106: 387.83 | H106: 399.83 | I106: 402.42 | J106: 405.83 | K106: 399 | L106: 393 | M106: 0.72853
A107: 98 | B107: COFFEEDAY | C107: 296.4 | D107: 293.75 | E107: 286.50 | F107: 276.60 | G107: 269.35 | H107: 303.65 | I107: 310.90 | J107: 320.80 | K107: 301 | L107: 283.85 | M107: 2.57098
A108: 99 | B108: COLPAL | C108: 1251.9 | D108: 1257.90 | E108: 1244.00 | F108: 1236.10 | G108: 1222.20 | H108: 1265.80 | I108: 1279.70 | J108: 1287.60 | K108: 1271.8 | L108: 1250 | M108: 3.53385
A109: 100 | B109: CONCOR | C109: 511.2 | D109: 509.45 | E109: 504.70 | F109: 498.20 | G109: 493.45 | H109: 515.95 | I109: 520.70 | J109: 527.20 | K109: 514.2 | L109: 502.95 | M109: 7.1874
A110: 101 | B110: COROMANDEL | C110: 495.8 | D110: 494.45 | E110: 486.90 | F110: 478.00 | G110: 470.45 | H110: 503.35 | I110: 510.90 | J110: 519.80 | K110: 502 | L110: 485.55 | M110: 2.21015
A111: 102 | B111: COX&KINGS | C111: 139.6 | D111: 139.95 | E111: 138.60 | F111: 137.60 | G111: 136.25 | H111: 140.95 | I111: 142.30 | J111: 143.30 | K111: 141.3 | L111: 138.95 | M111: 1.30991
A112: 103 | B112: CRISIL | C112: 1447.8 | D112: 1455.75 | E112: 1432.55 | F112: 1417.30 | G112: 1394.10 | H112: 1471.00 | I112: 1494.20 | J112: 1509.45 | K112: 1478.95 | L112: 1440.5 | M112: 0.41181
A113: 104 | B113: CROMPTON | C113: 220.55 | D113: 218.78 | E113: 215.57 | F113: 210.58 | G113: 207.37 | H113: 223.77 | I113: 226.98 | J113: 231.97 | K113: 222 | L113: 213.8 | M113: 8.64639
A114: 105 | B114: CUB | C114: 201.35 | D114: 201.53 | E114: 200.12 | F114: 198.88 | G114: 197.47 | H114: 202.77 | I114: 204.18 | J114: 205.42 | K114: 202.95 | L114: 200.3 | M114: 3.98563
A115: 106 | B115: CUMMINSIND | C115: 740.3 | D115: 742.12 | E115: 734.28 | F115: 728.27 | G115: 720.43 | H115: 748.13 | I115: 755.97 | J115: 761.98 | K115: 749.95 | L115: 736.1 | M115: 5.85224
A116: 107 | B116: CYIENT | C116: 651.85 | D116: 658.38 | E116: 642.82 | F116: 633.78 | G116: 618.22 | H116: 667.42 | I116: 682.98 | J116: 692.02 | K116: 673.95 | L116: 649.35 | M116: 2.48017
A117: 108 | B117: DABUR | C117: 410.95 | D117: 411.90 | E117: 406.50 | F117: 402.05 | G117: 396.65 | H117: 416.35 | I117: 421.75 | J117: 426.20 | K117: 417.3 | L117: 407.45 | M117: 62.47333
A118: 109 | B118: DBCORP | C118: 188.95 | D118: 189.13 | E118: 186.27 | F118: 183.58 | G118: 180.72 | H118: 191.82 | I118: 194.68 | J118: 197.37 | K118: 192 | L118: 186.45 | M118: 0.24978
A119: 110 | B119: DBL | C119: 648.6 | D119: 656.77 | E119: 636.83 | F119: 625.07 | G119: 605.13 | H119: 668.53 | I119: 688.47 | J119: 700.23 | K119: 676.7 | L119: 645 | M119: 2.89252
A120: 111 | B120: DBREALTY | C120: 20.1 | D120: 20.08 | E120: 19.82 | F120: 19.53 | G120: 19.27 | H120: 20.37 | I120: 20.63 | J120: 20.92 | K120: 20.35 | L120: 19.8 | M120: 2.93606
A121: 112 | B121: DCAL | C121: 208.7 | D121: 207.90 | E121: 205.20 | F121: 201.70 | G121: 199.00 | H121: 211.40 | I121: 214.10 | J121: 217.60 | K121: 210.6 | L121: 204.4 | M121: 1.22936
A122: 113 | B122: DCBBANK | C122: 204.95 | D122: 204.28 | E122: 203.07 | F122: 201.18 | G122: 199.97 | H122: 206.17 | I122: 207.38 | J122: 209.27 | K122: 205.5 | L122: 202.4 | M122: 18.20801
A123: 114 | B123: DCMSHRIRAM | C123: 411.7 | D123: 413.40 | E123: 407.40 | F123: 403.10 | G123: 397.10 | H123: 417.70 | I123: 423.70 | J123: 428.00 | K123: 419.4 | L123: 409.1 | M123: 2.16541
A124: 115 | B124: DEEPAKFERT | C124: 135.7 | D124: 136.03 | E124: 134.22 | F124: 132.73 | G124: 130.92 | H124: 137.52 | I124: 139.33 | J124: 140.82 | K124: 137.85 | L124: 134.55 | M124: 1.96894
A125: 116 | B125: DELTACORP | C125: 261.4 | D125: 260.75 | E125: 258.60 | F125: 255.80 | G125: 253.65 | H125: 263.55 | I125: 265.70 | J125: 268.50 | K125: 262.9 | L125: 257.95 | M125: 11.25342
A126: 117 | B126: DEN | C126: 69.45 | D126: 69.83 | E126: 68.67 | F126: 67.88 | G126: 66.72 | H126: 70.62 | I126: 71.78 | J126: 72.57 | K126: 71 | L126: 69.05 | M126: 0.35571
A127: 118 | B127: DHFL | C127: 149.5 | D127: 147.27 | E127: 139.73 | F127: 129.97 | G127: 122.43 | H127: 157.03 | I127: 164.57 | J127: 174.33 | K127: 154.8 | L127: 137.5 | M127: 641.67497
A128: 119 | B128: DISHTV | C128: 39 | D128: 38.35 | E128: 36.95 | F128: 34.90 | G128: 33.50 | H128: 40.40 | I128: 41.80 | J128: 43.85 | K128: 39.75 | L128: 36.3 | M128: 225.70883
A129: 120 | B129: DIVISLAB | C129: 1654.55 | D129: 1665.02 | E129: 1631.03 | F129: 1607.52 | G129: 1573.53 | H129: 1688.53 | I129: 1722.52 | J129: 1746.03 | K129: 1699 | L129: 1641.5 | M129: 16.81103
A130: 121 | B130: DIXON | C130: 2364 | D130: 2368.33 | E130: 2336.67 | F130: 2309.33 | G130: 2277.67 | H130: 2395.67 | I130: 2427.33 | J130: 2454.67 | K130: 2400 | L130: 2341 | M130: 0.0591
A131: 122 | B131: DLF | C131: 194.05 | D131: 194.48 | E131: 191.17 | F131: 188.28 | G131: 184.97 | H131: 197.37 | I131: 200.68 | J131: 203.57 | K131: 197.8 | L131: 191.6 | M131: 100.10007
A132: 123 | B132: DMART | C132: 1472.5 | D132: 1475.17 | E132: 1465.33 | F132: 1458.17 | G132: 1448.33 | H132: 1482.33 | I132: 1492.17 | J132: 1499.33 | K132: 1485 | L132: 1468 | M132: 2.07862
A133: 124 | B133: DREDGECORP | C133: 422.9 | D133: 424.90 | E133: 419.95 | F133: 417.00 | G133: 412.05 | H133: 427.85 | I133: 432.80 | J133: 435.75 | K133: 429.85 | L133: 421.95 | M133: 1.07727
A134: 125 | B134: DRREDDY | C134: 2717.2 | D134: 2733.30 | E134: 2691.90 | F134: 2666.60 | G134: 2625.20 | H134: 2758.60 | I134: 2800.00 | J134: 2825.30 | K134: 2774.7 | L134: 2708 | M134: 6.63559
A135: 126 | B135: ECLERX | C135: 1148.95 | D135: 1145.90 | E135: 1138.15 | F135: 1127.35 | G135: 1119.60 | H135: 1156.70 | I135: 1164.45 | J135: 1175.25 | K135: 1153.65 | L135: 1135.1 | M135: 0.30525
A136: 127 | B136: EDELWEISS | C136: 194.2 | D136: 193.38 | E136: 189.87 | F136: 185.53 | G136: 182.02 | H136: 197.72 | I136: 201.23 | J136: 205.57 | K136: 196.9 | L136: 189.05 | M136: 33.58162
A137: 128 | B137: EICHERMOT | C137: 20899 | D137: 20993.35 | E137: 20686.70 | F137: 20474.40 | G137: 20167.75 | H137: 21205.65 | I137: 21512.30 | J137: 21724.60 | K137: 21300 | L137: 20781.05 | M137: 1.25561
A138: 129 | B138: EIDPARRY | C138: 204.6 | D138: 201.98 | E138: 198.97 | F138: 193.33 | G138: 190.32 | H138: 207.62 | I138: 210.63 | J138: 216.27 | K138: 205 | L138: 196.35 | M138: 1.05094
A139: 130 | B139: EIHOTEL | C139: 201.7 | D139: 199.87 | E139: 194.83 | F139: 187.97 | G139: 182.93 | H139: 206.73 | I139: 211.77 | J139: 218.63 | K139: 204.9 | L139: 193 | M139: 4.89579
A140: 131 | B140: EMAMILTD | C140: 397.75 | D140: 399.58 | E140: 394.17 | F140: 390.58 | G140: 385.17 | H140: 403.17 | I140: 408.58 | J140: 412.17 | K140: 405 | L140: 396 | M140: 1.67935
A141: 132 | B141: ENDURANCE | C141: 1148.45 | D141: 1150.92 | E141: 1143.83 | F141: 1139.22 | G141: 1132.13 | H141: 1155.53 | I141: 1162.62 | J141: 1167.23 | K141: 1158 | L141: 1146.3 | M141: 0.89097
A142: 133 | B142: ENGINERSIN | C142: 115.6 | D142: 115.93 | E142: 114.72 | F142: 113.83 | G142: 112.62 | H142: 116.82 | I142: 118.03 | J142: 118.92 | K142: 117.15 | L142: 115.05 | M142: 18.77028
A143: 134 | B143: EQUITAS | C143: 135.7 | D143: 135.25 | E143: 134.30 | F143: 132.90 | G143: 131.95 | H143: 136.65 | I143: 137.60 | J143: 139.00 | K143: 136.2 | L143: 133.85 | M143: 27.09122
A144: 135 | B144: ERIS | C144: 639.85 | D144: 636.72 | E144: 630.28 | F144: 620.72 | G144: 614.28 | H144: 646.28 | I144: 652.72 | J144: 662.28 | K144: 643.15 | L144: 627.15 | M144: 0.16731
A145: 136 | B145: EROSMEDIA | C145: 78.85 | D145: 78.80 | E145: 77.95 | F145: 77.05 | G145: 76.20 | H145: 79.70 | I145: 80.55 | J145: 81.45 | K145: 79.65 | L145: 77.9 | M145: 2.92193
A146: 137 | B146: ESCORTS | C146: 792.45 | D146: 800.75 | E146: 781.70 | F146: 770.95 | G146: 751.90 | H146: 811.50 | I146: 830.55 | J146: 841.30 | K146: 819.8 | L146: 790 | M146: 25.109
A147: 138 | B147: EVEREADY | C147: 194.6 | D147: 195.10 | E147: 191.40 | F147: 188.20 | G147: 184.50 | H147: 198.30 | I147: 202.00 | J147: 205.20 | K147: 198.8 | L147: 191.9 | M147: 4.14502
A148: 139 | B148: EXIDEIND | C148: 220.9 | D148: 223.17 | E148: 217.73 | F148: 214.57 | G148: 209.13 | H148: 226.33 | I148: 231.77 | J148: 234.93 | K148: 228.6 | L148: 220 | M148: 38.97132
A149: 140 | B149: FCONSUMER | C149: 44.9 | D149: 45.05 | E149: 44.45 | F149: 44.00 | G149: 43.40 | H149: 45.50 | I149: 46.10 | J149: 46.55 | K149: 45.65 | L149: 44.6 | M149: 8.54237
A150: 141 | B150: FEDERALBNK | C150: 93.65 | D150: 93.08 | E150: 91.87 | F150: 90.08 | G150: 88.87 | H150: 94.87 | I150: 96.08 | J150: 97.87 | K150: 94.3 | L150: 91.3 | M150: 144.08292
A151: 142 | B151: FINCABLES | C151: 482.85 | D151: 485.28 | E151: 478.57 | F151: 474.28 | G151: 467.57 | H151: 489.57 | I151: 496.28 | J151: 500.57 | K151: 492 | L151: 481 | M151: 0.24861
A152: 143 | B152: FINPIPE | C152: 498.15 | D152: 495.38 | E152: 490.77 | F152: 483.38 | G152: 478.77 | H152: 502.77 | I152: 507.38 | J152: 514.77 | K152: 500 | L152: 488 | M152: 0.11154
A153: 144 | B153: FLFL | C153: 485 | D153: 483.12 | E153: 479.53 | F153: 474.07 | G153: 470.48 | H153: 488.58 | I153: 492.17 | J153: 497.63 | K153: 486.7 | L153: 477.65 | M153: 2.6178
A154: 145 | B154: FSL | C154: 47.8 | D154: 48.27 | E154: 47.13 | F154: 46.47 | G154: 45.33 | H154: 48.93 | I154: 50.07 | J154: 50.73 | K154: 49.4 | L154: 47.6 | M154: 15.70684
A155: 146 | B155: GAIL | C155: 358.3 | D155: 358.53 | E155: 354.07 | F155: 349.83 | G155: 345.37 | H155: 362.77 | I155: 367.23 | J155: 371.47 | K155: 363 | L155: 354.3 | M155: 46.61285
A156: 147 | B156: GATI | C156: 88.2 | D156: 87.87 | E156: 86.03 | F156: 83.87 | G156: 82.03 | H156: 90.03 | I156: 91.87 | J156: 94.03 | K156: 89.7 | L156: 85.7 | M156: 10.35181
A157: 148 | B157: GDL | C157: 128.55 | D157: 127.93 | E157: 125.97 | F157: 123.38 | G157: 121.42 | H157: 130.52 | I157: 132.48 | J157: 135.07 | K157: 129.9 | L157: 125.35 | M157: 0.60842
A158: 149 | B158: GEPIL | C158: 802.4 | D158: 803.30 | E158: 787.10 | F158: 771.80 | G158: 755.60 | H158: 818.60 | I158: 834.80 | J158: 850.10 | K158: 819.5 | L158: 788 | M158: 0.20447
A159: 150 | B159: GESHIP | C159: 284.35 | D159: 283.38 | E159: 281.17 | F159: 277.98 | G159: 275.77 | H159: 286.57 | I159: 288.78 | J159: 291.97 | K159: 285.6 | L159: 280.2 | M159: 0.24949
A160: 151 | B160: GET&D | C160: 273.6 | D160: 271.97 | E160: 266.53 | F160: 259.47 | G160: 254.03 | H160: 279.03 | I160: 284.47 | J160: 291.53 | K160: 277.4 | L160: 264.9 | M160: 0.92483
A161: 152 | B161: GHCL | C161: 242.05 | D161: 243.30 | E161: 239.75 | F161: 237.45 | G161: 233.90 | H161: 245.60 | I161: 249.15 | J161: 251.45 | K161: 246.85 | L161: 241 | M161: 0.58968
A162: 153 | B162: GICRE | C162: 238.7 | D162: 240.17 | E162: 235.33 | F162: 231.97 | G162: 227.13 | H162: 243.53 | I162: 248.37 | J162: 251.73 | K162: 245 | L162: 236.8 | M162: 0.80655
A163: 154 | B163: GILLETTE | C163: 6606.85 | D163: 6581.07 | E163: 6512.13 | F163: 6417.42 | G163: 6348.48 | H163: 6675.78 | I163: 6744.72 | J163: 6839.43 | K163: 6650 | L163: 6486.35 | M163: 0.04061
A164: 155 | B164: GLAXO | C164: 1296.55 | D164: 1295.78 | E164: 1291.57 | F164: 1286.58 | G164: 1282.37 | H164: 1300.77 | I164: 1304.98 | J164: 1309.97 | K164: 1300 | L164: 1290.8 | M164: 0.13448
A165: 156 | B165: GLENMARK | C165: 650.3 | D165: 646.28 | E165: 641.57 | F165: 632.83 | G165: 628.12 | H165: 655.02 | I165: 659.73 | J165: 668.47 | K165: 651 | L165: 637.55 | M165: 4.71259
A166: 157 | B166: GMDCLTD | C166: 81.3 | D166: 81.38 | E166: 80.77 | F166: 80.23 | G166: 79.62 | H166: 81.92 | I166: 82.53 | J166: 83.07 | K166: 82 | L166: 80.85 | M166: 1.23569
A167: 158 | B167: GMRINFRA | C167: 20 | D167: 19.95 | E167: 19.45 | F167: 18.90 | G167: 18.40 | H167: 20.50 | I167: 21.00 | J167: 21.55 | K167: 20.45 | L167: 19.4 | M167: 534.79398
A168: 159 | B168: GNFC | C168: 313.15 | D168: 311.05 | E168: 308.40 | F168: 303.65 | G168: 301.00 | H168: 315.80 | I168: 318.45 | J168: 323.20 | K168: 313.7 | L168: 306.3 | M168: 4.12513
A169: 160 | B169: GODFRYPHLP | C169: 1136.45 | D169: 1133.20 | E169: 1122.35 | F169: 1108.25 | G169: 1097.40 | H169: 1147.30 | I169: 1158.15 | J169: 1172.25 | K169: 1144.05 | L169: 1119.1 | M169: 2.49119
A170: 161 | B170: GODREJAGRO | C170: 509.2 | D170: 511.07 | E170: 504.13 | F170: 499.07 | G170: 492.13 | H170: 516.13 | I170: 523.07 | J170: 528.13 | K170: 518 | L170: 506 | M170: 0.89696
A171: 162 | B171: GODREJCP | C171: 693.5 | D171: 693.75 | E171: 689.75 | F171: 686.00 | G171: 682.00 | H171: 697.50 | I171: 701.50 | J171: 705.25 | K171: 697.75 | L171: 690 | M171: 10.03439
A172: 163 | B172: GODREJIND | C172: 536.5 | D172: 538.58 | E172: 531.27 | F172: 526.03 | G172: 518.72 | H172: 543.82 | I172: 551.13 | J172: 556.37 | K172: 545.9 | L172: 533.35 | M172: 2.85059
A173: 164 | B173: GODREJPROP | C173: 867.9 | D173: 870.20 | E173: 855.40 | F173: 842.90 | G173: 828.10 | H173: 882.70 | I173: 897.50 | J173: 910.00 | K173: 885 | L173: 857.7 | M173: 5.85307
A174: 165 | B174: GPPL | C174: 100.3 | D174: 100.77 | E174: 99.53 | F174: 98.77 | G174: 97.53 | H174: 101.53 | I174: 102.77 | J174: 103.53 | K174: 102 | L174: 100 | M174: 11.29761
A175: 166 | B175: GRANULES | C175: 116.65 | D175: 117.08 | E175: 114.32 | F175: 111.98 | G175: 109.22 | H175: 119.42 | I175: 122.18 | J175: 124.52 | K175: 119.85 | L175: 114.75 | M175: 13.60016
A176: 167 | B176: GRAPHITE | C176: 444.25 | D176: 439.90 | E176: 421.80 | F176: 399.35 | G176: 381.25 | H176: 462.35 | I176: 480.45 | J176: 502.90 | K176: 458 | L176: 417.45 | M176: 37.62403
A177: 168 | B177: GRASIM | C177: 830.15 | D177: 831.77 | E177: 822.08 | F177: 814.02 | G177: 804.33 | H177: 839.83 | I177: 849.52 | J177: 857.58 | K177: 841.45 | L177: 823.7 | M177: 10.10951
A178: 169 | B178: GREAVESCOT | C178: 141.3 | D178: 141.68 | E178: 139.47 | F178: 137.63 | G178: 135.42 | H178: 143.52 | I178: 145.73 | J178: 147.57 | K178: 143.9 | L178: 139.85 | M178: 2.15326
A179: 170 | B179: GREENPLY | C179: 151.65 | D179: 152.42 | E179: 149.23 | F179: 146.82 | G179: 143.63 | H179: 154.83 | I179: 158.02 | J179: 160.43 | K179: 155.6 | L179: 150 | M179: 2.21497
A180: 171 | B180: GRUH | C180: 273 | D180: 269.37 | E180: 263.23 | F180: 253.47 | G180: 247.33 | H180: 279.13 | I180: 285.27 | J180: 295.03 | K180: 275.5 | L180: 259.6 | M180: 104.72682
A181: 172 | B181: GSFC | C181: 102.2 | D181: 102.22 | E181: 100.68 | F181: 99.17 | G181: 97.63 | H181: 103.73 | I181: 105.27 | J181: 106.78 | K181: 103.75 | L181: 100.7 | M181: 21.45564
A182: 173 | B182: GSKCONS | C182: 7224.85 | D182: 7145.55 | E182: 6973.30 | F182: 6721.75 | G182: 6549.50 | H182: 7397.10 | I182: 7569.35 | J182: 7820.90 | K182: 7317.8 | L182: 6894 | M182: 0.90382
A183: 174 | B183: GSPL | C183: 185.15 | D183: 182.70 | E183: 178.45 | F183: 171.75 | G183: 167.50 | H183: 189.40 | I183: 193.65 | J183: 200.35 | K183: 186.95 | L183: 176 | M183: 18.22559
A184: 175 | B184: GUJALKALI | C184: 493.55 | D184: 497.53 | E184: 486.97 | F184: 480.38 | G184: 469.82 | H184: 504.12 | I184: 514.68 | J184: 521.27 | K184: 508.1 | L184: 490.95 | M184: 0.587
A185: 176 | B185: GUJFLUORO | C185: 1079.6 | D185: 1076.13 | E185: 1067.27 | F185: 1054.93 | G185: 1046.07 | H185: 1088.47 | I185: 1097.33 | J185: 1109.67 | K185: 1085 | L185: 1063.8 | M185: 1.93478
A186: 177 | B186: GUJGASLTD | C186: 144.55 | D186: 144.07 | E186: 143.13 | F186: 141.72 | G186: 140.78 | H186: 145.48 | I186: 146.42 | J186: 147.83 | K186: 145 | L186: 142.65 | M186: 5.13721
A187: 178 | B187: GULFOILLUB | C187: 838.1 | D187: 839.17 | E187: 833.88 | F187: 829.67 | G187: 824.38 | H187: 843.38 | I187: 848.67 | J187: 852.88 | K187: 844.45 | L187: 834.95 | M187: 1.05186
A188: 179 | B188: GVKPIL | C188: 7.8 | D188: 8.00 | E188: 7.55 | F188: 7.30 | G188: 6.85 | H188: 8.25 | I188: 8.70 | J188: 8.95 | K188: 8.45 | L188: 7.75 | M188: 51.69389
A189: 180 | B189: HATHWAY | C189: 29.35 | D189: 29.47 | E189: 28.93 | F189: 28.52 | G189: 27.98 | H189: 29.88 | I189: 30.42 | J189: 30.83 | K189: 30 | L189: 29.05 | M189: 1.95269
A190: 181 | B190: HATSUN | C190: 714.45 | D190: 712.27 | E190: 706.18 | F190: 697.92 | G190: 691.83 | H190: 720.53 | I190: 726.62 | J190: 734.88 | K190: 718.35 | L190: 704 | M190: 0.09142
A191: 182 | B191: HAVELLS | C191: 760.55 | D191: 757.72 | E191: 750.43 | F191: 740.32 | G191: 733.03 | H191: 767.83 | I191: 775.12 | J191: 785.23 | K191: 765 | L191: 747.6 | M191: 11.80707
A192: 183 | B192: HCC | C192: 15.2 | D192: 15.28 | E192: 14.92 | F192: 14.63 | G192: 14.27 | H192: 15.57 | I192: 15.93 | J192: 16.22 | K192: 15.65 | L192: 15 | M192: 78.03273
A193: 184 | B193: HCL-INSYS | C193: 19.2 | D193: 19.42 | E193: 18.78 | F193: 18.37 | G193: 17.73 | H193: 19.83 | I193: 20.47 | J193: 20.88 | K193: 20.05 | L193: 19 | M193: 9.4354
A194: 185 | B194: HCLTECH | C194: 1082.9 | D194: 1073.75 | E194: 1059.15 | F194: 1035.40 | G194: 1020.80 | H194: 1097.50 | I194: 1112.10 | J194: 1135.85 | K194: 1088.35 | L194: 1050 | M194: 43.13807
A195: 186 | B195: HDFC | C195: 1944.45 | D195: 1935.50 | E195: 1921.00 | F195: 1897.55 | G195: 1883.05 | H195: 1958.95 | I195: 1973.45 | J195: 1996.90 | K195: 1950 | L195: 1912.05 | M195: 63.70987
A196: 187 | B196: HDFCBANK | C196: 2302.8 | D196: 2305.22 | E196: 2285.43 | F196: 2268.07 | G196: 2248.28 | H196: 2322.58 | I196: 2342.37 | J196: 2359.73 | K196: 2325 | L196: 2287.85 | M196: 48.88582
A197: 188 | B197: HDIL | C197: 25.8 | D197: 25.80 | E197: 25.60 | F197: 25.40 | G197: 25.20 | H197: 26.00 | I197: 26.20 | J197: 26.40 | K197: 26 | L197: 25.6 | M197: 14.81124
A198: 189 | B198: HEG | C198: 2118.9 | D198: 2089.30 | E198: 2014.60 | F198: 1910.30 | G198: 1835.60 | H198: 2193.60 | I198: 2268.30 | J198: 2372.60 | K198: 2164 | L198: 1985 | M198: 8.12447
A199: 190 | B199: HEIDELBERG | C199: 179.45 | D199: 178.62 | E199: 175.83 | F199: 172.22 | G199: 169.43 | H199: 182.23 | I199: 185.02 | J199: 188.63 | K199: 181.4 | L199: 175 | M199: 2.44747
A200: 191 | B200: HERITGFOOD | C200: 540.85 | D200: 534.85 | E200: 525.20 | F200: 509.55 | G200: 499.90 | H200: 550.50 | I200: 560.15 | J200: 575.80 | K200: 544.5 | L200: 519.2 | M200: 0.28053
A201: 192 | B201: HEROMOTOCO | C201: 2525.75 | D201: 2532.92 | E201: 2507.83 | F201: 2489.92 | G201: 2464.83 | H201: 2550.83 | I201: 2575.92 | J201: 2593.83 | K201: 2558 | L201: 2515 | M201: 11.47361
A202: 193 | B202: HEXAWARE | C202: 338.55 | D202: 338.10 | E202: 336.20 | F202: 333.85 | G202: 331.95 | H202: 340.45 | I202: 342.35 | J202: 344.70 | K202: 340 | L202: 335.75 | M202: 5.67073
A203: 194 | B203: HFCL | C203: 22.95 | D203: 23.12 | E203: 22.68 | F203: 22.42 | G203: 21.98 | H203: 23.38 | I203: 23.82 | J203: 24.08 | K203: 23.55 | L203: 22.85 | M203: 28.9754
A204: 195 | B204: HIMATSEIDE | C204: 214.5 | D204: 216.95 | E204: 210.25 | F204: 206.00 | G204: 199.30 | H204: 221.20 | I204: 227.90 | J204: 232.15 | K204: 223.65 | L204: 212.7 | M204: 2.1658
A205: 196 | B205: HINDALCO | C205: 202.35 | D205: 204.07 | E205: 199.83 | F205: 197.32 | G205: 193.08 | H205: 206.58 | I205: 210.82 | J205: 213.33 | K205: 208.3 | L205: 201.55 | M205: 89.24025
A206: 197 | B206: HINDCOPPER | C206: 48.5 | D206: 48.60 | E206: 48.10 | F206: 47.70 | G206: 47.20 | H206: 49.00 | I206: 49.50 | J206: 49.90 | K206: 49.1 | L206: 48.2 | M206: 4.27776
... 304 more rows

Sheet Bulk Deals
E6: Back To Main Page
A7: Subject : | B7: BULK DEAL | D7: =Main!B10 -> 2019-03-29
A9: Date | B9: Scrip code | C9: Scrip Name | D9: Client Name | E9: Buy / Sell | F9: Quantity Traded | G9: Trade Price / Wt.Avg.trade price | H9: Exchange
A10: 2019-03-28 | B10: 540615 | C10: 7NR | D10: REKHA RAVI BHANDARI | E10: SELL | F10: 54,000 | G10: 50 | H10: BSE
A11: 2019-03-28 | B11: 542580 | C11: AARTECH | D11: PRADEEP VASANT NARKHEDE | E11: BUY | F11: 56,000 | G11: 34.78 | H11: BSE
A12: 2019-03-28 | B12: 539661 | C12: ACEMEN | D12: TEJAS GULABCHAND MARU | E12: SELL | F12: 20200 | G12: 20.58 | H12: BSE
A13: 2019-03-28 | B13: 537766 | C13: BCP | D13: ACHINTYA SECURITIES PVT. LTD. | E13: BUY | F13: 489620 | G13: 39.54 | H13: BSE
A14: 2019-03-28 | B14: 537766 | C14: BCP | D14: ACHINTYA SECURITIES PVT. LTD. | E14: SELL | F14: 489620 | G14: 38.89 | H14: BSE
A15: 2019-03-28 | B15: 542057 | C15: BCPL | D15: SHERWOOD SECURITIES PVT LTD | E15: SELL | F15: 96000 | G15: 35.9 | H15: BSE
A16: 2019-03-28 | B16: 540190 | C16: FRANKLININD | D16: PARESH GHANSHYAMBHAI PATEL | E16: BUY | F16: 104000 | G16: 11 | H16: BSE
A17: 2019-03-28 | B17: 540190 | C17: FRANKLININD | D17: CHANDRIKABEN SAIJA | E17: BUY | F17: 128000 | G17: 11 | H17: BSE
A18: 2019-03-28 | B18: 540190 | C18: FRANKLININD | D18: SUNIL LAXMINARAYAN JHA | E18: BUY | F18: 138000 | G18: 11 | H18: BSE
A19: 2019-03-28 | B19: 540190 | C19: FRANKLININD | D19: RINAL SANDIPKUMAR KHATRI | E19: BUY | F19: 160000 | G19: 11 | H19: BSE
A20: 2019-03-28 | B20: 540190 | C20: FRANKLININD | D20: MANISHA NITINKUMAR SHAH | E20: BUY | F20: 50000 | G20: 11 | H20: BSE
A21: 2019-03-28 | B21: 540190 | C21: FRANKLININD | D21: NITIN DALPATLAL SHAH | E21: BUY | F21: 50000 | G21: 11 | H21: BSE
A22: 2019-03-28 | B22: 540190 | C22: FRANKLININD | D22: DINESHBHAI KANJIBHAI THAKKAR | E22: SELL | F22: 18395 | G22: 11 | H22: BSE
A23: 2019-03-28 | B23: 540190 | C23: FRANKLININD | D23: DIXIT NARESHBHAI BORISA | E23: SELL | F23: 22,846 | G23: 11 | H23: BSE
A24: 2019-03-28 | B24: 540190 | C24: FRANKLININD | D24: SHRENIKBHAI J GOHIL | E24: SELL | F24: 43,200 | G24: 11 | H24: BSE
A25: 2019-03-28 | B25: 540190 | C25: FRANKLININD | D25: AKSHAY JITENDRAKUMAR BRAHAMBHATT | E25: SELL | F25: 53,406 | G25: 11 | H25: BSE
A26: 2019-03-28 | B26: 540190 | C26: FRANKLININD | D26: VIJAY RAJESHBHAI VASITA | E26: SELL | F26: 55,089 | G26: 11 | H26: BSE
A27: 2019-03-28 | B27: 540190 | C27: FRANKLININD | D27: JAYESHBHAI MANIBHAI PRAJAPATI | E27: SELL | F27: 56,450 | G27: 11 | H27: BSE
A28: 2019-03-28 | B28: 540190 | C28: FRANKLININD | D28: NEETA GANPATBHAI DABHI | E28: SELL | F28: 70,014 | G28: 11 | H28: BSE
A29: 2019-03-28 | B29: 540190 | C29: FRANKLININD | D29: MANOHARPRASAD GHANSHYAMBHAI VAISHNAV | E29: SELL | F29: 73,188 | G29: 11 | H29: BSE
A30: 2019-03-28 | B30: 540190 | C30: FRANKLININD | D30: NITESH P PAVSKAR | E30: SELL | F30: 75,400 | G30: 11 | H30: BSE
A31: 2019-03-28 | B31: 540190 | C31: FRANKLININD | D31: PRABHAVATIBEN NATVARBHAI PATLIYA | E31: SELL | F31: 78,207 | G31: 11 | H31: BSE
A32: 2019-03-28 | B32: 540190 | C32: FRANKLININD | D32: KAMLESHKUMAR G SOLANKI | E32: SELL | F32: 85,550 | G32: 11 | H32: BSE
A33: 2019-03-28 | B33: 540190 | C33: FRANKLININD | D33: MAHESHBHAI N PURABIA | E33: SELL | F33: 91,720 | G33: 11 | H33: BSE
A34: 2019-03-28 | B34: 540190 | C34: FRANKLININD | D34: SHAH PREMILABEN MAHENDRAKUMAR | E34: BUY | F34: 25,000 | G34: 11 | H34: BSE
A35: 2019-03-28 | B35: 540190 | C35: FRANKLININD | D35: SANTOKI JAYESHA AJIT | E35: BUY | F35: 25,000 | G35: 11 | H35: BSE
A36: 2019-03-28 | B36: 541703 | C36: GFIL | D36: KRUTI KEVIN KAPADIA | E36: BUY | F36: 16,000 | G36: 55 | H36: BSE
A37: 2019-03-28 | B37: 541703 | C37: GFIL | D37: KRUTI KEVIN KAPADIA | E37: SELL | F37: 16000 | G37: 56 | H37: BSE
A38: 2019-03-28 | B38: 541703 | C38: GFIL | D38: SHASHIKANT CHINUBHAI KAPADIA | E38: BUY | F38: 16000 | G38: 56 | H38: BSE
A39: 2019-03-28 | B39: 523676 | C39: GOLKUNDIA | D39: ASHISH KANTIKUMAR DADHA | E39: BUY | F39: 35500 | G39: 13.24 | H39: BSE
A40: 2019-03-28 | B40: 523676 | C40: GOLKUNDIA | D40: NEVERLOOSE PROPERTIES & INVESTMENT PRIVATE LIMITED | E40: SELL | F40: 56000 | G40: 13.24 | H40: BSE
A41: 2019-03-28 | B41: 511288 | C41: GRUH | D41: HOUSING DEVELOPMENT FINANCE CORPORATION LIMITED | E41: SELL | F41: 4170000 | G41: 260.05 | H41: BSE
A42: 2019-03-28 | B42: 542592 | C42: HBEL | D42: SAVISHESHRAJ | E42: BUY | F42: 4000 | G42: 132 | H42: BSE
A43: 2019-03-28 | B43: 532960 | C43: IBVENTURES | D43: MORGAN STANLEY FRANCE SAS | E43: BUY | F43: 3601753 | G43: 314.5 | H43: BSE
A44: 2019-03-28 | B44: 532960 | C44: IBVENTURES | D44: MERRILL LYNCH MARKETS SINGAPORE PTE. LTD. | E44: SELL | F44: 3601753 | G44: 314.5 | H44: BSE
A45: 2019-03-28 | B45: 535667 | C45: IFINSEC | D45: VISHAL SHARMA | E45: BUY | F45: 130000 | G45: 14.55 | H45: BSE
A46: 2019-03-28 | B46: 535667 | C46: IFINSEC | D46: AKM LACE AND EMBROTEX PRIVATE LIMITED | E46: BUY | F46: 289000 | G46: 14.55 | H46: BSE
A47: 2019-03-28 | B47: 535667 | C47: IFINSEC | D47: S K GROWTH FUND PVT LTD | E47: BUY | F47: 172000 | G47: 14.5 | H47: BSE
A48: 2019-03-28 | B48: 535667 | C48: IFINSEC | D48: CNETLINGO MARKETING PRIVATE LIMITED | E48: BUY | F48: 400000 | G48: 14.25 | H48: BSE
A49: 2019-03-28 | B49: 535667 | C49: IFINSEC | D49: RUDRAVEERYA DEVELOPERS LIMITED | E49: SELL | F49: 1176290 | G49: 14.43 | H49: BSE
A50: 2019-03-28 | B50: 535667 | C50: IFINSEC | D50: SYMBIOX INVESTMENT & TRADING COMPANY LIMITED | E50: BUY | F50: 172000 | G50: 14.5 | H50: BSE
A51: 2019-03-28 | B51: 538765 | C51: JSHL | D51: ANURAAG BAJPAI | E51: BUY | F51: 45000 | G51: 12.75 | H51: BSE
A52: 2019-03-28 | B52: 540756 | C52: KAARYAFSL | D52: U H ZAVERI LIMITED | E52: BUY | F52: 30000 | G52: 20 | H52: BSE
A53: 2019-03-28 | B53: 506530 | C53: KEMP | D53: VANDANA RAMESH SITLANI | E53: BUY | F53: 13000 | G53: 655.42 | H53: BSE
A54: 2019-03-28 | B54: 506530 | C54: KEMP | D54: DGP SECURITIES LIMITED | E54: SELL | F54: 13000 | G54: 655.42 | H54: BSE
A55: 2019-03-28 | B55: 540953 | C55: KENVI | D55: S. M. GOLD LIMITED | E55: BUY | F55: 24000 | G55: 12 | H55: BSE
A56: 2019-03-28 | B56: 540953 | C56: KENVI | D56: MITHALAL KACHARALAL PRAJAPATI | E56: SELL | F56: 24000 | G56: 12 | H56: BSE
A57: 2019-03-28 | B57: 530805 | C57: OIVL | D57: JUTIKA SAMPAT | E57: SELL | F57: 21135 | G57: 18.35 | H57: BSE
A58: 2019-03-28 | B58: 541444 | C58: PALMJEWELS | D58: MANOHARLAL BANSILAL KANJANI | E58: BUY | F58: 60000 | G58: 13.75 | H58: BSE
A59: 2019-03-28 | B59: 541444 | C59: PALMJEWELS | D59: BEELINE BROKING LIMITED | E59: SELL | F59: 136000 | G59: 13.75 | H59: BSE
A60: 2019-03-28 | B60: 539814 | C60: RADHEY | D60: PIYUSH JAYANTILAL MALADE | E60: SELL | F60: 18600 | G60: 14.7 | H60: BSE
A61: 2019-03-28 | B61: 539814 | C61: RADHEY | D61: AJIJ HASANALI RANPURI | E61: SELL | F61: 25000 | G61: 14.7 | H61: BSE
A62: 2019-03-28 | B62: 539520 | C62: SHAILJA | D62: NAVEEN GUPTA | E62: BUY | F62: 34780 | G62: 17.98 | H62: BSE
A63: 2019-03-28 | B63: 539520 | C63: SHAILJA | D63: NAVEEN GUPTA | E63: SELL | F63: 34780 | G63: 18.29 | H63: BSE
A64: 2019-03-28 | B64: 539520 | C64: SHAILJA | D64: ASHISH JAYPRAKASH NEVATIA | E64: SELL | F64: 20020 | G64: 17.53 | H64: BSE
A65: 2019-03-28 | B65: 539520 | C65: SHAILJA | D65: SAMIR PRAKASH MEHTA | E65: BUY | F65: 74407 | G65: 18.42 | H65: BSE
A66: 2019-03-28 | B66: 539520 | C66: SHAILJA | D66: BHAGYASHREE ABHAY KALE . | E66: BUY | F66: 450 | G66: 18.3 | H66: BSE
A67: 2019-03-28 | B67: 539520 | C67: SHAILJA | D67: BHAGYASHREE ABHAY KALE . | E67: SELL | F67: 22940 | G67: 18.23 | H67: BSE
A68: 2019-03-28 | B68: 540736 | C68: SIDDH | D68: SUNIL KRISHNAKUMAR AGARWAL | E68: BUY | F68: 64000 | G68: 31 | H68: BSE
A69: 2019-03-28 | B69: 541967 | C69: SKYGOLD | D69: NOPEA CAPITAL SERVICES PRIVATE LIMITED | E69: SELL | F69: 46400 | G69: 182 | H69: BSE
A70: 2019-03-28 | B70: 538943 | C70: SONAL | D70: VISHAL SHARMA | E70: SELL | F70: 145000 | G70: 7.65 | H70: BSE
A71: 2019-03-28 | B71: 538943 | C71: SONAL | D71: RAM GOPAL GOYAL& SONS LLP | E71: BUY | F71: 144995 | G71: 7.65 | H71: BSE
A72: 2019-03-28 | B72: 540084 | C72: SPICY | D72: MUNISH SAGGAR & SON (HUF) | E72: SELL | F72: 100000 | G72: 10.5 | H72: BSE
A73: 2019-03-28 | B73: 540084 | C73: SPICY | D73: VIRENDRA NARANG | E73: BUY | F73: 100000 | G73: 10.5 | H73: BSE
A74: 2019-03-28 | B74: 540079 | C74: SPRAYKING | D74: BABU RAMESH SALUNKHE | E74: BUY | F74: 18000 | G74: 19.2 | H74: BSE
A75: 2019-03-28 | B75: 539835 | C75: SUPERIOR | D75: GINNY GARG | E75: SELL | F75: 34710 | G75: 14.7 | H75: BSE
A76: 2019-03-28 | B76: 539835 | C76: SUPERIOR | D76: ROMIKA | E76: BUY | F76: 34710 | G76: 14.7 | H76: BSE
A77: 2019-03-28 | B77: 538607 | C77: TOYAMIND | D77: HANIF AMIR MANJEE | E77: BUY | F77: 1230226 | G77: 4.89 | H77: BSE
A78: 2019-03-28 | B78: 538607 | C78: TOYAMIND | D78: HANIF AMIR MANJEE | E78: SELL | F78: 1719481 | G78: 4.84 | H78: BSE
A79: 2019-03-28 | B79: 538464 | C79: TPROJECT | D79: INNOVATE DERIVATIVES PRIVATE LIMITED | E79: BUY | F79: 186300 | G79: 1.34 | H79: BSE
A80: 2019-03-28 | B80: 538464 | C80: TPROJECT | D80: INNOVATE SECURITIES PVT L | E80: SELL | F80: 307500 | G80: 1.34 | H80: BSE
A81: 2019-03-28 | B81: 532646 | C81: UNIPLY | D81: KKN HOLDINGS PVT. LTD. | E81: BUY | F81: 1710974 | G81: 40.15 | H81: BSE
A82: 2019-03-28 | B82: 532646 | C82: UNIPLY | D82: MADRAS ELECTRONICS SOLUTIONS PVT LTD . | E82: SELL | F82: 1710974 | G82: 40.15 | H82: BSE
A83: 2019-03-28 | B83: 542046 | C83: VIEL | D83: SHAILESHKUMAR J BHATT | E83: SELL | F83: 90000 | G83: 20.3 | H83: BSE
A84: 2019-03-28 | B84: 540252 | C84: VOL | D84: S. M. GOLD LIMITED | E84: BUY | F84: 24000 | G84: 48 | H84: BSE
A85: 2019-03-28 | B85: 540252 | C85: VOL | D85: U H ZAVERI LIMITED | E85: BUY | F85: 24000 | G85: 48 | H85: BSE
A86: 2019-03-28 | B86: 540252 | C86: VOL | D86: MITHALAL KACHARALAL PRAJAPATI | E86: SELL | F86: 24000 | G86: 48 | H86: BSE
A87: 2019-03-28 | B87: 540252 | C87: VOL | D87: VIVIDOFFSET PRINTERS PRIVATELIMITED | E87: SELL | F87: 24000 | G87: 48 | H87: BSE
A88: 2019-03-28 | B88: 541445 | C88: WAA | D88: DEEPAK PRABHAKAR KAPRE | E88: SELL | F88: 39200 | G88: 28.05 | H88: BSE
A89: 2019-03-28 | B89: 531211 | C89: WELLNESS | D89: SEERANGAN KUMAR | E89: SELL | F89: 17800 | G89: 8.88 | H89: BSE
A90: 2019-03-28 | B90: AGROPHOS | C90: Agro Phos India Limited | D90: MADHAV STOCK VISION (P) LTD. | E90: BUY | F90: 200000 | G90: 72.37 | H90: NSE
A91: 2019-03-28 | B91: AMJUMBO | C91: A and M Jumbo Bags Ltd | D91: NISHA JIGARBHAI SHAH | E91: BUY | F91: 14000 | G91: 58.49 | H91: NSE
A92: 2019-03-28 | B92: BLISSGVS | C92: Bliss GVS Pharma Ltd | D92: ACHINTYA SECURITIES PRIVATE LIMITED | E92: BUY | F92: 631534 | G92: 174.9 | H92: NSE
A93: 2019-03-28 | B93: BRITANNIA | C93: Britannia Ind Ltd. | D93: SBI MUTUAL FUND A/C - SBI ETF NIFTY - SCHEME 483 | E93: BUY | F93: 1297000 | G93: 3098.97 | H93: NSE
A94: 2019-03-28 | B94: DHFL | C94: Dewan Housing Fin Corp | D94: CENTILLION RESEARCH INDIA LLP | E94: BUY | F94: 1756323 | G94: 149.14 | H94: NSE
A95: 2019-03-28 | B95: DHFL | C95: Dewan Housing Fin Corp | D95: CROSSLAND TRADING CO | E95: BUY | F95: 2127554 | G95: 148.04 | H95: NSE
A96: 2019-03-28 | B96: DHFL | C96: Dewan Housing Fin Corp | D96: GRAVITON RESEARCH CAPITAL LLP | E96: BUY | F96: 1693675 | G96: 148.02 | H96: NSE
A97: 2019-03-28 | B97: DHFL | C97: Dewan Housing Fin Corp | D97: TOWER RESEARCH CAPITAL MARKETS INDIA PRIVATE LIMITED | E97: BUY | F97: 3724167 | G97: 148.28 | H97: NSE
A98: 2019-03-28 | B98: HINDPETRO | C98: Hindustan Petroleum Corp | D98: SBI MUTUAL FUND A/C - SBI ETF NIFTY - SCHEME 483 | E98: BUY | F98: 10602 | G98: 273.85 | H98: NSE
A99: 2019-03-28 | B99: JETAIRWAYS | C99: Jet Airways (India) Ltd. | D99: TOWER RESEARCH CAPITAL MARKETS INDIA PRIVATE LIMITED | E99: BUY | F99: 916355 | G99: 269.82 | H99: NSE
A100: 2019-03-28 | B100: JUSTDIAL | C100: Justdial Ltd. | D100: ALPHAGREP SECURITIES PRIVATE LIMITED | E100: BUY | F100: 356069 | G100: 611.76 | H100: NSE
A101: 2019-03-28 | B101: JUSTDIAL | C101: Justdial Ltd. | D101: TOWER RESEARCH CAPITAL MARKETS INDIA PRIVATE LIMITED | E101: BUY | F101: 399365 | G101: 611.67 | H101: NSE
A102: 2019-03-28 | B102: KHAITANELE | C102: Khaitan Electricals Ltd | D102: JINTAN INVESTMENT ADVISORY PRIVATE LIMITED | E102: BUY | F102: 100000 | G102: 6.65 | H102: NSE
A103: 2019-03-28 | B103: MAHESHWARI | C103: Maheshwari Logistics Ltd. | D103: COALSALE COMPANY LIMITED | E103: BUY | F103: 80000 | G103: 207.58 | H103: NSE
A104: 2019-03-28 | B104: SONAMCLOCK | C104: Sonam Clock Limited | D104: DEEPSIKHA DEALERS PRIVATE LIMITED | E104: BUY | F104: 78000 | G104: 37.08 | H104: NSE
A105: 2019-03-28 | B105: UNITEDPOLY | C105: United Polyfab Guj. Ltd. | D105: AMAYSHA TEXTILES PRIVATE LIMITED | E105: BUY | F105: 39000 | G105: 15 | H105: NSE
A106: 2019-03-28 | B106: UNITEDPOLY | C106: United Polyfab Guj. Ltd. | D106: DHANSHREE BARTER PVT LTD | E106: BUY | F106: 120000 | G106: 14 | H106: NSE
A107: 2019-03-28 | B107: AGROPHOS | C107: Agro Phos India Limited | D107: SAH FINTRADES | E107: SELL | F107: 200000 | G107: 72.38 | H107: NSE
A108: 2019-03-28 | B108: BLISSGVS | C108: Bliss GVS Pharma Ltd | D108: ACHINTYA SECURITIES PRIVATE LIMITED | E108: SELL | F108: 631534 | G108: 175.4 | H108: NSE
A109: 2019-03-28 | B109: DHFL | C109: Dewan Housing Fin Corp | D109: CENTILLION RESEARCH INDIA LLP | E109: SELL | F109: 1756323 | G109: 149.18 | H109: NSE
A110: 2019-03-28 | B110: DHFL | C110: Dewan Housing Fin Corp | D110: CROSSLAND TRADING CO | E110: SELL | F110: 2127554 | G110: 148.11 | H110: NSE
A111: 2019-03-28 | B111: DHFL | C111: Dewan Housing Fin Corp | D111: GRAVITON RESEARCH CAPITAL LLP | E111: SELL | F111: 1704175 | G111: 148.16 | H111: NSE
A112: 2019-03-28 | B112: DHFL | C112: Dewan Housing Fin Corp | D112: TOWER RESEARCH CAPITAL MARKETS INDIA PRIVATE LIMITED | E112: SELL | F112: 3724167 | G112: 148.47 | H112: NSE
A113: 2019-03-28 | B113: GRUH | C113: Gruh Finance Limited | D113: HOUSING DEVELOPMENT FINANCE CORPORATION LIMITED | E113: SELL | F113: 8030000 | G113: 260.08 | H113: NSE
A114: 2019-03-28 | B114: HINDPETRO | C114: Hindustan Petroleum Corp | D114: SBI MUTUAL FUND A/C - SBI ETF NIFTY - SCHEME 483 | E114: SELL | F114: 8201824 | G114: 272.25 | H114: NSE
A115: 2019-03-28 | B115: JETAIRWAYS | C115: Jet Airways (India) Ltd. | D115: TOWER RESEARCH CAPITAL MARKETS INDIA PRIVATE LIMITED | E115: SELL | F115: 916355 | G115: 269.84 | H115: NSE
A116: 2019-03-28 | B116: JUSTDIAL | C116: Justdial Ltd. | D116: ALPHAGREP SECURITIES PRIVATE LIMITED | E116: SELL | F116: 356069 | G116: 611.88 | H116: NSE
A117: 2019-03-28 | B117: JUSTDIAL | C117: Justdial Ltd. | D117: TOWER RESEARCH CAPITAL MARKETS INDIA PRIVATE LIMITED | E117: SELL | F117: 399365 | G117: 612.25 | H117: NSE
A118: 2019-03-28 | B118: KHAITANELE | C118: Khaitan Electricals Ltd | D118: GLAXO FINANCE PRIVATE LIMITED | E118: SELL | F118: 100192 | G118: 6.65 | H118: NSE
A119: 2019-03-28 | B119: LSIL | C119: Lloyds Steels Ind. Ltd. | D119: I.D.B.I | E119: SELL | F119: 5336456 | G119: 0.92 | H119: NSE
A120: 2019-03-28 | B120: MANGLMCEM | C120: Mangalam Cement Ltd | D120: EUSTON INDUSTRIES LIMITED | E120: SELL | F120: 175000 | G120: 270 | H120: NSE
A121: 2019-03-28 | B121: RMDRIP | C121: R M Drip & Sprink Sys Ltd | D121: ARVIND SHANTILAL SHAH | E121: SELL | F121: 40000 | G121: 51.3 | H121: NSE
A122: 2019-03-28 | B122: RUCHISOYA | C122: Ruchi Soya Inds Ltd. | D122: DISHA FOUNDATION | E122: SELL | F122: 1961331 | G122: 6.19 | H122: NSE
A123: 2019-03-28 | B123: UNITEDPOLY | C123: United Polyfab Guj. Ltd. | D123: AANAND HARIKISHAN CHAUDHARY | E123: SELL | F123: 120000 | G123: 14 | H123: NSE
A124: 2019-03-28 | B124: UNITEDPOLY | C124: United Polyfab Guj. Ltd. | D124: NIRMALKUMAR MANGALCHAND MITTAL | E124: SELL | F124: 39000 | G124: 15 | H124: NSE

Sheet Call Tracker (Equity & F&O)
M5: Back To Main Page
A6: Retail Research Technical Calls & Fundamental Performance Report for the month of March -2019
M7: =Main!B10 -> 2019-03-29
B8: Positional Call
A9: Sr.no | B9: Date | D9: Company | E9: Rec | F9: Rec Price | G9: Stop Loss*** | H9: Call Closed At | I9: Target | J9: Remark | K9: Profit / Loss per Share | L9: Gain / Loss % | M9: Status | N9: Closed Date | O9: NSE Closed Price
A10: 1 | B10: 2019-01-24 | D10: ITC | E10: Buy | F10: 280 | G10: 268 | H10: 292 | I10: 305 | J10: Profit of Rs.12/- | K10: =H10-F10 -> 12 | L10: =K10/F10 -> 4.29% | M10: Successful | N10: 2019-03-08 | R10: R
A11: 2 | B11: 2019-03-01 | D11: UPL | E11: Sell | F11: 881.5 | G11: 922.2 | H11: 922.2 | I11: 800 | J11: Loss of Rs.40.7/- | K11: =F11-H11 -> -40.7 | L11: -4.62% | M11: UnSuccessful | N11: 2019-03-15 | R11: R
A12: 3 | B12: 2019-03-01 | D12: BEL | E12: Buy | F12: 83 | G12: 78.5 | H12: 86.25 | I12: 92 | J12: Profit of Rs.3.25/- | K12: 3.25 | L12: =K12/F12 -> 3.92% | M12: Successful | N12: 2019-03-05 | R12: H
A13: 4 | B13: 2019-03-01 | D13: ZEEL | E13: Sell | F13: 478.5 | G13: 507.3 | H13: 458.5 | I13: 435-425 | J13: Profit of Rs.20/- | K13: =F13-H13 -> 20 | L13: =K13/F13 -> 4.18% | M13: Successful | N13: 2019-03-07 | R13: R
A14: 5 | B14: 2019-03-06 | D14: MARUTI | E14: Buy | F14: 7025 | G14: 6700 | H14: 6955 | I14: 7500-7600 | J14: Loss of Rs.70/- | K14: -70 | L14: -1.00% | M14: UnSuccessful | N14: 2019-03-20 | R14: H
A15: 6 | B15: 2019-03-07 | D15: BPCL | E15: Sell | F15: 376.5 | G15: 395.6 | H15: 385.75 | I15: 345-335 | J15: Loss of Rs.9.25/- | K15: =F15-H15 -> -9.25 | L15: =K15/F15 -> -2.46% | M15: UnSuccessful | N15: 2019-03-18 | R15: R
A16: 7 | B16: 2019-03-07 | D16: RAYMOND | E16: Sell | F16: 825-830 | G16: 888.8 | I16: 720-730 | J16: Open | O16: =VLOOKUP(D16,Sheet2!A16:M1811,6,0) -> 795 | R16: R
A17: 8 | B17: 2019-03-08 | D17: BHEL | E17: Sell | F17: 67.5 | G17: 70.5 | H17: 70.5 | I17: 63-61 | J17: Loss of Rs.3/- | K17: =F17-H17 -> -3 | L17: =K17/F17 -> -4.44% | M17: UnSuccessful | N17: 2019-03-12 | R17: H
A18: 9 | B18: 2019-03-13 | D18: DLF | E18: Sell | F18: 192-194 | G18: 206.6 | I18: 164-168 | J18: Open | O18: =VLOOKUP(D18,Sheet2!A18:M1813,6,0) -> 194.05 | R18: R
A19: 10 | B19: 2019-03-15 | D19: OFSS | E19: Buy | F19: 3380-3410 | G19: 3250 | I19: 3650-3700 | J19: Open | O19: =VLOOKUP(D19,Sheet2!A19:M1814,6,0) -> 3362.9 | R19: H
A20: 11 | B20: 2019-03-18 | D20: BANKBARODA | E20: Sell | F20: 121 | G20: 127.3 | H20: =(116.75+128)/2 -> 122.375 | I20: 110-108 | J20: Loss of Rs.1.4 | K20: =F20-H20 -> -1.4 | L20: =K20/F20 -> -1.14% | M20: Neutral | N20: 2019-03-28 | R20: R
A21: 12 | B21: 2019-03-19 | D21: ONGC | E21: Sell | F21: 160 | G21: 168.8 | H21: 153 | I21: 146 -144 | J21: Profit of Rs.7/- | K21: =F21-H21 -> 7 | L21: =K21/F21 -> 4.38% | M21: Successful | N21: 2019-03-20 | R21: R
A22: 13 | B22: 2019-03-20 | D22: HEROMOTOCO | E22: Buy | F22: 2610-2630 | G22: 2490 | I22: 2850-2900 | J22: Open | O22: =VLOOKUP(D22,Sheet2!A22:M1817,6,0) -> 2525.75 | R22: H
A23: 14 | B23: 2019-03-25 | D23: MARUTI | E23: Buy | F23: 6590-6610 | G23: 6290 | I23: 7000-7100 | J23: Open | O23: =VLOOKUP(D23,Sheet2!A23:M1818,6,0) -> 6596.25 | R23: R
A24: 15 | B24: 2019-03-25 | D24: NTPC | E24: Sell | F24: 136.30-137.30 | G24: 144 | I24: 125-120 | J24: Open | O24: =VLOOKUP(D24,Sheet2!A24:M1819,6,0) -> 135.75 | R24: H
A25: 16 | B25: 2019-03-26 | D25: ONGC | E25: Sell | F25: 161 | G25: 169.8 | H25: 156.5 | I25: 146 -144 | J25: Profit of Rs.4.5/- | K25: =F25-H25 -> 4.5 | L25: =K25/F25 -> 2.80% | M25: Successful | N25: 2019-03-28 | R25: R
A32: CLBS = Closing Basis *** | F32: Reinitiated $
A33: Dividend adjusted <> | F33: Revised stoploss #
A34: Part book {}
A35: Master Trade High Risk
A36: Sr.no | B36: Date | D36: Company | E36: Rec | F36: Rec Price | G36: Stop Loss | H36: Call Closed At | I36: Target | J36: Remark | K36: Profit / Loss per share | L36: Gain / Loss per Lot | M36: Lot | N36: Status | O36: Closed Date
A37: 1 | B37: 2019-03-01 | D37: BATAINDIA MAR FUT | E37: Sell | F37: 1288 | G37: 1335 | H37: 1322 | I37: 1240 | J37: Loss of Rs.21/- | K37: =F37-H37 -> -34 | L37: =-M37*21 -> -11550 | M37: 550 | N37: UnSuccessful | O37: 2019-03-06 | R37: H
D38: BATAINDIA MAR 1240 PE | E38: Sell | F38: 23.5 | H38: 10.5 | K38: 13 | R38: H
A39: 2 | B39: 2019-03-05 | D39: NIFTY MAR | E39: Sell | F39: 10940 | G39: 11166.6 | H39: 11065 | I39: 10700 | J39: Loss of Rs.125/- | K39: -125 | L39: =M39*K39 -> -9375 | M39: 75 | N39: UnSuccessful | O39: 2019-03-06 | R39: R
A40: 3 | B40: 2019-03-08 | D40: ULTRACEMCO MAR FUT | E40: Sell | F40: 3925 | G40: 4030 | H40: 4025 | I40: 3780 | J40: Loss of Rs.69.5/- | K40: -100 | L40: =M40*-69.5 -> -13900 | M40: 200 | N40: UnSuccessful | O40: 2019-03-11 | R40: H
D41: ULTRACEMCO MAR 3800 PE | E41: Sell | F41: 57.5 | H41: 27 | K41: 30.5 | R41: H
A42: 4 | B42: 2019-03-15 | D42: BANKNIFTY MAR FUT | E42: Sell | F42: 29390 | G42: 29650 | H42: 29775 | J42: Loss of Rs.305/- | K42: -385 | L42: =-20*305 -> -6100 | M42: 20 | N42: UnSuccessful | O42: 2019-03-18 | R42: H
D43: BANKNIFTY 28-MAR 29000 PE | E43: Sell | F43: 207.5 | H43: 127.5 | K43: 80 | R43: H
A44: 5 | B44: 2019-03-19 | D44: CENTURYTEX | E44: Sell | F44: 920 | G44: 946.5 | H44: 905.5 | I44: 870 | J44: Profit of Rs.14.5/- | K44: =F44-H44 -> 14.5 | L44: =K44*M44 -> 8700 | M44: 600 | N44: Successful | O44: 2019-03-19 | R44: R
A45: 6 | B45: 2019-03-19 | D45: TECHM MAR FUT | E45: Buy | F45: 792.5 | G45: 779 | H45: 800.5 | I45: 815 | J45: Profit of Rs.8/- | K45: =H45-F45 -> 8 | L45: =K45*M45 -> 9600 | M45: 1200 | N45: Successful | O45: 2019-03-19 | R45: N
A46: 7 | B46: 2019-03-26 | D46: NIFTY APR | E46: Sell | F46: 11470 | G46: 11611 | H46: 11611 | I46: 11200 | J46: Loss of Rs.141/- | K46: =F46-H46 -> -141 | L46: =M46*K46 -> -10575 | M46: 75 | N46: UnSuccessful | O46: 2019-03-27 | R46: R
A51: Master Trade Medium Risk
A52: Sr.no | B52: Date | D52: Company | E52: Rec | F52: Rec Price | G52: Stop Loss | H52: Call Closed At | I52: Target | J52: Remark | K52: Profit/ Loss per lot | L52: Gain / Loss per Lot | M52: Lot | N52: Status | O52: Closed Date
A53: 1 | B53: 2019-03-01 | D53: LT Mar 1320 CE | E53: Buy | F53: 25 | H53: 34.5 | J53: Profit of Rs.5/- | K53: =H53-F53 -> 9.5 | L53: =5*M53 -> 1875 | M53: 375 | N53: Successful | O53: 2019-03-07 | R53: H
D54: LT Mar 1360 CE | E54: Sell | F54: 12 | H54: 16.5 | K54: =F54-H54 -> -4.5 | R54: H
A55: 2 | B55: 2019-03-05 | D55: NIFTY 07-Mar 10850 PE | E55: Buy | F55: 52 | H55: 0 | I55: 80-100 | J55: Loss of Rs.52/- | K55: =H55-F55 -> -52 | L55: =M55*K55 -> -3900 | M55: 75 | N55: UnSuccessful | O55: 2019-03-07 | R55: R
A56: 3 | B56: 2019-03-06 | D56: HDFCBANK MAR 2100 CE | E56: Buy | F56: 35 | G56: 18 | H56: 42.5 | I56: 60 | J56: Profit of Rs.7.5/- | K56: =H56-F56 -> 7.5 | L56: =K56*M56 -> 1875 | M56: 250 | N56: Successful | O56: 2019-03-07 | R56: H
A57: 4 | B57: 2019-03-07 | D57: ASHOKLEY 90 PE MAR | E57: Buy | F57: 2.5 | G57: 1.2 | H57: 2.95 | I57: 5 | J57: Profit of Rs.0.45/- | K57: =H57-F57 -> 0.45 | L57: =K57*M57 -> 1800 | M57: 4000 | N57: Successful | O57: 2019-03-07 | R57: R
A58: 5 | B58: 2019-03-08 | D58: GAIL 320 PE MAR | E58: Buy | F58: 2.3 | G58: 1.1 | H58: 1.5 | I58: 5 | J58: Loss of Rs.0.8/- | K58: =H58-F58 -> -0.8 | L58: =M58*K58 -> -2133.6 | M58: 2667 | N58: UnSuccessful | O58: 2019-03-08 | R58: H
A59: 6 | B59: 2019-03-08 | D59: LT 1340 PE MAR | E59: Buy | F59: 25 | G59: 14 | H59: 31 | I59: 45-50 | J59: Profit of Rs.6/- | K59: =H59-F59 -> 6 | L59: =K59*M59 -> 2250 | M59: 375 | N59: Successful | O59: 2019-03-08 | R59: H
A60: 7 | B60: 2019-03-11 | D60: LT 1340 PE MAR | E60: Buy | F60: 25 | G60: 13 | H60: 13 | I60: 45-50 | J60: Loss of Rs.12/- | K60: =H60-F60 -> -12 | L60: =M60*K60 -> -4500 | M60: 375 | N60: UnSuccessful | O60: 2019-03-12 | R60: H
A61: 8 | B61: 2019-03-11 | D61: NIFTY 14-Mar 11150 PE | E61: Buy | F61: 48 | H61: 0 | I61: 80-100 | J61: Loss of Rs.48/- | K61: =H61-F61 -> -48 | L61: -3600 | M61: 75 | N61: UnSuccessful | O61: 2019-03-14 | R61: H
A62: 9 | B62: 2019-03-14 | D62: NIFTY 14-Mar 11350 PE | E62: Buy | F62: 14 | H62: 31 | I62: 80-100 | J62: Profit of Rs.17/- | K62: =H62-F62 -> 17 | L62: =K62*M62 -> 1275 | M62: 75 | N62: Successful | O62: 2019-03-14 | R62: A
A63: 10 | B63: 2019-03-15 | D63: NIFTY 20-MAR 11300 PE | E63: Buy | F63: 31 | H63: 0 | I63: 70 | J63: Loss of Rs.31/- | K63: =H63-F63 -> -31 | L63: =M63*K63 -> -2325 | M63: 75 | N63: UnSuccessful | O63: 2019-03-20 | R63: H
A64: 11 | B64: 2019-03-19 | D64: TCS 2050 CE MAR | E64: Buy | F64: 22 | G64: 6.7 | H64: 31 | I64: 45.5 | J64: Profit of Rs.9/- | K64: =H64-F64 -> 9 | L64: =K64*M64 -> 2250 | M64: 250 | N64: Successful | O64: 2019-03-19 | R64: H
A65: 12 | B65: 2019-03-20 | D65: NIFTY 20-Mar 11500 PE | E65: Buy | F65: 8 | H65: 0 | I65: 30 | J65: Loss of Rs.8/- | K65: =H65-F65 -> -8 | L65: =M65*K65 -> -600 | M65: 75 | N65: UnSuccessful | O65: 2019-03-20 | R65: A
A66: 13 | B66: 2019-03-20 | D66: TATASTEEL 510 PE MAR | E66: Buy | F66: 4.75 | G66: 1.7 | H66: 6.6 | I66: 10 | J66: Profit of Rs.1.85/- | K66: =H66-F66 -> 1.85 | L66: =K66*M66 -> 1962.85 | M66: 1061 | N66: Successful | O66: 2019-03-20 | R66: H
A67: 14 | B67: 2019-03-22 | D67: TCS 2000 CE MAR | E67: Buy | F67: 29 | H67: 0 | I67: 60 | J67: Loss of Rs.16/- | K67: -29 | L67: =-16*M67 -> -4000 | M67: 250 | N67: UnSuccessful | O67: 2019-03-28 | R67: H
D68: TCS 2050 CE | E68: Sell | F68: 13 | H68: 0 | K68: =F68-H68 -> 13 | R68: H
A69: 15 | B69: 2019-03-25 | D69: KOTAKBANK 1320 CE MAR | E69: Buy | F69: 9 | H69: 13 | J69: Profit of Rs.4/- | K69: =H69-F69 -> 4 | L69: =5*M69 -> 4000 | M69: 800 | N69: Successful | O69: 2019-03-26 | R69: N
D70: KOTAKBANK 1340 CE | E70: Sell | F70: 5 | H70: 5 | K70: =F70-H70 -> 0 | R70: N
A71: 16 | B71: 2019-03-28 | D71: HDFCBANK MAR 2300 CE | E71: Buy | F71: 7 | H71: 12.5 | I71: 20 | J71: Profit of Rs.5.5/- | K71: =H71-F71 -> 5.5 | L71: =K71*M71 -> 1375 | M71: 250 | N71: Successful | O71: 2019-03-28 | R71: N
A72: 17 | B72: 2019-03-28 | D72: NIFTY 20-Mar 11500 PE | E72: Buy | F72: 18 | H72: 0 | I72: 50 | J72: Loss of Rs.18/- | K72: =H72-F72 -> -18 | L72: =M72*K72 -> -1350 | M72: 75 | N72: UnSuccessful | O72: 2019-03-28 | R72: H
B78: Smart Delivery Trade
A79: Sr.no | B79: Date | D79: Company | E79: Rec | F79: Rec Price | G79: Stop Loss*** | H79: Call Closed At | I79: Target | J79: Remark | K79: Profit / Loss per Share | L79: Gain / Loss % | M79: Status | N79: Closed Date | O79: NSE Closed Price
A80: 1 | B80: 2019-02-21 | D80: ICICIBANK | E80: Buy | F80: 351.5 | G80: 339 | H80: 360.5 | I80: 370-375 | J80: Profit of Rs.9/- | K80: =H80-F80 -> 9 | L80: =K80/F80 -> 2.56% | M80: Successful | N80: 2019-03-05 | R80: H
A81: 2 | B81: 2019-02-22 | D81: HDFC | E81: Buy | F81: 1880 | G81: 1819 | H81: 1935.5 | I81: 2000 | J81: Profit of Rs.55.5/- | K81: 55.5 | L81: 2.95% | M81: Successful | N81: 2019-03-12 | R81: H
A82: 3 | B82: 2019-02-27 | D82: CONCOR | E82: Buy | F82: 474.5 | G82: 458.7 | H82: 486 | I82: 500-510 | J82: Profit of Rs.11.5/- | K82: =H82-F82 -> 11.5 | L82: =K82/F82 -> 2.42% | M82: Successful | N82: 2019-03-05 | R82: R
A83: 4 | B83: 2019-03-01 | D83: MINDTREE | E83: Buy | F83: 916 | G83: 888.8 | H83: 933.5 | I83: 970 | J83: Profit of Rs.17.5/- | K83: =H83-F83 -> 17.5 | L83: =K83/F83 -> 1.91% | M83: Successful | N83: 2019-03-01 | R83: R
A84: 5 | B84: 2019-03-05 | D84: TATACHEM | E84: Buy | F84: 576 | G84: 548 | H84: 591 | I84: 620 | J84: Profit of Rs.15/- | K84: 15 | L84: 2.60% | M84: Successful | N84: 2019-03-08 | R84: H
A85: 6 | B85: 2019-03-06 | D85: DLF | E85: Buy | F85: 174 | G85: 167 | H85: 178.5 | I85: 182 | J85: Profit of Rs.4.5/- | K85: =H85-F85 -> 4.5 | L85: =K85/F85 -> 2.59% | M85: Successful | N85: 2019-03-06 | R85: H
A86: 7 | B86: 2019-03-06 | D86: DISHTV | E86: Sell | F86: 41.25 | G86: 43.2 | H86: 39.85 | I86: 38-37 | J86: Profit of Rs.1.4/- | K86: =F86-H86 -> 1.4 | L86: 3.39% | M86: Successful | N86: 2019-03-07 | R86: H
A87: 8 | B87: 2019-03-08 | D87: TITAN | E87: Sell | F87: 1047.5 | G87: 1077.7 | H87: 1077.7 | I87: 990-980 | J87: Loss of Rs.30.2/- | K87: =F87-H87 -> -30.2 | L87: =K87/F87 -> -2.88% | M87: UnSuccessful | N87: 2019-03-12 | R87: R
A88: 9 | B88: 2019-03-08 | D88: NIITTECH | E88: Sell | F88: 1318-1322 | G88: 1361.6 | I88: 1250-1240 | J88: Open | O88: =VLOOKUP(D88,Sheet2!A84:M1579,6,0) -> 1333.95 | R88: R
A89: 10 | B89: 2019-03-08 | D89: RADICO | E89: Sell | F89: 393.5 | G89: 406.6 | H89: 406.6 | I89: 375-370 | J89: Loss of Rs. -13.1/- | K89: =F89-H89 -> -13.1 | L89: =K89/F89 -> -3.33% | M89: UnSuccessful | N89: 2019-03-19 | R89: R
A90: 11 | B90: 2019-03-08 | D90: TORNTPHARM | E90: Buy | F90: 1775 | G90: 1717.7 | H90: 1823 | I90: 1860-1880 | J90: Profit of Rs.48/- | K90: =H90-F90 -> 48 | L90: =K90/F90 -> 2.70% | M90: Successful | N90: 2019-03-12 | R90: R
A91: 12 | B91: 2019-03-11 | D91: INDUSINDBK | E91: Buy | F91: 1505 | G91: 1449 | H91: 1541 | I91: 1600-1620 | J91: Profit of Rs.36/- | K91: =H91-F91 -> 36 | L91: =K91/F91 -> 2.39% | M91: Successful | N91: 2019-03-12 | R91: H
A92: 13 | B92: 2019-03-12 | D92: INDIANB | E92: Sell | F92: 270 | G92: 278.7 | H92: 263.25 | I92: 257-255 | J92: Profit of Rs.6.75/- | K92: =F92-H92 -> 6.75 | L92: =K92/F92 -> 2.50% | M92: Successful | N92: 2019-03-13 | R92: R
A93: 14 | B93: 2019-03-13 | D93: INFY | E93: Buy | F93: 713 | G93: 688 | H93: 731 | I93: 740-750 | J93: Profit of Rs.18/- | K93: =H93-F93 -> 18 | L93: 2.52% | M93: Successful | N93: 2019-03-20 | R93: H
A94: 15 | B94: 2019-03-13 | D94: DIVISLAB | E94: Sell | F94: 1694 | G94: 1752 | H94: 1651 | I94: 1590 | J94: Profit of Rs.43/- | K94: =F94-H94 -> 43 | L94: =K94/F94 -> 2.54% | M94: Successful | N94: 2019-03-25 | R94: H
A95: 16 | B95: 2019-03-13 | D95: IDFC | E95: Sell | F95: 41.25 | G95: 42.6 | H95: 42.7 | I95: 39-38 | J95: Loss of Rs.1.45/- | K95: =F95-H95 -> -1.45 | L95: =K95/F95 -> -3.52% | M95: UnSuccessful | N95: 2019-03-15 | R95: H
A96: 17 | B96: 2019-03-14 | D96: ICICIBANK | E96: Sell | F96: 390-393 | G96: 405 | I96: 375-370 | J96: Open | O96: =VLOOKUP(D96,Sheet2!A92:M1587,6,0) -> 400.55 | R96: H
A97: 18 | B97: 2019-03-15 | D97: INDIANB | E97: Sell | F97: 271.5 | G97: 281.7 | H97: 265.5 | I97: 255-252 | J97: Profit of Rs.6/- | K97: =F97-H97 -> 6 | L97: =K97/F97 -> 2.21% | M97: Successful | N97: 2019-03-15 | R97: R
A98: 19 | B98: 2019-03-18 | D98: BHARATFORG | E98: Buy | F98: 522 | G98: 503.3 | H98: 503.3 | I98: 550 - 555 | J98: Profit of Rs.18/- | K98: =H98-F98 -> -18.7 | L98: -3.58% | M98: UnSuccessful | N98: 2019-03-20 | R98: R
A99: 20 | B99: 2019-03-18 | D99: CADILAHC | E99: Buy | F99: 338.50-341.50 | G99: 327 | I99: 365 | J99: Open | O99: =VLOOKUP(D99,Sheet2!A95:M1590,6,0) -> 335.95 | R99: H
A100: 21 | B100: 2019-03-22 | D100: TATAGLOBAL | E100: Buy | F100: 199-201 | G100: 193.7 | I100: 210-214 | J100: Open | O100: =VLOOKUP(D100,Sheet2!A96:M1591,6,0) -> 198.95 | R100: R
A101: 22 | B101: 2019-03-25 | D101: IBULHSGFIN | E101: Buy | F101: 718 | G101: 697 | H101: 738.5 | I101: 750-760 | J101: Profit of Rs.20.5/- | K101: =H101-F101 -> 20.5 | L101: =K101/F101 -> 2.86% | M101: Successful | N101: 2019-03-27 | O101: =VLOOKUP(D101,Sheet2!A97:M1592,6,0) -> 811.15 | R101: H
A102: 23 | B102: 2019-03-25 | D102: POWERGRID | E102: Sell | F102: 201 | G102: 207.7 | H102: 196.5 | I102: 190-187 | J102: Profit of Rs.4.5/- | K102: =F102-H102 -> 4.5 | L102: 2.24% | M102: Successful | N102: 2019-03-28 | R102: R
A103: 24 | B103: 2019-03-25 | D103: HINDUNILVR | E103: Buy | F103: 1664-1674 | G103: 1618 | I103: 1750 | J103: Open | O103: =VLOOKUP(D103,Sheet2!A99:M1594,6,0) -> 1683.9 | R103: H
A110: CLBS = Closing Basis *** | F110: Reinitiated $
A111: Dividend adjusted <> | F111: Revised stoploss #
B114: Momentum Call
A115: Sr.no | B115: Date | D115: Company | E115: Rec | F115: Rec Price | G115: Stop Loss | H115: Call Closed At | I115: Target | J115: Remark | K115: Profit / Loss per Share/Lot | L115: Gain / Loss % | M115: Gain / Loss per Lot | N115: Lot | O115: Status | P115: Closed Date
A116: 1 | B116: 2019-02-26 | D116: INDUSINDBK MAR FUT | E116: Buy | F116: 1492.5 | G116: 1455 | H116: 1511 | I116: 1550-1560 | J116: Profit of Rs.18.5/- | K116: =H116-F116 -> 18.5 | M116: =N116*K116 -> 5550 | N116: 300 | O116: Successful | P116: 2019-03-01 | R116: H
A117: 2 | B117: 2019-03-01 | D117: TORNTPHARM MAR FUT | E117: Buy | F117: 1802.5 | G117: 1780 | H117: 1780 | I117: 1840 | J117: Loss of Rs 22.5/- | K117: -22.5 | M117: -11250 | N117: 500 | O117: UnSuccessful | P117: 2019-03-05 | R117: N
A118: 3 | B118: 2019-03-05 | D118: TATAMOTORS MAR FUT | E118: Sell | F118: 185.5 | G118: 192 | H118: 192 | I118: 173 | J118: Loss of Rs 6.5/- | K118: =F118-H118 -> -6.5 | M118: =N118*K118 -> -13000 | N118: 2000 | O118: UnSuccessful | P118: 2019-03-05 | R118: R
A119: 4 | B119: 2019-03-05 | D119: ASIANPAINT MAR FUT | E119: Buy | F119: 1398 | G119: 1378 | H119: 1409 | I119: 1430 | J119: Profit of Rs.11/- | K119: =H119-F119 -> 11 | M119: 6600 | N119: 600 | O119: Successful | P119: 2019-03-05 | R119: N
A120: 5 | B120: 2019-03-05 | D120: COLPAL MAR FUT | E120: Buy | F120: 1249 | G120: 1233 | H120: 1260 | I120: 1275 | J120: Profit of Rs.11/- | K120: 11 | M120: 7700 | N120: 700 | O120: Successful | P120: 2019-03-06 | R120: N
A121: 6 | B121: 2019-03-06 | D121: PIDILITIND MAR FUT | E121: Buy | F121: 1157 | G121: 1135 | H121: 1135 | I121: 1200 | J121: Loss of Rs 22/- | K121: -22 | M121: -11000 | N121: 500 | O121: UnSuccessful | P121: 2019-03-08 | R121: N
A122: 7 | B122: 2019-03-06 | D122: SUNPHARMA MAR FUT | E122: Buy | F122: 460 | G122: 448 | H122: 469.5 | I122: 480 | J122: Profit of Rs.9.5/- | K122: =H122-F122 -> 9.5 | M122: =N122*K122 -> 11400 | N122: 1200 | O122: Successful | P122: 2019-03-06 | R122: H
A123: 8 | B123: 2019-03-06 | D123: ASIANPAINT MAR FUT | E123: Buy | F123: 1398 | G123: 1378 | H123: 1412 | I123: 1430 | J123: Profit of Rs.14/- | K123: 14 | M123: 8400 | N123: 600 | O123: Successful | P123: 2019-03-07 | R123: N
A124: 9 | B124: 2019-03-07 | D124: HINDUNILVR MAR FUT | E124: Buy | F124: 1720.5 | G124: 1695 | H124: 1721 | I124: 1760 | J124: Neutral | K124: =H124-F124 -> 0.5 | M124: =N124*K124 -> 300 | N124: 600 | O124: Neutral | P124: 2019-03-11 | R124: H
A125: 10 | B125: 2019-03-07 | D125: BSOFT MAR FUT | E125: Buy | F125: 112.5 | G125: 108 | H125: 108 | I125: 120 | J125: Loss of Rs 4.5/- | K125: =H125-F125 -> -4.5 | M125: =N125*K125 -> -10125 | N125: 2250 | O125: UnSuccessful | P125: 2019-03-08 | R125: H
A126: 11 | B126: 2019-03-07 | D126: SUNPHARMA | E126: Buy | F126: 457.5 | G126: 445 | H126: 467.5 | I126: 485 | J126: Profit of Rs.10/- | K126: 10 | L126: =K126/F126 -> 2.19% | O126: Successful | P126: 2019-03-12 | R126: H
A127: 12 | B127: 2019-03-08 | D127: AMARAJABAT MAR FUT | E127: Buy | F127: 740 | G127: 724 | H127: 752.5 | I127: 770 | J127: Profit of Rs.12.5/- | K127: =H127-F127 -> 12.5 | M127: =N127*K127 -> 8750 | N127: 700 | O127: Successful | P127: 2019-01-11 | R127: N
A128: 13 | B128: 2019-03-08 | D128: ASIANPAINT MAR FUT | E128: Buy | F128: 1390 | G128: 1370 | H128: 1401.5 | I128: 1425 | J128: Profit of Rs11.5/- | K128: 11.5 | M128: 6900 | N128: 600 | O128: Successful | P128: 2019-01-11 | R128: N
A129: 14 | B129: 2019-03-08 | D129: TATACHEM MAR FUT | E129: Buy | F129: 576 | G129: 559 | H129: 585 | I129: 600 | J129: Profit of Rs.9/- | K129: =H129-F129 -> 9 | M129: =N129*K129 -> 6750 | N129: 750 | O129: Successful | P129: 2019-01-11 | R129: H
A130: 15 | B130: 2019-03-08 | D130: AMBUJACEM MAR FUT | E130: Sell | F130: 227.5 | G130: 233.3 | H130: 233.3 | I130: 218-220 | J130: Loss of Rs 5.8/- | K130: =F130-H130 -> -5.8 | M130: -14500 | N130: 2500 | O130: UnSuccessful | P130: 2019-01-11 | R130: R
A131: 16 | B131: 2019-03-11 | D131: INFY MAR FUT | E131: Sell | F131: 720 | G131: 732 | H131: 713.5 | I131: 700-695 | J131: Profit of Rs.6.5/- | K131: =F131-H131 -> 6.5 | M131: =N131*K131 -> 7800 | N131: 1200 | O131: Successful | P131: 2019-01-11 | R131: H
A132: 17 | B132: 2019-03-11 | D132: UBL MAR FUT | E132: Buy | F132: 1391 | G132: 1375 | H132: 1398.5 | I132: 1425 | J132: Profit of Rs.7.5/- | K132: =H132-F132 -> 7.5 | M132: 5250 | N132: 700 | O132: Successful | P132: 2019-03-12 | R132: N
A133: 18 | B133: 2019-03-12 | D133: HCLTECH MAR FUT | E133: Buy | F133: 1018 | G133: 1000 | H133: 1029.5 | I133: 1050 | J133: Profit of Rs.11.5/- | K133: =H133-F133 -> 11.5 | M133: =N133*K133 -> 8050 | N133: 700 | O133: Successful | P133: 2019-03-13 | R133: N
A134: 19 | B134: 2019-03-12 | D134: APOLLOHOSP MAR FUT | E134: Buy | F134: 1195 | G134: 1170 | H134: 1170 | I134: 1235 | J134: Loss of Rs 25/- | K134: =H134-F134 -> -25 | M134: =N134*K134 -> -12500 | N134: 500 | O134: UnSuccessful | P134: 2019-03-12 | R134: N
A135: 20 | B135: 2019-03-12 | D135: ZEEL | E135: Buy | F135: 461 | G135: 447.7 | H135: 470.5 | I135: 485 | J135: Profit of Rs.9.5/- | K135: 9.5 | L135: =K135/F135 -> 2.06% | O135: Successful | P135: 2019-03-12 | R135: R
A136: 21 | B136: 2019-03-12 | D136: AMARAJABAT MAR FUT | E136: Buy | F136: 753 | G136: 736 | H136: 763 | I136: 785 | J136: Profit of Rs.10/- | K136: 10 | M136: =N136*K136 -> 7000 | N136: 700 | O136: Successful | P136: 2019-03-13 | R136: N
A137: 22 | B137: 2019-03-13 | D137: MINDTREE MAR FUT | E137: Buy | F137: 925 | G137: 905 | H137: 937.5 | I137: 955 | J137: Profit of Rs.12.5/- | K137: =H137-F137 -> 12.5 | M137: =N137*K137 -> 7500 | N137: 600 | O137: Successful | P137: 2019-03-13 | R137: N
A138: 23 | B138: 2019-03-13 | D138: CEATLTD MAR FUT | E138: Buy | F138: 1147 | G138: 1117 | H138: 1172 | I138: 1195 | J138: Profit of Rs.25/- | K138: 25 | M138: 10000 | N138: 400 | O138: Successful | P138: 2019-03-15 | R138: N
A139: 24 | B139: 2019-03-13 | D139: HAVELLS MAR FUT | E139: Buy | F139: 766 | G139: 754 | H139: 773 | I139: 780 | J139: Profit of Rs.7/- | K139: =H139-F139 -> 7 | M139: =N139*K139 -> 7000 | N139: 1000 | O139: Successful | P139: 2019-03-14 | R139: N
A140: 25 | B140: 2019-03-14 | D140: HCLTECH MAR FUT | E140: Buy | F140: 1013 | G140: 998 | H140: 1022.5 | I140: 1050 | J140: Profit of Rs.9.5/- | K140: =H140-F140 -> 9.5 | M140: =N140*K140 -> 6650 | N140: 700 | O140: Successful | P140: 2019-03-15 | R140: N
A141: 26 | B141: 2019-03-14 | D141: INDIGO MAR FUT | E141: Sell | F141: 1302 | G141: 1325 | H141: 1325 | I141: 1260 | J141: Loss of Rs 23/- | K141: =F141-H141 -> -23 | M141: -13800 | N141: 600 | O141: UnSuccessful | P141: 2019-03-18 | R141: R
A142: 27 | B142: 2019-03-14 | D142: MINDTREE | E142: Buy | F142: 944 | G142: 917 | H142: 969 | I142: 990 | J142: Profit of Rs.25/- | K142: =H142-F142 -> 25 | L142: =K142/F142 -> 2.65% | O142: Successful | P142: 2019-03-18 | R142: H
A143: 28 | B143: 2019-03-15 | D143: MCDOWELL-N | E143: Buy | F143: 584.5 | G143: 568 | H143: 566.5 | I143: 610-620 | J143: Loss of Rs 18/- | K143: -18 | L143: -3.08% | O143: UnSuccessful | P143: 2019-03-22 | R143: H
A144: 29 | B144: 2019-03-15 | D144: BIOCON MAR FUT | E144: Buy | F144: 627 | G144: 615 | H144: 634.75 | I144: 650 | J144: Profit of Rs.7.75/- | K144: =H144-F144 -> 7.75 | M144: =N144*K144 -> 6975 | N144: 900 | O144: Successful | P144: 2019-03-19 | R144: N
A145: 30 | B145: 2019-03-15 | D145: ACC MAR FUT | E145: Buy | F145: 1534.5 | G145: 1502 | H145: 1554.5 | I145: 1585 | J145: Profit of Rs.20/- | K145: =H145-F145 -> 20 | M145: 8000 | N145: 400 | O145: Successful | P145: 2019-03-18 | R145: R
A146: 31 | B146: 2019-03-15 | D146: TVSMOTOR MAR FUT | E146: Buy | F146: 496 | G146: 484 | H146: 484 | I146: 520 | J146: Loss of Rs 12/- | K146: -12 | M146: -12000 | N146: 1000 | O146: UnSuccessful | P146: 2019-03-18 | R146: H
A147: 32 | B147: 2019-03-15 | D147: AMARAJABAT MAR FUT | E147: Buy | F147: 749 | G147: 734 | H147: 734 | I147: 775 | J147: Loss of Rs 15/- | K147: =H147-F147 -> -15 | M147: =N147*K147 -> -10500 | N147: 700 | O147: UnSuccessful | P147: 2019-03-19 | R147: N
A148: 33 | B148: 2019-03-18 | D148: HDFC MAR FUT | E148: Sell | F148: 1982.5 | H148: 1968.5 | I148: 1940 | J148: Profit of Rs.14/- | K148: =F148-H148 -> 14 | M148: =N148*K148 -> 7000 | N148: 500 | O148: Successful | P148: 2019-03-18 | R148: H
A149: 34 | B149: 2019-03-19 | D149: Nifty MAR FUT | E149: Sell | F149: 11510 | G149: 11610 | H149: 11452.5 | I149: 11300 | J149: Profit of Rs.57.5/- | K149: =F149-H149 -> 57.5 | M149: =N149*K149 -> 4312.5 | N149: 75 | O149: Successful | P149: 2019-03-22 | R149: H
A150: 35 | B150: 2019-03-19 | D150: SBIN | E150: Sell | F150: 300.5 | G150: 310 | H150: 293 | I150: 285 -280 | J150: Profit of Rs.7.5/- | K150: =F150-H150 -> 7.5 | L150: =K150/F150 -> 2.50% | O150: Successful | P150: 2019-03-25 | R150: H
A151: 36 | B151: 2019-03-19 | D151: HINDUNILVR MAR FUT | E151: Buy | F151: 1713.5 | G151: 1694 | H151: 1694 | I151: 1750 | J151: Loss of Rs 19.5/- | K151: =H151-F151 -> -19.5 | M151: =N151*K151 -> -11700 | N151: 600 | O151: UnSuccessful | P151: 2019-03-20 | R151: N
A152: 37 | B152: 2019-03-19 | D152: BPCL MAR FUT | E152: Sell | F152: 404.5 | G152: 411 | H152: 409.5 | I152: 394 | J152: Loss of Rs 5/- | K152: =F152-H152 -> -5 | M152: =N152*K152 -> -9000 | N152: 1800 | O152: UnSuccessful | P152: 2019-03-19 | R152: H
A153: 38 | B153: 2019-03-20 | D153: CEATLTD MAR FUT | E153: Buy | F153: 1141.5 | G153: 1112 | H153: 1112 | I153: 1190 | J153: Loss of Rs 29.5/- | K153: -29.5 | M153: =N153*K153 -> -11800 | N153: 400 | O153: UnSuccessful | P153: 2019-03-22 | R153: N
A154: 39 | B154: 2019-03-20 | D154: IBULHSGFIN MAR FUT | E154: Buy | F154: 716 | G154: 695 | H154: 728.5 | I154: 745 | J154: Profit of Rs.12.5/- | K154: =H154-F154 -> 12.5 | M154: =N154*K154 -> 6250 | N154: 500 | O154: Successful | P154: 2019-03-20 | R154: H
A155: 40 | B155: 2019-03-20 | D155: AUROPHARMA MAR FUT | E155: Buy | F155: 782 | G155: 771 | H155: 788.5 | I155: 800 | J155: Profit of Rs.6.5/- | K155: =H155-F155 -> 6.5 | M155: =N155*K155 -> 6500 | N155: 1000 | O155: Successful | P155: 2019-03-22 | R155: N
A156: 41 | B156: 2019-03-20 | D156: HDFC MAR FUT | E156: Sell | F156: 2000.5 | G156: 2021 | H156: 1991 | I156: 1950 | J156: Profit of Rs.9.5/- | K156: =F156-H156 -> 9.5 | M156: =N156*K156 -> 4750 | N156: 500 | O156: Successful | P156: 2019-03-20 | R156: H
A157: 42 | B157: 2019-03-22 | D157: HCLTECH MAR FUT | E157: Buy | F157: 1033 | G157: 1017 | H157: 1017 | I157: 1060 | J157: Loss of Rs 16/- | K157: =H157-F157 -> -16 | M157: -11200 | N157: 700 | O157: UnSuccessful | P157: 2019-03-26 | R157: N
A158: 43 | B158: 2019-03-25 | D158: ENGINERSIN MAR FUT | E158: Sell | F158: 113.2 | G158: 116.2 | H158: 115.9 | I158: 106 | J158: Loss of Rs 2.7/- | K158: =F158-H158 -> -2.7 | M158: -11070 | N158: 4100 | O158: UnSuccessful | P158: 2019-03-27 | R158: N
A159: 44 | B159: 2019-03-25 | D159: BIOCON MAR FUT | E159: Buy | F159: 613 | G159: 600 | H159: 600 | I159: 635 | J159: Loss of Rs 13/- | K159: =H159-F159 -> -13 | M159: =N159*K159 -> -11700 | N159: 900 | O159: UnSuccessful | P159: 2019-03-28 | R159: N
A160: 45 | B160: 2019-03-26 | D160: BATAINDIA APR FUT | E160: Buy | F160: 1351 | G160: 1327 | H160: 1363 | I160: 1385 | J160: Profit of Rs.12/- | K160: =H160-F160 -> 12 | M160: =N160*K160 -> 6600 | N160: 550 | O160: Successful | P160: 2019-03-27 | R160: N
A161: 46 | B161: 2019-03-28 | D161: AMARAJABAT APR FUT | E161: Buy | F161: 725-727 | G161: 709 | I161: 750 | J161: Open | R161: N
A162: 47 | B162: 2019-03-28 | D162: TECHM APR FUT | E162: Buy | F162: 777-779 | G162: 768 | I162: 795 | J162: Open | R162: N
A171: CLBS = Closing Basis ***
A172: Dividend adjusted <> | F172: Reinitiated $
F173: Revised stoploss #
B174: Quick Pick Intraday
A175: Sr.no | B175: Date | D175: Company | E175: Rec | F175: Rec Price | G175: Stop Loss*** | H175: Call Closed At | I175: Target | J175: Remark | K175: Profit / Loss per Share | L175: Status | M175: Closed Date
A189: Techno -Funda (positional)
A190: Sr.no | B190: Date | D190: Company | E190: Rec | F190: Rec Price | G190: Stop Loss*** | H190: Call Closed At | I190: Target | J190: Remark | K190: Profit / Loss per Share | L190: Gain / Loss % | M190: Status | N190: Closed Date | O190: NSE Closed Price
A193: CLBS = Closing Basis *** | F193: Reinitiated $
A194: Dividend adjusted <> | F194: Revised stoploss #
B199: Investment Idea
A200: Sr.no | B200: Date | D200: Company | E200: Rec | F200: Rec Price | G200: Point of Review | H200: Close Rate | I200: Target | J200: Remark | K200: Profit / Loss per Share | L200: Gain / Loss % | M200: Status | N200: Closed Date
A201: 1 | B201: 2013-11-01 | D201: L&T Finance Holding | E201: Accu | F201: 82.00 | G201: - | H201: 100 | I201: 100.00 | J201: Target Achieved | K201: =H201-F201 -> 18.00 | L201: =K201/F201 -> 21.95% | M201: Successful | N201: 2016-10-14
A202: 2 | B202: 2014-06-04 | D202: Finolex Inds | E202: Buy | F202: 257.00 | G202: - | H202: 300 | I202: 300.00 | J202: Target Achieved | K202: =H202-F202 -> 43.00 | L202: 16.73% | M202: Successful | N202: 2014-07-02
A203: =1+A202 -> 3 | B203: 2014-07-08 | D203: JK Cement | E203: Buy | F203: 393.00 | G203: - | H203: 468 | I203: 468.00 | J203: Target Achieved | K203: =H203-F203 -> 75.00 | L203: 19.08% | M203: Successful | N203: 2014-08-12
A204: 4 | B204: 2014-08-06 | D204: Finolex Cables | E204: Buy | F204: 205.00 | G204: - | H204: 275 | I204: 250.00 | J204: Target Achieved | K204: 70.00 | L204: 34.15% | M204: Successful | N204: 2014-11-19
A205: 5 | B205: 2014-09-04 | D205: Exide Inds | E205: Buy | F205: 162.00 | G205: - | H205: 190 | I205: 190.00 | J205: Target Achieved | K205: 28.00 | L205: 17.28% | M205: Successful | N205: 2015-01-02
A206: 6 | B206: 2014-09-04 | D206: Deepak Nitrite | E206: Buy | F206: 75.00 | G206: - | H206: 91.5 | I206: 95-100 | J206: Profit of Rs.16.50/- | K206: 16.50 | L206: 22.00% | M206: Successful | N206: 2014-11-11
A207: 7 | B207: 2014-10-01 | D207: Mercks | E207: Buy | F207: 850.00 | G207: - | H207: 982.5 | I207: 1050.00 | J207: Profit of Rs.132.50/- | K207: 132.50 | L207: 15.59% | M207: Successful | N207: 2015-02-04
A208: 8 | B208: 2014-10-01 | D208: Grindwell Norton | E208: Buy | F208: 475.00 | G208: - | H208: 515 | I208: 600.00 | J208: Profit of Rs.40/- | K208: 40.00 | L208: 8.42% | M208: Successful | N208: 2014-10-27
A209: 9 | B209: 2014-10-01 | D209: Snowman Logistics | E209: Buy | F209: 86.00 | G209: - | H209: 99 | I209: 140.00 | J209: Profit of Rs.13.00/- | K209: 13.00 | L209: 15.12% | M209: Successful | N209: 2014-10-27
A210: 10 | B210: 2014-10-14 | D210: Birla Corp | E210: Buy | F210: 496.60 | G210: - | H210: 621 | I210: 580.00 | J210: Target Achieved | K210: 124.40 | L210: 25.05% | M210: Successful | N210: 2016-08-23
A211: 11 | B211: 2014-10-14 | D211: Ultratech Cem | E211: Buy | F211: 2481.90 | G211: - | H211: 2840 | I211: 2870.00 | J211: Profit of Rs.358.10/- | K211: 358.10 | L211: 14.43% | M211: Successful | N211: 2015-01-13
A212: =1+A209 -> 10 | B212: 2014-10-16 | D212: Sintex Inds | E212: Buy | F212: 84.50 | G212: - | H212: 93 | I212: 110.00 | J212: Profit of Rs.8.50/- | K212: 8.50 | L212: 10.06% | M212: Successful | N212: 2014-10-27
A213: =1+A212 -> 11 | B213: 2014-10-16 | D213: HSIL | E213: Buy | F213: 401.00 | G213: - | H213: 428 | I213: 450.00 | J213: Profit of Rs.27.00/- | K213: 27.00 | L213: 6.73% | M213: Successful | N213: 2015-01-16
A214: 12 | B214: 2014-10-16 | D214: Eveready Inds | E214: Buy | F214: 101.00 | G214: - | H214: 112 | I214: 120.00 | J214: Profit of Rs.11.00/- | K214: 11.00 | L214: 10.89% | M214: Successful | N214: 2014-10-27
A215: 13 | B215: 2014-11-11 | D215: Pennar Inds | E215: Buy | F215: 59.00 | G215: - | H215: 76 | I215: 76.00 | J215: Target Achieved | K215: 17.00 | L215: 28.81% | M215: Successful | N215: 2017-10-24
A216: 14 | B216: 2014-11-11 | D216: Snowman Logistics | E216: Buy | F216: 99.00 | G216: - | H216: 120 | I216: 120.00 | J216: Profit of Rs.21/- | K216: 21.00 | L216: 21.21% | M216: Successful | N216: 2014-11-17
A217: 15 | B217: 2014-11-13 | D217: Dharamsi Morarji Chem | E217: Buy | F217: 22.00 | G217: - | H217: 33.55 | I217: 32.00 | J217: Profit of Rs 11.55/- | K217: 11.55 | L217: 52.50% | M217: Successful | N217: 2015-07-03
A218: 16 | B218: 2014-12-03 | D218: Tatachem | E218: Buy | F218: 440.00 | G218: - | H218: 520 | I218: 520.00 | J218: Profit of Rs 80.00/- | K218: 80.00 | L218: 18.18% | M218: Successful | N218: 2015-07-23
A219: 17 | B219: 2014-12-03 | D219: Advanta | E219: Buy | F219: 360.00 | G219: - | H219: 427 | I219: 425.00 | J219: Profit of Rs.67.00/- | K219: 67.00 | L219: 18.61% | M219: Successful | N219: 2015-02-23
A220: 18 | B220: 2015-01-08 | D220: GDL | E220: Buy | F220: 360.00 | G220: - | H220: 455 | I220: 420.00 | J220: Profit of Rs.95.00/- | K220: 95.00 | L220: 26.39% | M220: Successful | N220: 2015-01-20
A221: 19 | B221: 2015-01-08 | D221: NRB Bearing | E221: Buy | F221: 130.00 | H221: 175.5 | I221: 165.00 | J221: Profit of Rs 45.50/- | K221: 45.50 | L221: 35.00% | M221: Successful | N221: 2017-12-19
A222: 20 | B222: 2015-02-05 | D222: GSFC | E222: Accu | F222: 98.00 | H222: 120 | I222: 120.00 | J222: Target Achieved | K222: 22.00 | L222: 22.45% | M222: Successful | N222: 2017-01-18
A223: 21 | B223: 2015-02-05 | D223: Sundrmfast | E223: Accu | F223: 196.00 | H223: 262 | I223: 255.00 | J223: Target Achieved | K223: 66.00 | L223: 33.67% | M223: Successful | N223: 2016-08-17
A224: 22 | B224: 2015-03-04 | D224: GPPL | E224: Accu | F224: 235 | H224: 77.00 | I224: 280-285 | J224: Loss of Rs.158/- | K224: =H224-F224 -> -158.00 | L224: -67.23% | M224: Unsuccessful | N224: 2019-02-26
A225: 23 | B225: 2015-03-04 | D225: ORIENTCEM | E225: Accu | F225: 185.00 | H225: 224 | I225: 220-225 | J225: Target Achieved | K225: 39.00 | L225: =K225/F225 -> 21.08% | M225: Successful | N225: 2016-10-04
A226: 24 | B226: 2015-03-27 | D226: PFS | E226: Accu | F226: 49-50 | I226: 67.00 | J226: Open
A227: 25 | B227: 2015-03-30 | D227: Walchandnagar Ind Ltd | E227: Accu | F227: 183.50 | H227: 219 | I227: 218.00 | J227: Profit of Rs.35.50/- | K227: 35.50 | L227: =K227/F227 -> 19.35% | M227: Successful | N227: 2015-04-09
A228: 26 | B228: 2015-04-20 | D228: Kalpataru Power Transmission Ltd | E228: Accu | F228: =(227+237)/2 -> 232.00 | H228: 298 | I228: 298.00 | J228: Target Achieved | K228: 66.00 | L228: 28.45% | M228: Successful | N228: 2017-03-29
A229: 27 | B229: 2015-05-04 | D229: Mastek Ltd | E229: Buy | F229: 385.00 | H229: =212.5+331 -> 543.5 | I229: 510.00 | J229: Profit of Rs 158.50/- | K229: 158.50 | L229: 41.17% | M229: Successful | N229: 2015-08-19
A230: 28 | B230: 2015-05-04 | D230: Suprajit Eng | E230: Buy | F230: 115.50 | H230: 146 | I230: 142.00 | J230: Profit of Rs 30.50/- | K230: 30.50 | L230: 26.41% | M230: Successful | N230: 2015-07-17
A231: 29 | B231: 2015-05-27 | D231: TCI | E231: Buy | F231: 237.50 | H231: 279.5 | I231: 278.00 | J231: Target Achieved | K231: 42.00 | L231: 17.68% | M231: Successful | N231: 2015-08-06
A232: 30 | B232: 2015-06-19 | D232: HSIL | E232: Accu | F232: 340.00 | H232: 448 | I232: 448.00 | J232: Target Achieved | K232: 108.00 | L232: 31.76% | M232: Successful | N232: 2017-10-10
A233: 31 | B233: 2015-07-06 | D233: Capital First | E233: Accu | F233: 390.00 | H233: 460 | I233: 460.00 | J233: Target Achieved | K233: 70.00 | L233: 17.95% | M233: Successful | N233: 2016-04-18
A234: 32 | B234: 2015-07-10 | D234: Dolphin OffShore | E234: Accu | F234: 122.5 | H234: 61.00 | I234: 172.00 | J234: Loss of Rs.61.50/- | K234: -61.50 | L234: -50.20% | M234: Unsuccessful | N234: 2018-08-21
A235: 33 | B235: 2015-08-03 | D235: Allcargo logistics | E235: Accu | F235: 297.50 | H235: 350 | I235: 360.00 | J235: Profit of Rs 52.50/- | K235: 52.50 | L235: =K235/F235 -> 17.65% | M235: Successful | N235: 2015-08-16
A236: 34 | B236: 2015-08-03 | D236: Camline Fine | E236: Accu | F236: 115.50 | H236: 149 | I236: 140.00 | J236: Profit of Rs 33.50/- | K236: 33.50 | L236: 29.00% | M236: Successful | N236: 2017-01-05
A237: 35 | B237: 2015-09-04 | D237: TCI | E237: Accu | F237: 226.00 | H237: 292 | I237: 292.00 | J237: Target Achieved | K237: 66.00 | L237: 29.20% | M237: Successful | N237: 2015-10-09
A238: 36 | B238: 2015-09-07 | D238: Kalpataru Power Transmission Ltd | E238: Accu | F238: 232.50 | H238: 312.5 | I238: 310.00 | J238: Target Achieved | K238: 80.00 | L238: 34.41% | M238: Successful | N238: 2017-03-29
A239: 37 | B239: 2015-09-21 | D239: LLOYD ELECTRIC & ENG LTD | E239: Accu | F239: 196.50 | H239: 238 | I239: 238.00 | J239: Target Achieved | K239: 41.50 | L239: 21.12% | M239: Successful | N239: 2015-10-14
A240: 38 | B240: 2015-09-24 | D240: L&T Finance Holding | E240: Accu | F240: 65.00 | H240: 82 | I240: 82.00 | J240: Target Achieved | K240: 17.00 | L240: 26.15% | M240: Successful | N240: 2016-07-27
A241: 39 | B241: 2015-10-14 | D241: KEC International ltd | E241: Accu | F241: 144.00 | H241: 182.5 | I241: 181.00 | J241: Target Achieved | K241: 38.50 | L241: 26.74% | M241: Successful | N241: 2017-03-23
A242: 40 | B242: 2015-10-14 | D242: Gruh Finance | E242: Accu | F242: 264.00 | H242: 311 | I242: 311.00 | J242: Target Achieved | K242: 47.00 | L242: 17.80% | M242: Successful | N242: 2016-08-22
A243: 41 | B243: 2015-11-10 | D243: Pidilitind | E243: Buy | F243: 549.50 | H243: 630 | I243: 630.00 | J243: Target Achieved | K243: 80.50 | L243: 14.65% | M243: Successful | N243: 2016-02-19
A244: 42 | B244: 2015-12-04 | D244: Zensar Technology | E244: Accu | F244: 1027.50 | H244: 1315 | I244: 1250.00 | J244: Target Achieved | K244: =H244-F244 -> 287.50 | L244: 27.98% | M244: Successful | N244: 2018-05-24
A245: 43 | B245: 2015-12-29 | D245: Vinati Organics Ltd | E245: Accu | F245: 465.00 | H245: 540 | I245: 540.00 | J245: Target Achieved | K245: 75.00 | L245: =K245/F245 -> 16.13% | M245: Successful | N245: 2016-06-09
A246: 44 | B246: 2016-01-11 | D246: GSFC | E246: Buy | F246: 81.00 | H246: 110 | I246: 110.00 | J246: Target Achieved | K246: 29.00 | L246: 35.80% | M246: Successful | N246: 2017-01-10
A247: 45 | B247: 2016-01-13 | D247: SSWL | E247: Buy | F247: 417.50 | H247: 547 | I247: 535.00 | J247: Target Achieved | K247: 129.50 | L247: 31.02% | M247: Successful | N247: 2016-07-27
A248: 46 | B248: 2016-02-08 | D248: Persistent System Ltd | E248: Accu | F248: 650.00 | H248: 800 | I248: 800.00 | J248: Target Achieved | K248: 150.00 | L248: 23.08% | M248: Successful | N248: 2018-02-23
A249: 47 | B249: 2016-03-04 | D249: UPL | E249: Accu | F249: 437.50 | H249: 504.5 | I249: 522.00 | J249: Profit of Rs.67/- | K249: 67.00 | L249: 15.31% | M249: Successful | N249: 2016-04-20
A250: 48 | B250: 2016-03-09 | D250: Ashoka Buildcon Ltd | E250: Accu | F250: 189.50 | H250: 218 | I250: 218.00 | J250: Target Achieved | K250: 28.50 | L250: 15.04% | M250: Successful | N250: 2017-10-26
A251: 49 | B251: 2016-04-11 | D251: PTC INDIA FIN SERV LTD | E251: Accu | F251: 36-37 | I251: 60.00 | J251: Open
A252: 50 | B252: 2016-04-12 | D252: CAMLINFINE $ | E252: Accu | F252: 93.00 | H252: 149 | I252: 140.00 | J252: Profit of Rs 56/- | K252: 56.00 | L252: =K252/F252 -> 60.22% | M252: Successful | N252: 2017-01-05
A253: 51 | B253: 2016-04-12 | D253: Greaves Cotton Ltd. | E253: Accu | F253: 130.00 | H253: 150 | I253: 150-155 | J253: Target Achieved | K253: 20.00 | L253: 15.38% | M253: Successful | N253: 2016-07-13
A254: 52 | B254: 2016-04-13 | D254: DHFL | E254: Accu | F254: 196.00 | H254: 299 | I254: 299.00 | J254: Target Achieved | K254: 103.00 | L254: 52.55% | M254: Successful | N254: 2016-09-07
... 95 more rows

Sheet Sheet2 (hidden)
A1: SYMBOL | B1: SERIES | C1: OPEN | D1: HIGH | E1: LOW | F1: CLOSE | G1: LAST | H1: PREVCLOSE | I1: TOTTRDQTY | J1: TOTTRDVAL | K1: TIMESTAMP | L1: TOTALTRADES | M1: ISIN | N1: ISIN
A2: 20MICRONS | B2: EQ | C2: 37.5 | D2: 38.8 | E2: 37 | F2: 38.5 | G2: 38.7 | H2: 37.05 | I2: 38303 | J2: 1458324.45 | K2: 2019-03-28 | L2: 398 | M2: INE144J01027
A3: 21STCENMGM | B3: EQ | C3: 18.2 | D3: 18.9 | E3: 18.2 | F3: 18.9 | G3: 18.9 | H3: 18.55 | I3: 2476 | J3: 46374.85 | K3: 2019-03-28 | L3: 15 | M3: INE253B01015
A4: 3IINFOTECH | B4: EQ | C4: 3.8 | D4: 3.9 | E4: 3.7 | F4: 3.8 | G4: 3.85 | H4: 3.75 | I4: 2391169 | J4: 9067838.35 | K4: 2019-03-28 | L4: 692 | M4: INE748C01020
A5: 3MINDIA | B5: EQ | C5: 23945 | D5: 24150 | E5: 23662 | F5: 24035.65 | G5: 23978.5 | H5: 23777.85 | I5: 579 | J5: 13855199.45 | K5: 2019-03-28 | L5: 352 | M5: INE470A01017
A6: 5PAISA | B6: EQ | C6: 228.8 | D6: 239.95 | E6: 228 | F6: 237.3 | G6: 239 | H6: 228.75 | I6: 4120 | J6: 969097.4 | K6: 2019-03-28 | L6: 232 | M6: INE618L01018
A7: 63MOONS | B7: EQ | C7: 78.45 | D7: 80.7 | E7: 78.15 | F7: 79.55 | G7: 79.3 | H7: 78.05 | I7: 182918 | J7: 14582419.45 | K7: 2019-03-28 | L7: 2469 | M7: INE111B01023
A8: 8KMILES | B8: EQ | C8: 90 | D8: 93.85 | E8: 89.5 | F8: 93.85 | G8: 93.85 | H8: 89.4 | I8: 183722 | J8: 16981471.3 | K8: 2019-03-28 | L8: 2367 | M8: INE650K01021
A9: A2ZINFRA | B9: BE | C9: 17.1 | D9: 17.7 | E9: 17.1 | F9: 17.45 | G9: 17.5 | H9: 17.1 | I9: 150988 | J9: 2626933 | K9: 2019-03-28 | L9: 221 | M9: INE619I01012
A10: AARTIDRUGS | B10: EQ | C10: 650 | D10: 655 | E10: 646.55 | F10: 648.15 | G10: 647.05 | H10: 662.3 | I10: 19709 | J10: 12820100.9 | K10: 2019-03-28 | L10: 1382 | M10: INE767A01016
A11: AARTIIND | B11: EQ | C11: 1585.1 | D11: 1585.1 | E11: 1537.55 | F11: 1555.25 | G11: 1558 | H11: 1590.5 | I11: 118734 | J11: 184472134.2 | K11: 2019-03-28 | L11: 8123 | M11: INE769A01020
A12: AARVEEDEN | B12: EQ | C12: 23.05 | D12: 25.35 | E12: 22.25 | F12: 23.85 | G12: 23.8 | H12: 23.1 | I12: 40748 | J12: 993463.45 | K12: 2019-03-28 | L12: 382 | M12: INE273D01019
A13: AAVAS | B13: EQ | C13: 1144 | D13: 1159.85 | E13: 1075.4 | F13: 1096.8 | G13: 1101 | H13: 1143.4 | I13: 46575 | J13: 53037911.05 | K13: 2019-03-28 | L13: 1950 | M13: INE216P01012
A14: ABAN | B14: BE | C14: 58.9 | D14: 59.45 | E14: 57.25 | F14: 58 | G14: 57.75 | H14: 57.6 | I14: 71729 | J14: 4163260.15 | K14: 2019-03-28 | L14: 591 | M14: INE421A01028
A15: ABB | B15: EQ | C15: 1321.1 | D15: 1331.7 | E15: 1308.45 | F15: 1314.9 | G15: 1312.3 | H15: 1326.45 | I15: 154138 | J15: 203785662.3 | K15: 2019-03-28 | L15: 4483 | M15: INE117A01022
A16: ABBOTINDIA | B16: EQ | C16: 7259.95 | D16: 7331 | E16: 7242.1 | F16: 7274.9 | G16: 7265 | H16: 7227.35 | I16: 26845 | J16: 195054934.5 | K16: 2019-03-28 | L16: 1161 | M16: INE358A01014
A17: ABCAPITAL | B17: EQ | C17: 101.5 | D17: 101.8 | E17: 97.6 | F17: 98.55 | G17: 98.2 | H17: 100.9 | I17: 5154877 | J17: 513030122 | K17: 2019-03-28 | L17: 27576 | M17: INE674K01013
A18: ABFRL | B18: EQ | C18: 223.5 | D18: 225.7 | E18: 220.3 | F18: 221.65 | G18: 222 | H18: 223.5 | I18: 1125372 | J18: 251891210.4 | K18: 2019-03-28 | L18: 5780 | M18: INE647O01011
A19: ABSLNN50ET | B19: EQ | C19: 331.7 | D19: 331.7 | E19: 315.7 | F19: 327.02 | G19: 327.02 | H19: 320 | I19: 129 | J19: 42553.14 | K19: 2019-03-28 | L19: 6 | M19: INF209KB1B87
A20: ACC | B20: EQ | C20: 1604 | D20: 1629.4 | E20: 1587 | F20: 1617.8 | G20: 1629 | H20: 1602.55 | I20: 942173 | J20: 1514523343 | K20: 2019-03-28 | L20: 36378 | M20: INE012A01025
A21: ACCELYA | B21: EQ | C21: 919 | D21: 926.15 | E21: 915.15 | F21: 919.8 | G21: 922 | H21: 919.05 | I21: 3222 | J21: 2964143.15 | K21: 2019-03-28 | L21: 424 | M21: INE793A01012
A22: ACE | B22: EQ | C22: 104.95 | D22: 109.9 | E22: 104 | F22: 109.2 | G22: 109.35 | H22: 104.65 | I22: 619006 | J22: 67131079.1 | K22: 2019-03-28 | L22: 6840 | M22: INE731H01025
A23: ADANIENT | B23: EQ | C23: 138.45 | D23: 143.15 | E23: 136.3 | F23: 137.8 | G23: 137.9 | H23: 137.5 | I23: 3966292 | J23: 554773318.6 | K23: 2019-03-28 | L23: 21095 | M23: INE423A01024
A24: ADANIGAS | B24: EQ | C24: 116 | D24: 117.5 | E24: 115.35 | F24: 116.9 | G24: 117.4 | H24: 115.5 | I24: 123587 | J24: 14381462 | K24: 2019-03-28 | L24: 1247 | M24: INE399L01023
A25: ADANIGREEN | B25: EQ | C25: 35.6 | D25: 36.4 | E25: 35.25 | F25: 35.85 | G25: 35.95 | H25: 35.55 | I25: 498011 | J25: 17817101.25 | K25: 2019-03-28 | L25: 3055 | M25: INE364U01010
A26: ADANIPORTS | B26: EQ | C26: 368.85 | D26: 382.65 | E26: 366.3 | F26: 381.3 | G26: 381 | H26: 366.3 | I26: 5909606 | J26: 2231622221 | K26: 2019-03-28 | L26: 99182 | M26: INE742F01042
A27: ADANIPOWER | B27: EQ | C27: 46.95 | D27: 47.6 | E27: 46.6 | F27: 46.9 | G27: 46.75 | H27: 46.9 | I27: 8521212 | J27: 401335910.6 | K27: 2019-03-28 | L27: 12643 | M27: INE814H01011
A28: ADANITRANS | B28: EQ | C28: 208.3 | D28: 218.9 | E28: 208.3 | F28: 217.75 | G28: 218.35 | H28: 212 | I28: 157719 | J28: 33987743.5 | K28: 2019-03-28 | L28: 4369 | M28: INE931S01010
A29: ADFFOODS | B29: EQ | C29: 240 | D29: 242.5 | E29: 238.75 | F29: 241.1 | G29: 240.6 | H29: 239.4 | I29: 10131 | J29: 2441487.85 | K29: 2019-03-28 | L29: 356 | M29: INE982B01019
A30: ADHUNIK | B30: BE | C30: 2.85 | D30: 2.85 | E30: 2.65 | F30: 2.8 | G30: 2.8 | H30: 2.75 | I30: 124384 | J30: 346833.45 | K30: 2019-03-28 | L30: 88 | M30: INE400H01019
A31: ADHUNIKIND | B31: EQ | C31: 56 | D31: 56 | E31: 54.55 | F31: 55.75 | G31: 55.1 | H31: 55.5 | I31: 22241 | J31: 1234549.9 | K31: 2019-03-28 | L31: 79 | M31: INE452L01012
A32: ADLABS | B32: EQ | C32: 8.7 | D32: 8.7 | E32: 8.4 | F32: 8.4 | G32: 8.4 | H32: 8.8 | I32: 409819 | J32: 3443064.6 | K32: 2019-03-28 | L32: 400 | M32: INE172N01012
A33: ADORWELD | B33: EQ | C33: 327 | D33: 344.5 | E33: 327 | F33: 340.65 | G33: 340.5 | H33: 329.9 | I33: 15736 | J33: 5351230.35 | K33: 2019-03-28 | L33: 734 | M33: INE045A01017
A34: ADROITINFO | B34: BE | C34: 18 | D34: 18.45 | E34: 17.1 | F34: 18.05 | G34: 18.45 | H34: 18 | I34: 715 | J34: 13004.25 | K34: 2019-03-28 | L34: 8 | M34: INE737B01033
A35: ADSL | B35: EQ | C35: 13.8 | D35: 14 | E35: 13.35 | F35: 13.6 | G35: 13.65 | H35: 13.45 | I35: 7938 | J35: 108833.45 | K35: 2019-03-28 | L35: 61 | M35: INE102I01027
A36: ADVANIHOTR | B36: EQ | C36: 70.75 | D36: 70.8 | E36: 68.45 | F36: 69.65 | G36: 70.1 | H36: 70.65 | I36: 11416 | J36: 793060.95 | K36: 2019-03-28 | L36: 141 | M36: INE199C01026
A37: ADVENZYMES | B37: EQ | C37: 171.5 | D37: 172.45 | E37: 169 | F37: 169.5 | G37: 169.8 | H37: 170.2 | I37: 94901 | J37: 16174247.8 | K37: 2019-03-28 | L37: 1735 | M37: INE837H01020
A38: AEGISCHEM | B38: EQ | C38: 202 | D38: 204.55 | E38: 199.75 | F38: 200.7 | G38: 201 | H38: 203.55 | I38: 175564 | J38: 35555145.15 | K38: 2019-03-28 | L38: 6793 | M38: INE208C01025
A39: AGARIND | B39: EQ | C39: 154.05 | D39: 167 | E39: 154.05 | F39: 163.65 | G39: 164.8 | H39: 153.8 | I39: 4627 | J39: 740996 | K39: 2019-03-28 | L39: 129 | M39: INE204E01012
A40: AGCNET | B40: EQ | C40: 111.7 | D40: 114.35 | E40: 111 | F40: 111.1 | G40: 111 | H40: 111.75 | I40: 1825 | J40: 203801.25 | K40: 2019-03-28 | L40: 25 | M40: INE676A01019
A41: AGLSL | B41: EQ | C41: 58.5 | D41: 60.8 | E41: 58.5 | F41: 59.55 | G41: 60 | H41: 58 | I41: 1292 | J41: 76736.1 | K41: 2019-03-28 | L41: 24 | M41: INE517U01013
A42: AGRITECH | B42: EQ | C42: 51.4 | D42: 51.45 | E42: 49.5 | F42: 50.9 | G42: 51 | H42: 49.7 | I42: 3190 | J42: 162424.95 | K42: 2019-03-28 | L42: 67 | M42: INE449G01018
A43: AGROPHOS | B43: EQ | C43: 74.9 | D43: 74.95 | E43: 71 | F43: 71.9 | G43: 72.45 | H43: 74 | I43: 240162 | J43: 17432372.3 | K43: 2019-03-28 | L43: 218 | M43: INE740V01019
A44: AHLEAST | B44: EQ | C44: 237 | D44: 244.9 | E44: 237 | F44: 238.95 | G44: 239 | H44: 239.25 | I44: 122 | J44: 29172.85 | K44: 2019-03-28 | L44: 23 | M44: INE926K01017
A45: AHLUCONT | B45: EQ | C45: 326.5 | D45: 326.5 | E45: 321.65 | F45: 325.1 | G45: 325 | H45: 329.5 | I45: 3683 | J45: 1196437.3 | K45: 2019-03-28 | L45: 204 | M45: INE758C01029
A46: AHLWEST | B46: EQ | C46: 340.1 | D46: 340.1 | E46: 331.1 | F46: 333.5 | G46: 332 | H46: 345 | I46: 255 | J46: 85838.55 | K46: 2019-03-28 | L46: 37 | M46: INE915K01010
A47: AIAENG | B47: EQ | C47: 1771.15 | D47: 1865 | E47: 1763 | F47: 1837.15 | G47: 1833.5 | H47: 1762.9 | I47: 56612 | J47: 102615041.7 | K47: 2019-03-28 | L47: 8649 | M47: INE212H01026
A48: AIFL | B48: BE | C48: 13.2 | D48: 13.2 | E48: 13.2 | F48: 13.2 | G48: 13.2 | H48: 12.6 | I48: 89428 | J48: 1180449.6 | K48: 2019-03-28 | L48: 101 | M48: INE428O01016
A49: AIONJSW | B49: EQ | C49: 24.6 | D49: 24.6 | E49: 23.05 | F49: 23.5 | G49: 23.1 | H49: 23.45 | I49: 1525326 | J49: 36459262.55 | K49: 2019-03-28 | L49: 687 | M49: INE743C01021
A50: AJANTPHARM | B50: EQ | C50: 1008 | D50: 1030.8 | E50: 1005.3 | F50: 1025.4 | G50: 1029 | H50: 1000.95 | I50: 308064 | J50: 313088811.1 | K50: 2019-03-28 | L50: 10831 | M50: INE031B01049
A51: AJMERA | B51: EQ | C51: 183.4 | D51: 188.8 | E51: 182 | F51: 185.7 | G51: 185.95 | H51: 182.2 | I51: 94640 | J51: 17656216.65 | K51: 2019-03-28 | L51: 1988 | M51: INE298G01027
A52: AKSHARCHEM | B52: EQ | C52: 329.4 | D52: 339 | E52: 329.4 | F52: 337.4 | G52: 338.95 | H52: 324.6 | I52: 8938 | J52: 2988295.25 | K52: 2019-03-28 | L52: 2608 | M52: INE542B01011
A53: AKSHOPTFBR | B53: EQ | C53: 19.25 | D53: 19.75 | E53: 19.2 | F53: 19.3 | G53: 19.2 | H53: 19.25 | I53: 596799 | J53: 11612736.75 | K53: 2019-03-28 | L53: 2229 | M53: INE523B01011
A54: AKZOINDIA | B54: EQ | C54: 1769.95 | D54: 1792 | E54: 1750.5 | F54: 1786.65 | G54: 1750.5 | H54: 1767.2 | I54: 5968 | J54: 10636697.8 | K54: 2019-03-28 | L54: 765 | M54: INE133A01011
A55: ALANKIT | B55: EQ | C55: 31.25 | D55: 32.45 | E55: 31 | F55: 32.35 | G55: 32.4 | H55: 31.5 | I55: 471861 | J55: 15021404.45 | K55: 2019-03-28 | L55: 2884 | M55: INE914E01040
A56: ALBERTDAVD | B56: EQ | C56: 390 | D56: 397.95 | E56: 388.9 | F56: 394.55 | G56: 393 | H56: 391.05 | I56: 4758 | J56: 1873846.55 | K56: 2019-03-28 | L56: 174 | M56: INE155C01010
A57: ALBK | B57: EQ | C57: 52.35 | D57: 55.4 | E57: 52.35 | F57: 54.9 | G57: 54.85 | H57: 52.35 | I57: 14055512 | J57: 765369897 | K57: 2019-03-28 | L57: 30366 | M57: INE428A01015
A58: ALCHEM | B58: BE | C58: 1.85 | D58: 1.95 | E58: 1.85 | F58: 1.9 | G58: 1.9 | H58: 1.9 | I58: 1470 | J58: 2780.55 | K58: 2019-03-28 | L58: 18 | M58: INE964B01033
A59: ALEMBICLTD | B59: EQ | C59: 42.2 | D59: 42.55 | E59: 41.1 | F59: 41.45 | G59: 41.6 | H59: 42.1 | I59: 175854 | J59: 7340151.45 | K59: 2019-03-28 | L59: 908 | M59: INE426A01027
A60: ALICON | B60: EQ | C60: 590.95 | D60: 600 | E60: 587.6 | F60: 595.45 | G60: 593 | H60: 593.8 | I60: 5409 | J60: 3218405.05 | K60: 2019-03-28 | L60: 205 | M60: INE062D01024
A61: ALKALI | B61: EQ | C61: 40.25 | D61: 42.4 | E61: 39.9 | F61: 40.8 | G61: 40.3 | H61: 40.25 | I61: 16707 | J61: 685531.65 | K61: 2019-03-28 | L61: 212 | M61: INE773I01017
A62: ALKEM | B62: EQ | C62: 1757 | D62: 1768.8 | E62: 1735.4 | F62: 1741.7 | G62: 1740 | H62: 1750.35 | I62: 65921 | J62: 115340128.7 | K62: 2019-03-28 | L62: 5185 | M62: INE540L01014
A63: ALKYLAMINE | B63: EQ | C63: 847.5 | D63: 856 | E63: 831.05 | F63: 835.85 | G63: 832.6 | H63: 847.4 | I63: 4699 | J63: 3968279.35 | K63: 2019-03-28 | L63: 586 | M63: INE150B01021
A64: ALLCARGO | B64: EQ | C64: 113.65 | D64: 118.75 | E64: 113.65 | F64: 116.25 | G64: 116.5 | H64: 113.6 | I64: 251729 | J64: 29486843.8 | K64: 2019-03-28 | L64: 3555 | M64: INE418H01029
A65: ALLSEC | B65: EQ | C65: 288 | D65: 291.75 | E65: 278 | F65: 281 | G65: 281 | H65: 289.85 | I65: 34987 | J65: 9860097.6 | K65: 2019-03-28 | L65: 719 | M65: INE835G01018
A66: ALMONDZ | B66: EQ | C66: 22 | D66: 23.8 | E66: 21.75 | F66: 22.35 | G66: 22.2 | H66: 22 | I66: 6428 | J66: 145269.7 | K66: 2019-03-28 | L66: 58 | M66: INE326B01027
A67: ALOKTEXT | B67: EQ | C67: 5 | D67: 5 | E67: 5 | F67: 5 | G67: 5 | H67: 5.25 | I67: 363907 | J67: 1819535 | K67: 2019-03-28 | L67: 453 | M67: INE270A01011
A68: ALPA | B68: EQ | C68: 27.95 | D68: 27.95 | E68: 26.1 | F68: 26.85 | G68: 26.95 | H68: 27.35 | I68: 25075 | J68: 674296.05 | K68: 2019-03-28 | L68: 260 | M68: INE385I01010
A69: ALPHAGEO | B69: EQ | C69: 516 | D69: 520.7 | E69: 501 | F69: 503.4 | G69: 504 | H69: 516.45 | I69: 7267 | J69: 3691355.9 | K69: 2019-03-28 | L69: 981 | M69: INE137C01018
A70: AMARAJABAT | B70: EQ | C70: 725 | D70: 731.25 | E70: 712.5 | F70: 717.45 | G70: 716.5 | H70: 721.4 | I70: 1864739 | J70: 1345615138 | K70: 2019-03-28 | L70: 32409 | M70: INE885A01032
A71: AMBER | B71: EQ | C71: 798 | D71: 810.9 | E71: 791.2 | F71: 805.15 | G71: 810 | H71: 791.15 | I71: 60953 | J71: 48923707.7 | K71: 2019-03-28 | L71: 1966 | M71: INE371P01015
A72: AMBIKCO | B72: EQ | C72: 1125.3 | D72: 1130 | E72: 1120.05 | F72: 1124.9 | G72: 1125 | H72: 1127.85 | I72: 1274 | J72: 1434109.75 | K72: 2019-03-28 | L72: 218 | M72: INE540G01014
A73: AMBUJACEM | B73: EQ | C73: 232.3 | D73: 234.9 | E73: 227.5 | F73: 231.85 | G73: 233.2 | H73: 232.25 | I73: 5196003 | J73: 1201453579 | K73: 2019-03-28 | L73: 64230 | M73: INE079A01024
A74: AMDIND | B74: EQ | C74: 19.95 | D74: 20.55 | E74: 19.65 | F74: 20.15 | G74: 20.2 | H74: 19.65 | I74: 29846 | J74: 596959.8 | K74: 2019-03-28 | L74: 53 | M74: INE005I01014
A75: AMJLAND | B75: EQ | C75: 19.95 | D75: 20 | E75: 19.4 | F75: 19.7 | G75: 19.4 | H75: 19.9 | I75: 2468 | J75: 48719.9 | K75: 2019-03-28 | L75: 49 | M75: INE606A01024
A76: AMRUTANJAN | B76: EQ | C76: 310 | D76: 314 | E76: 307.1 | F76: 308.1 | G76: 309 | H76: 308 | I76: 27531 | J76: 8527968.35 | K76: 2019-03-28 | L76: 1014 | M76: INE098F01031
A77: ANANTRAJ | B77: EQ | C77: 32.95 | D77: 33.75 | E77: 32.95 | F77: 33.3 | G77: 33.25 | H77: 32.95 | I77: 582466 | J77: 19430128.15 | K77: 2019-03-28 | L77: 3961 | M77: INE242C01024
A78: ANDHRABANK | B78: EQ | C78: 27.35 | D78: 28.2 | E78: 27.3 | F78: 27.95 | G78: 27.9 | H78: 27.1 | I78: 6290363 | J78: 174063399.2 | K78: 2019-03-28 | L78: 17103 | M78: INE434A01013
A79: ANDHRACEMT | B79: BE | C79: 5 | D79: 5.1 | E79: 4.8 | F79: 5.05 | G79: 5.1 | H79: 4.9 | I79: 69745 | J79: 346502.8 | K79: 2019-03-28 | L79: 146 | M79: INE666E01012
A80: ANDHRSUGAR | B80: EQ | C80: 342.75 | D80: 351.85 | E80: 341.7 | F80: 344.2 | G80: 342.9 | H80: 342.75 | I80: 20580 | J80: 7134721.25 | K80: 2019-03-28 | L80: 753 | M80: INE715B01013
A81: ANGIND | B81: BE | C81: 0.95 | D81: 0.95 | E81: 0.95 | F81: 0.95 | G81: 0.95 | H81: 0.95 | I81: 303 | J81: 287.85 | K81: 2019-03-28 | L81: 2 | M81: INE017D01010
A82: ANIKINDS | B82: EQ | C82: 15.2 | D82: 15.95 | E82: 15.15 | F82: 15.5 | G82: 15.25 | H82: 15.75 | I82: 2753 | J82: 42446.55 | K82: 2019-03-28 | L82: 47 | M82: INE087B01017
A83: ANKITMETAL | B83: BE | C83: 0.5 | D83: 0.55 | E83: 0.5 | F83: 0.5 | G83: 0.5 | H83: 0.55 | I83: 23860 | J83: 11997.5 | K83: 2019-03-28 | L83: 23 | M83: INE106I01010
A84: ANSALAPI | B84: EQ | C84: 11.05 | D84: 11.7 | E84: 10.8 | F84: 11.2 | G84: 11.2 | H84: 10.9 | I84: 101002 | J84: 1139057.15 | K84: 2019-03-28 | L84: 350 | M84: INE436A01026
A85: ANSALHSG | B85: BE | C85: 12.3 | D85: 12.4 | E85: 11.8 | F85: 12.25 | G85: 12.35 | H85: 12 | I85: 30703 | J85: 374913.1 | K85: 2019-03-28 | L85: 127 | M85: INE880B01015
A86: ANTGRAPHIC | B86: BE | C86: 0.5 | D86: 0.5 | E86: 0.45 | F86: 0.5 | G86: 0.5 | H86: 0.5 | I86: 23659 | J86: 11557.15 | K86: 2019-03-28 | L86: 13 | M86: INE414B01021
A87: ANUP | B87: EQ | C87: 531.5 | D87: 542.75 | E87: 530.2 | F87: 532.7 | G87: 533 | H87: 532.45 | I87: 26027 | J87: 13921113 | K87: 2019-03-28 | L87: 1449 | M87: INE294Z01018
A88: APARINDS | B88: EQ | C88: 661 | D88: 677.1 | E88: 657 | F88: 671.55 | G88: 672 | H88: 660.95 | I88: 37488 | J88: 24880933.1 | K88: 2019-03-28 | L88: 515 | M88: INE372A01015
A89: APCL | B89: EQ | C89: 122.95 | D89: 123.3 | E89: 117.2 | F89: 119.9 | G89: 119.9 | H89: 118.2 | I89: 557 | J89: 66720.05 | K89: 2019-03-28 | L89: 40 | M89: INE071F01012
A90: APCOTEXIND | B90: EQ | C90: 513.35 | D90: 520 | E90: 513.35 | F90: 516.35 | G90: 516 | H90: 519.8 | I90: 2281 | J90: 1178609.4 | K90: 2019-03-28 | L90: 194 | M90: INE116A01024
A91: APEX | B91: EQ | C91: 316 | D91: 350.85 | E91: 315.1 | F91: 338.4 | G91: 337.65 | H91: 313.8 | I91: 549060 | J91: 184895971.7 | K91: 2019-03-28 | L91: 17368 | M91: INE346W01013
A92: APLAPOLLO | B92: EQ | C92: 1429.45 | D92: 1470 | E92: 1429.4 | F92: 1448.65 | G92: 1450 | H92: 1434.15 | I92: 21649 | J92: 31414006.1 | K92: 2019-03-28 | L92: 1514 | M92: INE702C01019
A93: APLLTD | B93: EQ | C93: 534.4 | D93: 534.75 | E93: 519.95 | F93: 520.9 | G93: 520.9 | H93: 529.1 | I93: 22016 | J93: 11540934.15 | K93: 2019-03-28 | L93: 2333 | M93: INE901L01018
A94: APOLLO | B94: EQ | C94: 102 | D94: 103.3 | E94: 101 | F94: 101.45 | G94: 102 | H94: 101.1 | I94: 16486 | J94: 1681335 | K94: 2019-03-28 | L94: 380 | M94: INE713T01010
A95: APOLLOHOSP | B95: EQ | C95: 1154 | D95: 1188 | E95: 1154 | F95: 1182.95 | G95: 1184.15 | H95: 1153.75 | I95: 693131 | J95: 816039501.5 | K95: 2019-03-28 | L95: 29331 | M95: INE437A01024
A96: APOLLOTYRE | B96: EQ | C96: 213.3 | D96: 219.9 | E96: 212.75 | F96: 217.45 | G96: 218.3 | H96: 214 | I96: 1865135 | J96: 401981674.9 | K96: 2019-03-28 | L96: 20386 | M96: INE438A01022
A97: APOLSINHOT | B97: BE | C97: 901 | D97: 902 | E97: 865 | F97: 882.35 | G97: 899 | H97: 900 | I97: 484 | J97: 428448 | K97: 2019-03-28 | L97: 23 | M97: INE451F01024
A98: APTECHT | B98: EQ | C98: 181.7 | D98: 185.2 | E98: 178.05 | F98: 180.05 | G98: 179.3 | H98: 180.8 | I98: 301571 | J98: 55070991.05 | K98: 2019-03-28 | L98: 4583 | M98: INE266F01018
A99: ARCHIDPLY | B99: EQ | C99: 39.9 | D99: 41 | E99: 39 | F99: 39.95 | G99: 39.7 | H99: 39.2 | I99: 18422 | J99: 731811.5 | K99: 2019-03-28 | L99: 272 | M99: INE877I01016
A100: ARCHIES | B100: EQ | C100: 23.9 | D100: 25 | E100: 23.8 | F100: 24.9 | G100: 25 | H100: 23.8 | I100: 83604 | J100: 2055689.5 | K100: 2019-03-28 | L100: 415 | M100: INE731A01020
A101: ARCOTECH | B101: BE | C101: 5.5 | D101: 5.75 | E101: 5.3 | F101: 5.4 | G101: 5.5 | H101: 5.55 | I101: 77216 | J101: 420609.65 | K101: 2019-03-28 | L101: 191 | M101: INE574I01035
A102: ARIES | B102: EQ | C102: 88.85 | D102: 90.45 | E102: 87.6 | F102: 88.1 | G102: 88 | H102: 87.5 | I102: 59937 | J102: 5327360.45 | K102: 2019-03-28 | L102: 778 | M102: INE298I01015
A103: ARIHANT | B103: EQ | C103: 27.6 | D103: 30.4 | E103: 27.6 | F103: 28.25 | G103: 28.2 | H103: 27.7 | I103: 1406 | J103: 41162.75 | K103: 2019-03-28 | L103: 19 | M103: INE413D01011
A104: ARIHANTSUP | B104: BE | C104: 54.9 | D104: 55.4 | E104: 52.2 | F104: 53.2 | G104: 55.4 | H104: 54 | I104: 11394 | J104: 605119.1 | K104: 2019-03-28 | L104: 50 | M104: INE643K01018
A105: ARMANFIN | B105: EQ | C105: 375 | D105: 375 | E105: 364 | F105: 370.95 | G105: 366.65 | H105: 372.6 | I105: 6632 | J105: 2463265.25 | K105: 2019-03-28 | L105: 183 | M105: INE109C01017
A106: AROGRANITE | B106: EQ | C106: 51.7 | D106: 51.8 | E106: 48 | F106: 49.45 | G106: 49.45 | H106: 49.6 | I106: 11309 | J106: 555283.35 | K106: 2019-03-28 | L106: 262 | M106: INE210C01013
A107: ARROWGREEN | B107: BE | C107: 76.45 | D107: 78 | E107: 74.1 | F107: 75.9 | G107: 75.5 | H107: 74.3 | I107: 2189 | J107: 165851.75 | K107: 2019-03-28 | L107: 42 | M107: INE570D01018
A108: ARROWTEX | B108: EQ | C108: 18 | D108: 18.5 | E108: 18 | F108: 18.4 | G108: 18.1 | H108: 17.85 | I108: 5826 | J108: 106649 | K108: 2019-03-28 | L108: 39 | M108: INE933J01015
A109: ARSHIYA | B109: EQ | C109: 27 | D109: 29.8 | E109: 26.95 | F109: 29.45 | G109: 29.5 | H109: 27.15 | I109: 146180 | J109: 4256485.85 | K109: 2019-03-28 | L109: 679 | M109: INE968D01022
A110: ARSSINFRA | B110: EQ | C110: 42.45 | D110: 42.9 | E110: 40.5 | F110: 42.8 | G110: 42.05 | H110: 40.9 | I110: 8308 | J110: 351700 | K110: 2019-03-28 | L110: 69 | M110: INE267I01010
A111: ARVIND | B111: EQ | C111: 88.4 | D111: 92.5 | E111: 88.35 | F111: 91.85 | G111: 91.95 | H111: 87.95 | I111: 4215414 | J111: 382490047.6 | K111: 2019-03-28 | L111: 26497 | M111: INE034A01011
A112: ARVINDFASN | B112: EQ | C112: 1004.9 | D112: 1026 | E112: 995.65 | F112: 1021.75 | G112: 1022 | H112: 1004.15 | I112: 167666 | J112: 169816593.8 | K112: 2019-03-28 | L112: 6500 | M112: INE955V01021
A113: ARVSMART | B113: EQ | C113: 121.6 | D113: 134.95 | E113: 120.5 | F113: 131.55 | G113: 131.9 | H113: 119.8 | I113: 175119 | J113: 23123506.95 | K113: 2019-03-28 | L113: 3201 | M113: INE034S01021
A114: ASAHIINDIA | B114: EQ | C114: 259.6 | D114: 262 | E114: 256.05 | F114: 260.35 | G114: 258.5 | H114: 255.75 | I114: 4049 | J114: 1054296.2 | K114: 2019-03-28 | L114: 183 | M114: INE439A01020
A115: ASAHISONG | B115: EQ | C115: 161.05 | D115: 161.45 | E115: 149.3 | F115: 153.35 | G115: 152.65 | H115: 160.1 | I115: 41822 | J115: 6582521.8 | K115: 2019-03-28 | L115: 2427 | M115: INE228I01012
A116: ASAL | B116: EQ | C116: 54 | D116: 58.4 | E116: 54 | F116: 54.95 | G116: 54.75 | H116: 55.85 | I116: 5664 | J116: 314938.75 | K116: 2019-03-28 | L116: 101 | M116: INE900C01027
A117: ASHAPURMIN | B117: EQ | C117: 28.5 | D117: 29.2 | E117: 27.7 | F117: 28.3 | G117: 28.05 | H117: 28.05 | I117: 58625 | J117: 1663433.7 | K117: 2019-03-28 | L117: 333 | M117: INE348A01023
A118: ASHIANA | B118: EQ | C118: 116.75 | D118: 118.85 | E118: 114.75 | F118: 115.5 | G118: 114.75 | H118: 117.7 | I118: 25641 | J118: 2990165.1 | K118: 2019-03-28 | L118: 459 | M118: INE365D01021
A119: ASHIMASYN | B119: BE | C119: 11.6 | D119: 11.85 | E119: 11.4 | F119: 11.7 | G119: 11.7 | H119: 11.3 | I119: 64340 | J119: 747879.05 | K119: 2019-03-28 | L119: 92 | M119: INE440A01010
A120: ASHOKA | B120: EQ | C120: 132 | D120: 132.9 | E120: 128.55 | F120: 129.8 | G120: 129.5 | H120: 130.95 | I120: 268966 | J120: 35101057.95 | K120: 2019-03-28 | L120: 11027 | M120: INE442H01029
A121: ASHOKLEY | B121: EQ | C121: 85.6 | D121: 89.7 | E121: 85.3 | F121: 88.6 | G121: 89.1 | H121: 85.45 | I121: 26677216 | J121: 2333063726 | K121: 2019-03-28 | L121: 90466 | M121: INE208A01029
A122: ASIANHOTNR | B122: EQ | C122: 139.95 | D122: 141.7 | E122: 136.15 | F122: 139 | G122: 139 | H122: 138.6 | I122: 278 | J122: 38875.85 | K122: 2019-03-28 | L122: 53 | M122: INE363A01022
A123: ASIANPAINT | B123: EQ | C123: 1473.5 | D123: 1508.95 | E123: 1473.5 | F123: 1497 | G123: 1500.15 | H123: 1472.05 | I123: 1353947 | J123: 2016742845 | K123: 2019-03-28 | L123: 52343 | M123: INE021A01026
A124: ASIANTILES | B124: EQ | C124: 233 | D124: 240 | E124: 225.35 | F124: 238.95 | G124: 238.85 | H124: 229.45 | I124: 150218 | J124: 35581926.25 | K124: 2019-03-28 | L124: 1932 | M124: INE022I01019
A125: ASPINWALL | B125: EQ | C125: 168 | D125: 180 | E125: 168 | F125: 169 | G125: 169 | H125: 168.95 | I125: 3412 | J125: 600910.85 | K125: 2019-03-28 | L125: 65 | M125: INE991I01015
A126: ASSAMCO | B126: BE | C126: 2.1 | D126: 2.2 | E126: 2 | F126: 2.15 | G126: 2.1 | H126: 2.1 | I126: 161961 | J126: 340234.3 | K126: 2019-03-28 | L126: 152 | M126: INE442A01024
A127: ASTEC | B127: EQ | C127: 534.75 | D127: 546.8 | E127: 531.15 | F127: 534.95 | G127: 538 | H127: 535.3 | I127: 10290 | J127: 5563406.75 | K127: 2019-03-28 | L127: 622 | M127: INE563J01010
A128: ASTERDM | B128: EQ | C128: 155.6 | D128: 157.4 | E128: 153.7 | F128: 154.5 | G128: 154 | H128: 156.1 | I128: 49777 | J128: 7716617.5 | K128: 2019-03-28 | L128: 2712 | M128: INE914M01019
A129: ASTRAL | B129: EQ | C129: 1141.75 | D129: 1165 | E129: 1140.1 | F129: 1147.8 | G129: 1142 | H129: 1138.5 | I129: 35278 | J129: 40697039.25 | K129: 2019-03-28 | L129: 3635 | M129: INE006I01046
A130: ASTRAMICRO | B130: EQ | C130: 103.95 | D130: 105.6 | E130: 94.5 | F130: 97.05 | G130: 97.2 | H130: 103.7 | I130: 863015 | J130: 85215458.05 | K130: 2019-03-28 | L130: 6417 | M130: INE386C01029
A131: ASTRAZEN | B131: EQ | C131: 1968.5 | D131: 1971.55 | E131: 1935 | F131: 1959.4 | G131: 1961 | H131: 1952.25 | I131: 3964 | J131: 7744698.5 | K131: 2019-03-28 | L131: 646 | M131: INE203A01020
A132: ASTRON | B132: EQ | C132: 105.9 | D132: 107.7 | E132: 96.2 | F132: 100.05 | G132: 99.9 | H132: 104.9 | I132: 555653 | J132: 56394097.45 | K132: 2019-03-28 | L132: 3714 | M132: INE646X01014
A133: ATFL | B133: EQ | C133: 582.05 | D133: 598 | E133: 579.3 | F133: 581.2 | G133: 580.7 | H133: 579.05 | I133: 5867 | J133: 3438928.15 | K133: 2019-03-28 | L133: 398 | M133: INE209A01019
A134: ATLANTA | B134: EQ | C134: 18.8 | D134: 19.1 | E134: 18.7 | F134: 18.85 | G134: 18.8 | H134: 18.7 | I134: 28446 | J134: 535137.2 | K134: 2019-03-28 | L134: 136 | M134: INE285H01022
A135: ATLASCYCLE | B135: BE | C135: 79.3 | D135: 85.95 | E135: 79.3 | F135: 82.35 | G135: 84.5 | H135: 83.35 | I135: 2463 | J135: 204801.25 | K135: 2019-03-28 | L135: 42 | M135: INE446A01025
A136: ATUL | B136: EQ | C136: 3503.15 | D136: 3565.3 | E136: 3475 | F136: 3533.2 | G136: 3528.95 | H136: 3527.3 | I136: 11078 | J136: 38911614.9 | K136: 2019-03-28 | L136: 3107 | M136: INE100A01010
A137: ATULAUTO | B137: EQ | C137: 338.9 | D137: 340.5 | E137: 335.9 | F137: 338.85 | G137: 340.5 | H137: 334.25 | I137: 9471 | J137: 3205007.65 | K137: 2019-03-28 | L137: 464 | M137: INE951D01028
A138: AUBANK | B138: EQ | C138: 578 | D138: 590 | E138: 569 | F138: 588.35 | G138: 588 | H138: 574.55 | I138: 307345 | J138: 179144459.7 | K138: 2019-03-28 | L138: 11781 | M138: INE949L01017
A139: AURIONPRO | B139: EQ | C139: 132.9 | D139: 134 | E139: 129.65 | F139: 131.95 | G139: 133.5 | H139: 130.35 | I139: 22760 | J139: 3002034.75 | K139: 2019-03-28 | L139: 589 | M139: INE132H01018
A140: AUROPHARMA | B140: EQ | C140: 779.9 | D140: 779.9 | E140: 765.75 | F140: 769.25 | G140: 770.25 | H140: 775.05 | I140: 2428881 | J140: 1869646186 | K140: 2019-03-28 | L140: 29719 | M140: INE406A01037
A141: AUSOMENT | B141: EQ | C141: 35.8 | D141: 37.5 | E141: 34.1 | F141: 35.25 | G141: 35.25 | H141: 35.85 | I141: 2613 | J141: 91552.75 | K141: 2019-03-28 | L141: 29 | M141: INE218C01016
A142: AUTOAXLES | B142: EQ | C142: 1268.7 | D142: 1295 | E142: 1247.75 | F142: 1284.9 | G142: 1280 | H142: 1255.65 | I142: 29875 | J142: 38315352.05 | K142: 2019-03-28 | L142: 4314 | M142: INE449A01011
A143: AUTOIND | B143: EQ | C143: 51.5 | D143: 54 | E143: 51 | F143: 52.4 | G143: 52.25 | H143: 51.9 | I143: 57389 | J143: 2995186.4 | K143: 2019-03-28 | L143: 466 | M143: INE718H01014
A144: AUTOLITIND | B144: EQ | C144: 39.65 | D144: 39.65 | E144: 38.2 | F144: 38.9 | G144: 38.9 | H144: 38.15 | I144: 7725 | J144: 296493 | K144: 2019-03-28 | L144: 32 | M144: INE448A01013
A145: AVADHSUGAR | B145: EQ | C145: 477.4 | D145: 496.85 | E145: 475.25 | F145: 478.5 | G145: 477.05 | H145: 474.1 | I145: 80865 | J145: 39352523.35 | K145: 2019-03-28 | L145: 2512 | M145: INE349W01017
A146: AVANTIFEED | B146: EQ | C146: 423.6 | D146: 438 | E146: 411.25 | F146: 419.45 | G146: 418.85 | H146: 420.1 | I146: 1340278 | J146: 572991960.6 | K146: 2019-03-28 | L146: 29694 | M146: INE871C01038
A147: AVTNPL | B147: EQ | C147: 27.75 | D147: 27.9 | E147: 26.2 | F147: 26.6 | G147: 26.55 | H147: 27.05 | I147: 60671 | J147: 1622049.45 | K147: 2019-03-28 | L147: 350 | M147: INE488D01021
A148: AXISBANK | B148: EQ | C148: 761.1 | D148: 787.65 | E148: 757.15 | F148: 780.7 | G148: 775.8 | H148: 759.3 | I148: 16643818 | J148: 1.290268618e+10 | K148: 2019-03-28 | L148: 175012 | M148: INE238A01034
A149: AXISCADES | B149: EQ | C149: 62 | D149: 64.6 | E149: 60.35 | F149: 62.25 | G149: 62.3 | H149: 62.9 | I149: 55033 | J149: 3433874.5 | K149: 2019-03-28 | L149: 1018 | M149: INE555B01013
A150: AXISGOLD | B150: EQ | C150: 2812 | D150: 2837 | E150: 2784 | F150: 2807.85 | G150: 2802.95 | H150: 2812.8 | I150: 293 | J150: 822394.3 | K150: 2019-03-28 | L150: 74 | M150: INF846K01347
A151: AXISNIFTY | B151: EQ | C151: 1185 | D151: 1185 | E151: 1170.28 | F151: 1171.29 | G151: 1171.29 | H151: 1164.59 | I151: 24 | J151: 28170.77 | K151: 2019-03-28 | L151: 6 | M151: INF846K01ZL0
A152: AYMSYNTEX | B152: EQ | C152: 37.25 | D152: 37.3 | E152: 34.6 | F152: 35.15 | G152: 34.6 | H152: 36.1 | I152: 24886 | J152: 889769 | K152: 2019-03-28 | L152: 88 | M152: INE193B01039
A153: BAFNAPHARM | B153: EQ | C153: 9.75 | D153: 10 | E153: 9.75 | F153: 9.95 | G153: 9.95 | H153: 9.65 | I153: 1098 | J153: 10883.05 | K153: 2019-03-28 | L153: 24 | M153: INE878I01014
A154: BAGFILMS | B154: EQ | C154: 4.7 | D154: 4.75 | E154: 4.6 | F154: 4.7 | G154: 4.75 | H154: 4.7 | I154: 98254 | J154: 460593.6 | K154: 2019-03-28 | L154: 139 | M154: INE116D01028
A155: BAJAJ-AUTO | B155: EQ | C155: 2989 | D155: 3020.45 | E155: 2915 | F155: 2948.8 | G155: 2954 | H155: 2980.1 | I155: 1800550 | J155: 5357930978 | K155: 2019-03-28 | L155: 58564 | M155: INE917I01010
A156: BAJAJCON | B156: EQ | C156: 316 | D156: 318.5 | E156: 312 | F156: 312.8 | G156: 312.7 | H156: 316.8 | I156: 179564 | J156: 56428711.4 | K156: 2019-03-28 | L156: 5189 | M156: INE933K01021
A157: BAJAJELEC | B157: EQ | C157: 565 | D157: 571.8 | E157: 561.5 | F157: 566.55 | G157: 568 | H157: 559.5 | I157: 325935 | J157: 184897100.9 | K157: 2019-03-28 | L157: 12105 | M157: INE193E01025
A158: BAJAJFINSV | B158: EQ | C158: 6994 | D158: 7022.7 | E158: 6857.5 | F158: 6952.55 | G158: 6970 | H158: 6980.35 | I158: 328240 | J158: 2278179263 | K158: 2019-03-28 | L158: 41230 | M158: INE918I01018
A159: BAJAJHIND | B159: EQ | C159: 8.05 | D159: 8.2 | E159: 7.95 | F159: 8 | G159: 7.95 | H159: 8 | I159: 1719938 | J159: 13791164.5 | K159: 2019-03-28 | L159: 1353 | M159: INE306A01021
A160: BAJAJHLDNG | B160: EQ | C160: 3237 | D160: 3800 | E160: 3237 | F160: 3593.65 | G160: 3600 | H160: 3273.75 | I160: 240494 | J160: 861070663.1 | K160: 2019-03-28 | L160: 13807 | M160: INE118A01012
A161: BAJFINANCE | B161: EQ | C161: 2940.1 | D161: 3000 | E161: 2940.05 | F161: 2995.85 | G161: 2993 | H161: 2945.25 | I161: 1366945 | J161: 4070327232 | K161: 2019-03-28 | L161: 81096 | M161: INE296A01024
A162: BALAJITELE | B162: EQ | C162: 84.5 | D162: 84.5 | E162: 81.8 | F162: 82.1 | G162: 81.8 | H162: 84.1 | I162: 84116 | J162: 6956519.4 | K162: 2019-03-28 | L162: 946 | M162: INE794B01026
A163: BALAMINES | B163: EQ | C163: 498.9 | D163: 509 | E163: 489 | F163: 494.65 | G163: 490 | H163: 498.9 | I163: 32312 | J163: 16187768.9 | K163: 2019-03-28 | L163: 2437 | M163: INE050E01027
A164: BALAXI | B164: EQ | C164: 36.2 | D164: 36.2 | E164: 36.2 | F164: 36.2 | G164: 36.2 | H164: 34.5 | I164: 4 | J164: 144.8 | K164: 2019-03-28 | L164: 3 | M164: INE618N01014
A165: BALKRISHNA | B165: EQ | C165: 36.75 | D165: 37.75 | E165: 36.1 | F165: 36.85 | G165: 37.2 | H165: 36.8 | I165: 14882 | J165: 552259.9 | K165: 2019-03-28 | L165: 259 | M165: INE875R01011
A166: BALKRISIND | B166: EQ | C166: 963 | D166: 999 | E166: 961.05 | F166: 990.75 | G166: 990.2 | H166: 962.85 | I166: 1243600 | J166: 1220997164 | K166: 2019-03-28 | L166: 37967 | M166: INE787D01026
A167: BALLARPUR | B167: EQ | C167: 2.9 | D167: 3 | E167: 2.9 | F167: 2.95 | G167: 2.9 | H167: 2.9 | I167: 2921772 | J167: 8711068.1 | K167: 2019-03-28 | L167: 698 | M167: INE294A01037
A168: BALMLAWRIE | B168: EQ | C168: 187.65 | D168: 188 | E168: 184.45 | F168: 186.15 | G168: 187.4 | H168: 185.7 | I168: 26426 | J168: 4916123.35 | K168: 2019-03-28 | L168: 807 | M168: INE164A01016
A169: BALPHARMA | B169: EQ | C169: 69 | D169: 71.7 | E169: 69 | F169: 70.65 | G169: 70.25 | H169: 69.25 | I169: 9387 | J169: 659073.8 | K169: 2019-03-28 | L169: 193 | M169: INE083D01012
A170: BALRAMCHIN | B170: EQ | C170: 134.5 | D170: 137.4 | E170: 134 | F170: 135.2 | G170: 134.85 | H170: 134.7 | I170: 1132576 | J170: 153727253.4 | K170: 2019-03-28 | L170: 8760 | M170: INE119A01028
A171: BANARBEADS | B171: EQ | C171: 51.8 | D171: 56.95 | E171: 50 | F171: 51.5 | G171: 51.5 | H171: 48.45 | I171: 56364 | J171: 3015520.55 | K171: 2019-03-28 | L171: 1140 | M171: INE655B01011
A172: BANARISUG | B172: EQ | C172: 1565.05 | D172: 1580 | E172: 1485 | F172: 1500.15 | G172: 1500 | H172: 1518.9 | I172: 7371 | J172: 11533548.95 | K172: 2019-03-28 | L172: 441 | M172: INE459A01010
A173: BANCOINDIA | B173: EQ | C173: 153.4 | D173: 156.65 | E173: 153.4 | F173: 154.05 | G173: 153.5 | H173: 152.85 | I173: 26098 | J173: 4046296.85 | K173: 2019-03-28 | L173: 432 | M173: INE213C01025
A174: BANDHANBNK | B174: EQ | C174: 496.8 | D174: 532.4 | E174: 495 | F174: 522.35 | G174: 518 | H174: 492.7 | I174: 1603747 | J174: 827864282.8 | K174: 2019-03-28 | L174: 37642 | M174: INE545U01014
A175: BANG | B175: EQ | C175: 31.7 | D175: 32 | E175: 30.15 | F175: 31.15 | G175: 31 | H175: 30.65 | I175: 12297 | J175: 383344 | K175: 2019-03-28 | L175: 224 | M175: INE863I01016
A176: BANKBARODA | B176: EQ | C176: 121.75 | D176: 131.4 | E176: 121.55 | F176: 130.1 | G176: 129.75 | H176: 121.55 | I176: 44199513 | J176: 5651880789 | K176: 2019-03-28 | L176: 164398 | M176: INE028A01039
A177: BANKBEES | B177: EQ | C177: 3100 | D177: 3120 | E177: 3066.01 | F177: 3113.59 | G177: 3113 | H177: 3070.55 | I177: 20116 | J177: 62079907.52 | K177: 2019-03-28 | L177: 776 | M177: INF732E01078
A178: BANKINDIA | B178: EQ | C178: 103 | D178: 106.5 | E178: 102.8 | F178: 105.85 | G178: 105.75 | H178: 103.15 | I178: 12405815 | J178: 1304265512 | K178: 2019-03-28 | L178: 34470 | M178: INE084A01016
A179: BANSWRAS | B179: EQ | C179: 68.5 | D179: 68.5 | E179: 66.55 | F179: 67.3 | G179: 67.8 | H179: 67 | I179: 700 | J179: 47168.9 | K179: 2019-03-28 | L179: 36 | M179: INE629D01012
A180: BARTRONICS | B180: EQ | C180: 6.5 | D180: 6.65 | E180: 6.3 | F180: 6.35 | G180: 6.3 | H180: 6.3 | I180: 24441 | J180: 157634.3 | K180: 2019-03-28 | L180: 106 | M180: INE855F01034
A181: BASF | B181: EQ | C181: 1448 | D181: 1499 | E181: 1420.3 | F181: 1481.75 | G181: 1475 | H181: 1441.55 | I181: 12331 | J181: 18067708.35 | K181: 2019-03-28 | L181: 1775 | M181: INE373A01013
A182: BASML | B182: EQ | C182: 182.65 | D182: 186 | E182: 181.1 | F182: 182.25 | G182: 181.15 | H182: 180.65 | I182: 417 | J182: 76332.75 | K182: 2019-03-28 | L182: 27 | M182: INE186H01014
A183: BATAINDIA | B183: EQ | C183: 1375.3 | D183: 1427.15 | E183: 1367.7 | F183: 1413.4 | G183: 1423.95 | H183: 1371.55 | I183: 1513755 | J183: 2114379035 | K183: 2019-03-28 | L183: 67177 | M183: INE176A01028
A184: BAYERCROP | B184: EQ | C184: 4330 | D184: 4363.4 | E184: 4318.05 | F184: 4349.4 | G184: 4350 | H184: 4351.85 | I184: 8088 | J184: 35158766.15 | K184: 2019-03-28 | L184: 2447 | M184: INE462A01022
A185: BBL | B185: EQ | C185: 1095.35 | D185: 1103.7 | E185: 1081 | F185: 1100.1 | G185: 1099.5 | H185: 1092.85 | I185: 3934 | J185: 4315355.85 | K185: 2019-03-28 | L185: 475 | M185: INE464A01028
A186: BBTC | B186: EQ | C186: 1291.95 | D186: 1313.9 | E186: 1265 | F186: 1283.55 | G186: 1279 | H186: 1285.85 | I186: 114341 | J186: 147677605.6 | K186: 2019-03-28 | L186: 4933 | M186: INE050A01025
A187: BCG | B187: BE | C187: 2.85 | D187: 2.95 | E187: 2.85 | F187: 2.95 | G187: 2.95 | H187: 2.85 | I187: 207526 | J187: 608751.7 | K187: 2019-03-28 | L187: 96 | M187: INE425B01027
A188: BDL | B188: EQ | C188: 285.95 | D188: 288.45 | E188: 280.55 | F188: 281.7 | G188: 282 | H188: 286.15 | I188: 31541 | J188: 8916358.05 | K188: 2019-03-28 | L188: 2093 | M188: INE171Z01018
A189: BEARDSELL | B189: EQ | C189: 15.95 | D189: 16 | E189: 14.6 | F189: 15.8 | G189: 15.8 | H189: 15.7 | I189: 804 | J189: 12519.95 | K189: 2019-03-28 | L189: 34 | M189: INE520H01022
A190: BEDMUTHA | B190: EQ | C190: 16.9 | D190: 18.9 | E190: 16.85 | F190: 17.25 | G190: 17.05 | H190: 17.25 | I190: 15989 | J190: 286890.85 | K190: 2019-03-28 | L190: 97 | M190: INE844K01012
A191: BEL | B191: EQ | C191: 92.9 | D191: 93.2 | E191: 91.65 | F191: 92.45 | G191: 92.7 | H191: 92.1 | I191: 16639126 | J191: 1538292507 | K191: 2019-03-28 | L191: 45692 | M191: INE263A01024
A192: BEML | B192: EQ | C192: 965.95 | D192: 995.5 | E192: 965.75 | F192: 991.7 | G192: 993.6 | H192: 965.75 | I192: 1357842 | J192: 1331521840 | K192: 2019-03-28 | L192: 29276 | M192: INE258A01016
A193: BEPL | B193: EQ | C193: 73.55 | D193: 77.8 | E193: 73.5 | F193: 74.95 | G193: 74.85 | H193: 73.1 | I193: 959371 | J193: 72560919.35 | K193: 2019-03-28 | L193: 4871 | M193: INE922A01025
A194: BERGEPAINT | B194: EQ | C194: 322 | D194: 327.8 | E194: 321 | F194: 324.35 | G194: 325.6 | H194: 323.85 | I194: 569292 | J194: 184814223.9 | K194: 2019-03-28 | L194: 13304 | M194: INE463A01038
A195: BFINVEST | B195: EQ | C195: 267 | D195: 271 | E195: 265.3 | F195: 266.45 | G195: 265.3 | H195: 264.9 | I195: 34012 | J195: 9124013.1 | K195: 2019-03-28 | L195: 1074 | M195: INE878K01010
A196: BFUTILITIE | B196: EQ | C196: 194.6 | D196: 198.05 | E196: 193.35 | F196: 194.55 | G196: 194.1 | H196: 194.2 | I196: 233619 | J196: 45690041.55 | K196: 2019-03-28 | L196: 4953 | M196: INE243D01012
A197: BGLOBAL | B197: BE | C197: 2.4 | D197: 2.4 | E197: 2.3 | F197: 2.4 | G197: 2.4 | H197: 2.4 | I197: 8180 | J197: 19627 | K197: 2019-03-28 | L197: 11 | M197: INE224M01013
A198: BGRENERGY | B198: EQ | C198: 61.35 | D198: 63.75 | E198: 61.35 | F198: 63.4 | G198: 63.1 | H198: 62.8 | I198: 103202 | J198: 6507352.3 | K198: 2019-03-28 | L198: 1053 | M198: INE661I01014
A199: BHAGERIA | B199: EQ | C199: 263.15 | D199: 274.75 | E199: 263.1 | F199: 271.5 | G199: 272.7 | H199: 266.65 | I199: 35321 | J199: 9585062.45 | K199: 2019-03-28 | L199: 309 | M199: INE354C01027
A200: BHAGYANGR | B200: EQ | C200: 30.55 | D200: 31.25 | E200: 30.4 | F200: 30.6 | G200: 30.65 | H200: 30.55 | I200: 9189 | J200: 281407.9 | K200: 2019-03-28 | L200: 50 | M200: INE458B01036
... 1441 more rows

Sheet Sheet1 (hidden)

Sheet Sheet3 (hidden)

Sheet Sheet4 (hidden)
